Workbook

Sheet EDM_Model
A1: Excel Spreadsheet for Chapter 9: Equation 5.11
R2: Row Input Share
O3: Adding Up | R3: Weighted Elasticities
J4: Input Shares | O4: Homogeneity Values | R4: Of Substitution
A5: Elasticities | E5: Symbol | F5: Value | J5: Input | K5: Symbol | L5: Value | P5: Input 1 | Q5: Input 2 | R5: Must Sum to 0
A6: Own-Price Demand Elasticity | E6: ηD | F6: =B95 -> -0.6 | G6: ← enter | J6: Input 1 | K6: K1 | L6: 0.3 | M6: ← enter | O6: Input 1 | P6: =L6*F11 -> -0.7 | Q6: =L7*F9 -> 0.7 | R6: =P6+Q6 -> 0
A7: Own-Price Supply Elasticity Input 1 | E7: ε1 | F7: =C95 -> 0.2 | G7: ← enter | J7: Input 2 | K7: K2 | L7: 0.7 | M7: ← enter | O7: Input 2 | P7: =L6*F10 -> 0.3 | Q7: =L7*F12 -> -0.3 | R7: =P7+Q7 -> 0
A8: Own-Price Supply Elasticity Input 2 | E8: ε2 | F8: =D95 -> 1 | G8: ← enter | J8: Shares must sum to 1 | L8: =L6+L7 -> 1
A9: Allen Elasticity of Substitution Input 1,2 | E9: σ12 | F9: =E95 -> 1 | G9: ← enter
A10: Allen Elasticity of Substitution Input 2,1 | E10: σ21 | F10: =F9 -> 1
A11: Allen Elasticity of Substitution Input 1,1 | E11: σ11 | F11: =-(L7*F9)/L6 -> -2.333333333
A12: Allen Elasticity of Substitution Input 2,2 | E12: σ22 | F12: =-(L6*F10)/L7 -> -0.4285714286
C14: Parameterized A Matrix
C15: Endogenous Variables | K15: Exogenous Shocks | O15: Change in Endogenous Variables
B16: Equation | C16: E(q) | D16: E(pD) | E16: E(pS) | F16: E(x1) | G16: E(x2) | H16: E(w1) | I16: E(w2) | K16: X Vector | L16: Values | O16: Y Vector | P16: Values | Q16: Percent | R16: Change In
A17: Behavioral Equations | B17: 5.2 | C17: 1 | D17: =-F6 -> 0.6 | E17: 0 | F17: 0 | G17: 0 | H17: 0 | I17: 0 | K17: E(θ1) | L17: 0 | M17: ← enter | O17: E(q) | P17: =MMULT(C28:I34,L17:L23) -> -0.03157894737 | Q17: =P17 -> -0.03157894737 | R17: Output Quantity
B18: 5.3 | C18: 0 | D18: 0 | E18: 1 | F18: 0 | G18: 0 | H18: =-L6 -> -0.3 | I18: =-L7 -> -0.7 | K18: E(θ2) | L18: 0 | O18: E(pD) | P18: 0.05263157895 | Q18: =P18 -> 0.05263157895 | R18: Output Demand Price
B19: 5.4 | C19: -1 | D19: 0 | E19: 0 | F19: 1 | G19: 0 | H19: =-P6 -> 0.7 | I19: =-Q6 -> -0.7 | K19: E(θ3) | L19: 0 | O19: E(pS) | P19: -0.04736842105 | Q19: -0.04736842105 | R19: Output Supply Price
B20: 5.5 | C20: -1 | D20: 0 | E20: 0 | F20: 0 | G20: 1 | H20: =-P7 -> -0.3 | I20: =-Q7 -> 0.3 | K20: E(θ4) | L20: 0 | O20: E(x1) | P20: -0.01315789474 | Q20: -0.01315789474 | R20: Input 1 Quantity
B21: 5.6 | C21: 0 | D21: 0 | E21: 0 | F21: 1 | G21: 0 | H21: =-F7 -> -0.2 | I21: 0 | K21: E(θ5) | L21: 0 | M21: ← enter | O21: E(x2) | P21: -0.03947368421 | Q21: -0.03947368421 | R21: Input 2 Quantity
B22: 5.7 | C22: 0 | D22: 0 | E22: 0 | F22: 0 | G22: 1 | H22: 0 | I22: =-F8 -> -1 | K22: E(θ6) | L22: 0 | M22: ← enter | O22: E(w1) | P22: -0.06578947368 | Q22: -0.06578947368 | R22: Input 1 Price
A23: Eq. Eqtn. | B23: 5.8 | C23: 0 | D23: 1 | E23: -1 | F23: 0 | G23: 0 | H23: 0 | I23: 0 | K23: E(θ7) | L23: 0.1 | M23: ← enter | O23: E(w2) | P23: -0.03947368421 | Q23: -0.03947368421 | R23: Input 2 Proce
C25: A Inverse Matrix
B27: Equation | C27: E(q) | D27: E(pD) | E27: E(pS) | F27: E(x1) | G27: E(x2) | H27: E(w1) | I27: E(w2)
A28: Behavioral Equations | B28: 5.2 | C28: =MINVERSE(C17:I23) -> 0.5263157895 | D28: -0.3157894737 | E28: -0.1973684211 | F28: -0.2763157895 | G28: 0.1973684211 | H28: 0.2763157895 | I28: -0.3157894737
B29: 5.3 | C29: 0.7894736842 | D29: 0.5263157895 | E29: 0.3289473684 | F29: 0.4605263158 | G29: -0.3289473684 | H29: -0.4605263158 | I29: 0.5263157895
B30: 5.4 | C30: 0.7894736842 | D30: 0.5263157895 | E30: 0.3289473684 | F30: 0.4605263158 | G30: -0.3289473684 | H30: -0.4605263158 | I30: -0.4736842105
B31: 5.5 | C31: 0.2192982456 | D31: -0.1315789474 | E31: 0.1885964912 | F31: 0.03070175439 | G31: 0.8114035088 | H31: -0.03070175439 | I31: -0.1315789474
B32: 5.6 | C32: 0.6578947368 | D32: -0.3947368421 | E32: 0.06578947368 | F32: 0.5921052632 | G32: -0.06578947368 | H32: 0.4078947368 | I32: -0.3947368421
B33: 5.7 | C33: 1.096491228 | D33: -0.6578947368 | E33: 0.9429824561 | F33: 0.1535087719 | G33: -0.9429824561 | H33: -0.1535087719 | I33: -0.6578947368
A34: Eq. Eqtn. | B34: 5.8 | C34: 0.6578947368 | D34: -0.3947368421 | E34: 0.06578947368 | F34: 0.5921052632 | G34: -0.06578947368 | H34: -0.5921052632 | I34: -0.3947368421
A39: Surplus, Tax, and Deadweight Loss Calculations | K39: Surplus, Tax, and Deadweight Loss Calculations Applied to the Beef Market
C41: Price | D41: Quantity | E41: Size | M41: Price | N41: Quantity | O41: Size
A42: Industry Size: | C42: 1 | D42: 1000 | E42: =C42*D42 -> 1000 | K42: Industry Size: | M42: 5 | N42: 60 | O42: =M42*N42 -> 300
E45: Equation | F45: Calculation | G45: Size | O45: Equation | P45: Calculation | Q45: Size
A46: Change in Consumer Surplus: | E46: 7.25 | F46: =-P18*(1+(0.5*P17)) -> -0.05180055402 | G46: =F46*$E$42 -> -51.80055402 | K46: New Consumer Price | P46: =M42*(1+P18) -> 5.263157895
A48: Change in Producer Surplus (Output Market): | E48: 7.26 | F48: =P19*(1+(0.5*P17)) -> -0.04662049861 | G48: =F48*$E$42 -> -46.62049861 | K48: New Producer Price | P48: =M42*(1+P19) -> 4.763157895
A50: Change in Producer Surplus Input 1 | E50: 7.27 | F50: =L6*P22*(1+(0.5*P20)) -> -0.01960699446 | G50: =F50*$E$42 -> -19.60699446 | K50: New Output | P50: =N42+(P17*N42) -> 58.10526316 | Q50: =P17*N42 -> -1.894736842
A52: Change in Producer Surplus Input 2 | E52: 7.28 | F52: =L7*P23*(1+(0.5*P21)) -> -0.02708621884 | G52: =F52*$E$42 -> -27.08621884 | K52: Change in Consumer Surplus: | O52: 7.45 | P52: =P18*(1+(0.5*P17)) -> 0.05180055402 | Q52: =P52*$O$42 -> 15.5401662
A54: Difference Between Producer Surplus (rounded) | F54: =F48-(F50+F52)+0.00001 -> 8.271468144e-05 | G54: =F54*$E$42 -> 0.08271468144 | K54: Change in Producer Surplus (Output Market): | O54: 7.46 | P54: =-P19*(1+(0.5*P17)) -> 0.04662049861 | Q54: =P54*$O$42 -> 13.98614958
A56: Consumer Share of Tax: | E56: 7.3 | F56: =P18*(1+P17) -> 0.05096952909 | G56: =F56*$E$42 -> 50.96952909 | K56: Consumer Share of Tax: | O56: 7.47 | P56: =P18*(1+P17) -> 0.05096952909 | Q56: =P56*$O$42 -> 15.29085873
A58: Producer Share of Tax: | E58: 7.31 | F58: =-P19*(1+P17) -> 0.04587257618 | G58: =F58*$E$42 -> 45.87257618 | K58: Producer Share of Tax: | O58: 7.48 | P58: =-P19*(1+P17) -> 0.04587257618 | Q58: =P58*$O$42 -> 13.76177285
A60: Total Tax Receipts | E60: 7.32 | F60: =F56+F58 -> 0.09684210526 | G60: =F60*$E$42 -> 96.84210526 | K60: Total Tax Receipts | P60: =P56+P58 -> 0.09684210526 | Q60: =P60*$O$42 -> 29.05263158
A62: Producer Input 1 Share of Tax: | E62: 7.33 | F62: =-L6*P22*(1+P20) -> 0.01947714681 | G62: =F62*$E$42 -> 19.47714681 | K62: Consumer Deadweight Loss: | O62: 7.49 | P62: =-0.5*P18*P17 -> 0.0008310249307 | Q62: =P62*$O$42 -> 0.2493074792
A64: Producer Input 2 Share of Tax: | E64: 7.34 | F64: =-L7*P23*(1+P21) -> 0.02654085873 | G64: =F64*$E$42 -> 26.54085873 | K64: Producer Deadweight Loss: | O64: 7.5 | P64: =0.5*P19*P17 -> 0.0007479224377 | Q64: =P64*$O$42 -> 0.2243767313
A66: Difference Between Two Approaches: | F66: =(F62+F64)-F58 -> 0.0001454293629 | G66: =F66*$E$42 -> 0.1454293629 | K66: Total Deadweight Loss: | P66: =P62+P64 -> 0.001578947368 | Q66: =P66*$O$42 -> 0.4736842105
A68: Quadratic Form Calculation of Difference: | E68: 7.35 | F68: =-(MMULT((MMULT(B70:C70,B73:C74)),(TRANSPOSE(B70:C70)))) -> 0.0001454293629 | G68: =F68*$E$42 -> 0.1454293629
A70: KEW' | B70: =L6*P22 -> -0.01973684211 | C70: =L7*P23 -> -0.02763157895
A72: Elasticities of Substitution
B73: =F11 -> -2.333333333 | C73: =F9 -> 1
B74: =F10 -> 1 | C74: =F12 -> -0.4285714286
A77: Consumer Deadweight Loss: | E77: 7.37 | F77: =-0.5*P18*P17 -> 0.0008310249307 | G77: =F77*$E$42 -> 0.8310249307
A79: Producer Deadweight Loss: | E79: 7.38 | F79: =0.5*P19*P17 -> 0.0007479224377 | G79: =F79*$E$42 -> 0.7479224377
A81: Producer Deadweight Loss at Input Level
A82: Change in Producer Deadweight Loss Input 1 | E82: 7.41 | F82: =0.5*L6*P22*P20 -> 0.0001298476454 | G82: =F82*$E$42 -> 0.1298476454
A83: Change in Producer Deadweight Loss Input 2 | E83: 7.43 | F83: =0.5*L7*P23*P21 -> 0.0005453601108 | G83: =F83*$E$42 -> 0.5453601108
A84: Total Change in Producer Surplus | F84: =SUM(F82:F83) -> 0.0006752077562 | G84: =SUM(G82:G83) -> 0.6752077562
A86: Difference Between Two Approaches: | F86: =F84-F79 -> -7.271468144e-05 | G86: =F86*$E$42 -> -0.07271468144 | N86: SUMMARY STATISTICS AND CONFIDENCE INTERVALS
A88: Quadratic Form Calculation of Difference: | E88: 7.44 | F88: =0.5*(MMULT((MMULT(B70:C70,B73:C74)),(TRANSPOSE(B70:C70)))) -> -7.271468144e-05 | G88: =F88*$E$42 -> -0.07271468144 | J88: E(q) | K88: E(pD) | L88: E(pS) | M88: E(x1) | N88: E(x2) | O88: E(w1) | P88: E(w2) | Q88: CS | R88: PS | S88: PS1 | T88: PS2
C89: ORIGINAL PARS | I89: mean | J89: =AVERAGE(J101:J1100) -> -0.03092412765 | K89: =AVERAGE(K101:K1100) -> 0.05253769376 | L89: -0.04746230624 | M89: -0.01306016531 | N89: -0.03858011151 | O89: -0.06592972217 | P89: -0.03954769942 | Q89: -51.72790629 | R89: -46.72588733 | S89: -19.64876503 | T89: -27.14874327
A90: index | B90: ηD | C90: ε1 | D90: ε2 | E90: σ12 | G90: Confid | I90: sdev | J90: =STDEV(J101:J1100) -> 0.004348187704 | K90: =STDEV(K101:K1100) -> 0.006722772982 | L90: 0.006722772982 | M90: 0.002583154562 | N90: 0.005363523177 | O90: 0.008676856189 | P90: 0.006542856879 | Q90: 6.646418097 | R90: 6.608212936 | S90: 2.579157844 | T90: 4.493936068
A91: 0 | B91: =parameters!B4 -> -0.6 | C91: =parameters!C4 -> 0.2 | D91: =parameters!D4 -> 1 | E91: =parameters!E4 -> 1 | G91: Interval | H91: CI_UP | I91: =1-I92 -> 0.975 | J91: =PERCENTILE(J101:J1100,$I91) -> -0.02246814359 | K91: =PERCENTILE(K101:K1100,$I91) -> 0.06492717589 | L91: -0.03507282411 | M91: -0.0080598834 | N91: -0.02829204582 | O91: -0.04869413051 | P91: -0.02780346979 | Q91: -39.28071191 | R91: -34.5575196 | S91: -14.52019217 | T91: -19.14984476
G92: 0.95 | H92: CI_LO | I92: =(1-G92)/2 -> 0.025 | J92: =PERCENTILE(J101:J1100,$I92) -> -0.03922066076 | K92: =PERCENTILE(K101:K1100,$I92) -> 0.03990276271 | L92: -0.06009723729 | M92: -0.01815797483 | N92: -0.04879660586 | O92: -0.08210361291 | P92: -0.052625595 | Q92: -63.96910374 | R92: -59.18244401 | S92: -24.48562243 | T92: -36.24664683
A94: index | B94: ηD | C94: ε1 | D94: ε2 | E94: σ12 | J94: E(q) | K94: E(pD) | L94: E(pS) | M94: E(x1) | N94: E(x2) | O94: E(w1) | P94: E(w2) | Q94: CS | R94: PS | S94: PS1 | T94: PS2
A95: 0 | B95: -0.6 | C95: 0.2 | D95: 1 | E95: 1 | J95: =TRANSPOSE(P17:P23) -> -0.03157894737 | K95: 0.05263157895 | L95: -0.04736842105 | M95: -0.01315789474 | N95: -0.03947368421 | O95: -0.06578947368 | P95: -0.03947368421 | Q95: =G46 -> -51.80055402 | R95: =G48 -> -46.62049861 | S95: =G50 -> -19.60699446 | T95: =G52 -> -27.08621884
G96: nreps
G97: 1001
L98: =CORREL(K100:K1100,L100:L1100) -> 1 | N98: =CORREL(M100:M1100,N100:N1100) -> 0.7235158307 | P98: =CORREL(O100:O1100,P100:P1100) -> 0.7315624201 | R98: =CORREL(Q100:Q1100,R100:R1100) -> -0.9994785141 | T98: =CORREL(S100:S1100,T100:T1100) -> 0.7288044471
A99: index | B99: ηD | C99: ε1 | D99: ε2 | E99: σ12 | J99: E(q) | K99: E(pD) | L99: E(pS) | M99: E(x1) | N99: E(x2) | O99: E(w1) | P99: E(w2) | Q99: CS | R99: PS | S99: PS1 | T99: PS2
A100: 0 | B100: -0.6 | C100: 0.2 | D100: 1 | E100: 1 | J100: -0.03157894737 | K100: 0.05263157895 | L100: -0.04736842105 | M100: -0.01315789474 | N100: -0.03947368421 | O100: -0.06578947368 | P100: -0.03947368421 | Q100: -51.80055402 | R100: -46.62049861 | S100: -19.60699446 | T100: -27.08621884
A101: 1 | B101: -0.7538322809 | C101: 0.2053247103 | D101: 0.9754942189 | E101: 0.7961665235 | J101: -0.03471204473 | K101: 0.04604743735 | L101: -0.05395256265 | M101: -0.01592326419 | N101: -0.04276437924 | O101: -0.07755162137 | P101: -0.04383868035 | Q101: -45.248237 | R101: -53.01616077 | S101: -23.08025517 | T101: -30.03091936
A102: 2 | B102: -0.6372439727 | C102: 0.1789882632 | D102: 0.8540852352 | E102: 1.038854119 | J102: -0.03047778227 | K102: 0.04782749398 | L102: -0.05217250602 | M102: -0.01244517508 | N102: -0.0382060425 | O102: -0.06953067677 | P102: -0.04473328998 | Q102: -47.09865601 | R102: -51.37745488 | S102: -20.72940482 | T102: -30.71512429
A103: 3 | B103: -0.5194068932 | C103: 0.1471996601 | D103: 0.8618573088 | E103: 0.8245153424 | J103: -0.02687815931 | K103: 0.05174779092 | L103: -0.04825220908 | M103: -0.01009838096 | N103: -0.03406949289 | O103: -0.06860328988 | P103: -0.03953031731 | Q103: -51.05234823 | R103: -47.6037438 | S103: -20.47706964 | T103: -27.19984986
A104: 4 | B104: -0.6495638107 | C104: 0.1949929987 | D104: 1.000262968 | E104: 0.7684123038 | J104: -0.03238058063 | K104: 0.04984973007 | L104: -0.05015026993 | M104: -0.01435351575 | N104: -0.04010646557 | O104: -0.07361041599 | P104: -0.04009592162 | Q104: -49.04264847 | R104: -49.3383225 | S104: -21.92463956 | T104: -27.50430814
A105: 5 | B105: -0.5925804591 | C105: 0.2132923387 | D105: 0.7627563904 | E105: 0.7133260983 | J105: -0.02824879107 | K105: 0.04767081101 | L105: -0.05232918899 | M105: -0.01509464828 | N105: -0.03388628084 | O105: -0.07076976312 | P105: -0.0444260858 | Q105: -46.99748962 | R105: -51.59007083 | S105: -21.07069223 | T105: -30.57135787
A106: 6 | B106: -0.6365880366 | C106: 0.248614762 | D106: 1.1068288 | E106: 0.7026698477 | J106: -0.03381737883 | K106: 0.05312286265 | L106: -0.04687713735 | M106: -0.0174465755 | N106: -0.0408334374 | O106: -0.07017513908 | P106: -0.03689227946 | Q106: -52.22462467 | R106: -46.08450639 | S106: -20.86889435 | T106: -25.29734212
A107: 7 | B107: -0.5394273112 | C107: 0.2434503079 | D107: 1.285394381 | E107: 0.9373795312 | J107: -0.03254035904 | K107: 0.06032389976 | L107: -0.03967610024 | M107: -0.01437654913 | N107: -0.04032484901 | O107: -0.05905332079 | P107: -0.03137157715 | Q107: -59.34241908 | R107: -39.03056297 | S107: -17.58864879 | T107: -21.51733507
A108: 8 | B108: -0.5737978142 | C108: 0.2190302433 | D108: 1.166924788 | E108: 1.113980547 | J108: -0.03280370375 | K108: 0.05716944705 | L108: -0.04283055295 | M108: -0.01322979719 | N108: -0.04119252085 | O108: -0.06040169153 | P108: -0.03530006499 | Q108: -56.23176225 | R108: -42.12805257 | S108: -18.00064214 | T108: -24.20111096
A109: 9 | B109: -0.5643942006 | C109: 0.1678656094 | D109: 0.731485974 | E109: 0.8126547504 | J109: -0.02663485788 | K109: 0.04719194111 | L109: -0.05280805889 | M109: -0.01190692487 | N109: -0.03294682917 | O109: -0.07093129388 | P109: -0.04504095818 | Q109: -46.56346579 | R109: -52.10479132 | S109: -21.15270213 | T109: -31.00928586
A110: 10 | B110: -0.5897340761 | C110: 0.1795753062 | D110: 0.8245153424 | E110: 1.172601506 | J110: -0.02910140355 | K110: 0.04934665425 | L110: -0.05065334575 | M110: -0.01175288781 | N110: -0.03653648173 | O110: -0.06544824039 | P110: -0.04431267662 | Q110: -48.6286258 | R110: -49.91630402 | S110: -19.51909124 | T110: -30.45221338
A111: 11 | B111: -0.572831886 | C111: 0.1956276632 | D111: 1.002892731 | E111: 1.164825353 | J111: -0.03099343337 | K111: 0.05410563574 | L111: -0.04589436426 | M111: -0.01214390807 | N111: -0.03907180135 | O111: -0.06207664021 | P111: -0.03895910313 | Q111: -53.26717604 | R111: -45.1831523 | S111: -18.50991411 | T111: -26.73860137
A112: 12 | B112: -0.552460466 | C112: 0.176479647 | D112: 1.052826152 | E112: 0.7588899408 | J112: -0.02997575385 | K112: 0.05425864055 | L112: -0.04574135945 | M112: -0.01220500235 | N112: -0.0375917902 | O112: -0.06915812984 | P112: -0.0357056007 | Q112: -53.44541873 | R112: -45.05579358 | S112: -20.62082768 | T112: -24.52413738
A113: 13 | B113: -0.4875928502 | C113: 0.2949878138 | D113: 1.398326065 | E113: 0.7730030384 | J113: -0.03143310815 | K113: 0.06446589227 | L113: -0.03553410773 | M113: -0.01626896073 | N113: -0.03793202848 | O113: -0.05515129767 | P113: -0.02712674062 | Q113: -63.45271058 | R113: -34.97563401 | S113: -16.41080116 | T113: -18.62857813
A114: 14 | B114: -0.8046433017 | C114: 0.1982639676 | D114: 1.114581908 | E114: 0.9077255859 | J114: -0.03777453054 | K114: 0.04694568445 | L114: -0.05305431555 | M114: -0.01540473417 | N114: -0.04736158613 | O114: -0.07769810296 | P114: -0.04249269237 | Q114: -46.05900886 | R114: -52.05226461 | S114: -23.1298931 | T114: -29.0405022
A115: 15 | B115: -0.6848155519 | C115: 0.2069176969 | D115: 1.145260119 | E115: 1.238202783 | J115: -0.03594756085 | K115: 0.05249232549 | L115: -0.04750767451 | M115: -0.01356976201 | N115: -0.04553804606 | O115: -0.06558048064 | P115: -0.03976218617 | Q115: -51.54883995 | R115: -46.653782 | S115: -19.54065746 | T115: -27.19978803
A116: 16 | B116: -0.6488877879 | C116: 0.1780410951 | D116: 0.7232732445 | E116: 1.069217689 | J116: -0.02872626051 | K116: 0.04426999714 | L116: -0.05573000286 | M116: -0.01260642915 | N116: -0.03563475967 | O116: -0.07080628856 | P116: -0.04926873756 | Q116: -43.6341414 | R116: -54.92954557 | S116: -21.1079944 | T116: -33.87362842
A117: 17 | B117: -0.8248083692 | C117: 0.1643201442 | D117: 0.8501292986 | E117: 0.6896422485 | J117: -0.03303941261 | K117: 0.04005707731 | L117: -0.05994292269 | M117: -0.01431198827 | N117: -0.04106545161 | O117: -0.08709819687 | P117: -0.04830494805 | Q117: -39.39534615 | R117: -58.95268322 | S117: -25.9424768 | T117: -33.11918106
A118: 18 | B118: -0.5449794292 | C118: 0.2450379987 | D118: 1.050124575 | E118: 1.347033685 | J118: -0.03128272684 | K118: 0.05740166539 | L118: -0.04259833461 | M118: -0.01364641955 | N118: -0.03884114425 | O118: -0.05569103414 | P118: -0.03698717767 | Q118: -56.50382508 | R118: -41.93203858 | S118: -16.59331276 | T118: -25.38820586
A119: 19 | B119: -0.5944760844 | C119: 0.2328257925 | D119: 1.239166865 | E119: 0.9563296903 | J119: -0.03400671341 | K119: 0.0572045105 | L119: -0.0427954895 | M119: -0.01467125845 | N119: -0.04229333697 | O119: -0.06301388819 | P119: -0.03413046149 | Q119: -56.2318418 | R119: -42.06782253 | S119: -18.7654925 | T119: -23.38610115
A120: 20 | B120: -0.5702488997 | C120: 0.2120868014 | D120: 0.8637729325 | E120: 1.326490888 | J120: -0.02963141345 | K120: 0.05196224572 | L120: -0.04803775428 | M120: -0.01286834675 | N120: -0.03681558489 | O120: -0.06067490606 | P120: -0.04262183209 | Q120: -51.19238833 | R120: -47.326041 | S120: -18.08535396 | T120: -29.28608077
A121: 21 | B121: -0.482496909 | C121: 0.1901907894 | D121: 0.7107337026 | E121: 0.8738202134 | J121: -0.02474448709 | K121: 0.05128423961 | L121: -0.04871576039 | M121: -0.01203217847 | N121: -0.03019261936 | O121: -0.06326372853 | P121: -0.0424809169 | Q121: -50.64973851 | R121: -48.11303714 | S121: -18.86493849 | T121: -29.28772828
A122: 22 | B122: -0.5446353516 | C122: 0.2682144339 | D122: 1.098044337 | E122: 0.868202728 | J122: -0.03145749618 | K122: 0.05775882174 | L122: -0.04224117826 | M122: -0.01608020904 | N122: -0.0380477621 | O122: -0.05995281017 | P122: -0.03465047887 | Q122: -56.85034778 | R122: -41.57677741 | S122: -17.84123499 | T122: -23.7939046
A123: 23 | B123: -0.6612740814 | C123: 0.1710786444 | D123: 1.146570727 | E123: 0.7158743555 | J123: -0.03363471555 | K123: 0.05086350197 | L123: -0.04913649803 | M123: -0.01327237009 | N123: -0.04236143503 | O123: -0.07758051939 | P123: -0.03694620316 | Q123: -50.00811226 | R123: -48.31015196 | S123: -23.11970421 | T123: -25.31455925
A124: 24 | B124: -0.6217119071 | C124: 0.2149525234 | D124: 0.957937268 | E124: 1.256387135 | J124: -0.03216912399 | K124: 0.05174281468 | L124: -0.04825718532 | M124: -0.01355726581 | N124: -0.04014563464 | O124: -0.06307097771 | P124: -0.04190841716 | Q124: -50.91055417 | R124: -47.48098963 | S124: -18.79303281 | T124: -28.74703801
A125: 25 | B125: -0.6465315731 | C125: 0.08895896019 | D125: 0.4726286343 | E125: 1.150534813 | J125: -0.02205363245 | K125: 0.03411068131 | L125: -0.06588931869 | M125: -0.00702356498 | N125: -0.02849508993 | O125: -0.07895286731 | P125: -0.060290655 | Q125: -33.7345491 | R125: -65.16276928 | S125: -23.6026806 | T125: -41.60216282
A126: 26 | B126: -0.7435001191 | C126: 0.1413515413 | D126: 0.5982606413 | E126: 1.102123469 | J126: -0.02722089693 | K126: 0.03661182592 | L126: -0.06338817408 | M126: -0.01103581468 | N126: -0.03415736075 | O126: -0.07807353621 | P126: -0.05709444746 | Q126: -36.11352255 | R126: -62.52543261 | S126: -23.2928201 | T126: -39.28354475
A127: 27 | B127: -0.4415989804 | C127: 0.1647579373 | D127: 0.828114509 | E127: 0.8049461364 | J127: -0.02449448049 | K127: 0.05546770164 | L127: -0.04453229836 | M127: -0.0102521894 | N127: -0.03059831953 | O127: -0.06222576932 | P127: -0.03694938224 | Q127: -54.78837537 | R127: -43.98690061 | S127: -18.57203824 | T127: -25.46886141
A128: 28 | B128: -0.717503091 | C128: 0.237621051 | D128: 1.140713507 | E128: 1.421078035 | J128: -0.03739593564 | K128: 0.0521195464 | L128: -0.0478804536 | M128: -0.01510475303 | N128: -0.04694929962 | O128: -0.06356656096 | P128: -0.04115783616 | Q128: -51.1450168 | R128: -46.98518642 | S128: -18.92594471 | T128: -28.13416926
A129: 29 | B129: -0.5326910658 | C129: 0.2361213342 | D129: 1.324783655 | E129: 1.316573728 | J129: -0.03297791976 | K129: 0.06190815254 | L129: -0.03809184746 | M129: -0.01264153351 | N129: -0.04169351387 | O129: -0.05353829441 | P129: -0.03147194163 | Q129: -60.8873515 | R129: -37.46375252 | S129: -15.9599674 | T129: -21.5710976
A130: 30 | B130: -0.3093264339 | C130: 0.2860451446 | D130: 1.235339702 | E130: 0.878132536 | J130: -0.0224596749 | K130: 0.07260832711 | L130: -0.02739167289 | M130: -0.01142855901 | N130: -0.027187296 | O130: -0.03995368993 | P130: -0.02200795129 | Q130: -71.7929474 | R130: -27.08406885 | S130: -11.91761501 | T130: -15.19614807
A131: 31 | B131: -0.4128691364 | C131: 0.2309098703 | D131: 1.174039226 | E131: 0.7674811105 | J131: -0.02656902322 | K131: 0.06435216605 | L131: -0.03564783395 | M131: -0.01247259053 | N131: -0.03261035152 | O131: -0.05401497354 | P131: -0.0277762027 | Q131: -63.49727895 | R131: -35.17426989 | S131: -16.10343607 | T131: -19.12631478
A132: 32 | B132: -0.5316116717 | C132: 0.1727545865 | D132: 0.5647859458 | E132: 0.7529343966 | J132: -0.02334526166 | K132: 0.04391412549 | L132: -0.05608587451 | M132: -0.01223764344 | N132: -0.02810566947 | O132: -0.07083831281 | P132: -0.04976340096 | Q132: -43.40153211 | R132: -55.4312048 | S132: -21.12145974 | T132: -34.34485888
A133: 33 | B133: -0.4696490763 | C133: 0.247833373 | D133: 1.153205397 | E133: 0.849465187 | J133: -0.02896645447 | K133: 0.06167680495 | L133: -0.03832319505 | M133: -0.01389492052 | N133: -0.03542568331 | O133: -0.05606557483 | P133: -0.03071931801 | Q133: -60.78352577 | R133: -37.76815151 | S133: -16.70281844 | T133: -21.12263411
A134: 34 | B134: -0.6976447301 | C134: 0.1859353834 | D134: 1.083735213 | E134: 0.7861817957 | J134: -0.03438533794 | K134: 0.04928774841 | L134: -0.05071225159 | M134: -0.01420252435 | N134: -0.04303511519 | O134: -0.07638419375 | P134: -0.03970999066 | Q134: -48.44036047 | R134: -49.84037263 | S134: -22.75253087 | T134: -27.19887005
A135: 35 | B135: -0.5708956626 | C135: 0.1996318404 | D135: 0.8266805882 | E135: 0.8337767507 | J135: -0.02854664372 | K135: 0.05000325908 | L135: -0.04999674092 | M135: -0.01356742729 | N135: -0.03496630791 | O135: -0.06796224119 | P135: -0.04229724081 | Q135: -49.28954647 | R135: -49.28312135 | S135: -20.25036144 | T135: -29.09042614
A136: 36 | B136: -0.666234035 | C136: 0.1935078882 | D136: 1.02027674 | E136: 0.7792580248 | J136: -0.03301989623 | K136: 0.04956200749 | L136: -0.05043799251 | M136: -0.01438710481 | N136: -0.04100537827 | O136: -0.07434893193 | P136: -0.04019044704 | Q136: -48.74374132 | R136: -49.60526387 | S136: -22.1442297 | T136: -27.55650436
A137: 37 | B137: -0.4164735461 | C137: 0.2476405565 | D137: 1.159300502 | E137: 1.089984262 | J137: -0.0271198565 | K137: 0.06511783701 | L137: -0.03488216299 | M137: -0.01205982416 | N137: -0.03357415607 | O137: -0.04869890591 | P137: -0.02896070174 | Q137: -64.23484381 | R137: -34.40916336 | S137: -14.52157674 | T137: -19.93217533
A138: 38 | B138: -0.4776999141 | C138: 0.2123052973 | D138: 0.9471738477 | E138: 0.881791602 | J138: -0.02736140886 | K138: 0.05727739959 | L138: -0.04272260041 | M138: -0.01261956648 | N138: -0.03367934131 | O138: -0.05944065755 | P138: -0.03555771878 | Q138: -56.49380441 | R138: -42.13812515 | S138: -17.71967997 | T138: -24.47125696
A139: 39 | B139: -0.5473777326 | C139: 0.272931761 | D139: 1.430225723 | E139: 0.7801361499 | J139: -0.03377860188 | K139: 0.06170985751 | L139: -0.03829014249 | M139: -0.01649669585 | N139: -0.04118513304 | O139: -0.06044256554 | P139: -0.0287962469 | Q139: -60.66762116 | R139: -37.64344875 | S139: -17.98320427 | T139: -19.74228079
A140: 40 | B140: -0.8501116172 | C140: 0.2367159032 | D140: 1.125560781 | E140: 1.001840798 | J140: -0.03980902173 | K140: 0.04682799403 | L140: -0.05317200597 | M140: -0.01778946206 | N140: -0.04924597588 | O140: -0.07515110656 | P140: -0.04375239144 | Q140: -45.89590571 | R140: -52.1136432 | S140: -22.3447973 | T140: -29.87255378
A141: 41 | B141: -0.6749656655 | C141: 0.2534748522 | D141: 1.246059405 | E141: 1.023447745 | J141: -0.03695896558 | K141: 0.05475680834 | L141: -0.04524319166 | M141: -0.01652807986 | N141: -0.04571505946 | O141: -0.06520599466 | P141: -0.03668770467 | Q141: -53.74493084 | R141: -44.40712088 | S141: -19.40013892 | T141: -25.09438006
A142: 42 | B142: -0.7429216695 | C142: 0.1912659381 | D142: 1.060434007 | E142: 0.4726286343 | J142: -0.03403541453 | K142: 0.04581292474 | L142: -0.05418707526 | M142: -0.017183761 | N142: -0.04125755176 | O142: -0.08984224362 | P142: -0.03890628883 | Q142: -45.03329379 | R142: -53.26493548 | S142: -26.72109894 | T142: -26.6725898
A143: 43 | B143: -0.5140176206 | C143: 0.1848245674 | D143: 0.8553932221 | E143: 1.092274414 | J143: -0.02747717166 | K143: 0.05345569988 | L143: -0.04654430012 | M143: -0.01133410968 | N143: -0.0343956268 | O143: -0.06132360995 | P143: -0.04021031019 | Q143: -52.72129416 | R143: -45.90484726 | S143: -18.29282571 | T143: -27.66314655
A144: 44 | B144: -0.5197865785 | C144: 0.188566945 | D144: 1.221623859 | E144: 1.221623859 | J144: -0.03121494339 | K144: 0.06005338475 | L144: -0.03994661525 | M144: -0.01069934936 | N144: -0.04000734082 | O144: -0.05674032297 | P144: -0.03274931194 | Q144: -59.11610325 | R144: -39.32314958 | S144: -16.93103421 | T144: -22.46594385
A145: 45 | B145: -0.594160235 | C145: 0.1245309654 | D145: 0.7403913103 | E145: 1.45242631 | J145: -0.02745584544 | K145: 0.04620949674 | L145: -0.05379050326 | M145: -0.008337766517 | N145: -0.03564930784 | O145: -0.06695335964 | P145: -0.0481492791 | Q145: -45.57513634 | R145: -53.05207139 | S145: -20.00227167 | T145: -33.1037244
A146: 46 | B146: -0.4985760205 | C146: 0.1732621928 | D146: 0.8372587832 | E146: 1.123094679 | J146: -0.02672820182 | K146: 0.05360908009 | L146: -0.04639091991 | M146: -0.01053582478 | N146: -0.03366779197 | O146: -0.06080856193 | P146: -0.04021193047 | Q146: -52.89264294 | R146: -45.77094697 | S146: -18.14646833 | T146: -27.67450491
A147: 47 | B147: -0.6485502547 | C147: 0.1738916891 | D147: 0.8775194083 | E147: 0.8913941339 | J147: -0.03075619678 | K147: 0.04742299699 | L147: -0.05257700301 | M147: -0.01267077746 | N147: -0.03850709077 | O147: -0.07286591745 | P147: -0.04388175396 | Q147: -46.69372148 | R147: -51.76846868 | S147: -21.72128506 | T147: -30.12581223
A148: 48 | B148: -0.7223000859 | C148: 0.1862668715 | D148: 1.069217689 | E148: 1.128665982 | J148: -0.03556686989 | K148: 0.04924112649 | L148: -0.05075887351 | M148: -0.01315361763 | N148: -0.04517254943 | O148: -0.07061705353 | P148: -0.04224822493 | Q148: -48.36545012 | R148: -49.85620638 | S148: -21.0457856 | T148: -28.90579644
A149: 49 | B149: -0.5052387842 | C149: 0.2568251289 | D149: 1.145914765 | E149: 1.118815936 | J149: -0.03063330124 | K149: 0.06063133353 | L149: -0.03936866647 | M149: -0.0139422968 | N149: -0.03778658886 | O149: -0.0542871208 | P149: -0.03297504319 | Q149: -59.70266458 | R149: -38.76567036 | S149: -16.17260317 | T149: -22.64642519
A150: 50 | B150: -0.4173503992 | C150: 0.1649030685 | D150: 0.7382091719 | E150: 0.9849993958 | J150: -0.02303306401 | K150: 0.05518879114 | L150: -0.04481120886 | M150: -0.009632888064 | N150: -0.02877599657 | O150: -0.05841545675 | P150: -0.0389808169 | Q150: -54.55320766 | R150: -44.29513914 | S150: -17.44023059 | T150: -26.89397268
A151: 51 | B151: -0.3523048588 | C151: 0.1534962221 | D151: 1.034056212 | E151: 1.149870701 | J151: -0.02304186063 | K151: 0.06540318719 | L151: -0.03459681281 | M151: -0.00739868706 | N151: -0.02974607787 | O151: -0.04820110201 | P151: -0.02876640315 | Q151: -64.64968163 | R151: -34.19822534 | S151: -14.40683687 | T151: -19.83699152
A152: 52 | B152: -0.7213272517 | C152: 0.2364177568 | D152: 1.07531965 | E152: 0.7280177931 | J152: -0.03557977418 | K152: 0.04932542628 | L152: -0.05067457372 | M152: -0.01776542998 | N152: -0.04321449312 | O152: -0.07514422867 | P152: -0.04018757874 | Q152: -48.44793252 | R152: -49.77307877 | S152: -22.34302317 | T152: -27.52346507
A153: 53 | B153: -0.5182637595 | C153: 0.1974214619 | D153: 1.195053864 | E153: 0.9902670584 | J153: -0.03073460631 | K153: 0.0593030204 | L153: -0.0406969796 | M153: -0.01180775007 | N153: -0.03884611612 | O153: -0.05980986038 | P153: -0.03250574497 | Q153: -58.39169291 | R153: -40.07157677 | S153: -17.83702513 | T153: -22.3120688
A154: 54 | B154: -0.6303985688 | C154: 0.1941451586 | D154: 0.7509049634 | E154: 1.04367031 | J154: -0.02901389609 | K154: 0.04602468585 | L154: -0.05397531415 | M154: -0.01338614437 | N154: -0.03571150397 | O154: -0.06894915366 | P154: -0.04755795436 | Q154: -45.35700813 | R154: -53.19229707 | S154: -20.5463016 | T154: -32.69613992
A155: 55 | B155: -0.6482130365 | C155: 0.1189430518 | D155: 0.7067577064 | E155: 1.167628076 | J155: -0.02760515653 | K155: 0.04258654944 | L155: -0.05741345056 | M155: -0.008749685824 | N155: -0.03568607254 | O155: -0.07356197516 | P155: -0.0504926543 | Q155: -41.99874526 | R155: -56.62099691 | S155: -21.97204592 | T155: -34.71419843
A156: 56 | B156: -0.5124511411 | C156: 0.1674517566 | D156: 0.8406994979 | E156: 0.642283531 | J156: -0.02640281501 | K156: 0.05152259969 | L156: -0.04847740031 | M156: -0.01189896907 | N156: -0.03261874898 | O156: -0.07105908774 | P156: -0.03879953427 | Q156: -50.84242886 | R156: -47.83743039 | S156: -21.19089684 | T156: -26.71671669
A157: 57 | B157: -0.4742384765 | C157: 0.2019465883 | D157: 1.289266297 | E157: 1.209602539 | J157: -0.03004932939 | K157: 0.06336333065 | L157: -0.03663666935 | M157: -0.01063922293 | N157: -0.03836794645 | O157: -0.05268335067 | P157: -0.02975952022 | Q157: -62.41131785 | R157: -36.08621568 | S157: -15.72092871 | T157: -20.43203007
A158: 58 | B158: -0.5442908987 | C158: 0.2790067399 | D158: 1.300121799 | E158: 0.8830039713 | J158: -0.03309994386 | K158: 0.0608129659 | L158: -0.0391870341 | M158: -0.01625577462 | N158: -0.04031887354 | O158: -0.05826301767 | P158: -0.03101161257 | Q158: -59.80651302 | R158: -38.53848979 | S158: -17.33683873 | T158: -21.27050515
A159: 59 | B159: -0.6411993855 | C159: 0.1388245154 | D159: 0.8547398812 | E159: 1.076993644 | J159: -0.03002698412 | K159: 0.04682940253 | L159: -0.05317059747 | M159: -0.009967101892 | N159: -0.03862407651 | O159: -0.07179641049 | P159: -0.04518810618 | Q159: -46.12632966 | R159: -52.37232113 | S159: -21.43158283 | T159: -31.02080222
A160: 60 | B160: -0.6997339496 | C160: 0.1582461745 | D160: 0.9077255859 | E160: 0.9318859762 | J160: -0.03210319036 | K160: 0.0458791379 | L160: -0.0541208621 | M160: -0.01198136334 | N160: -0.04072683052 | O160: -0.07571344696 | P160: -0.04486689716 | Q160: -45.14270455 | R160: -53.25213593 | S160: -22.57796154 | T160: -30.76727773
A161: 61 | B161: -0.6455262978 | C161: 0.1781600408 | D161: 0.957401659 | E161: 1.119424386 | J161: -0.03214662453 | K161: 0.04979909361 | L161: -0.05020090639 | M161: -0.01212957433 | N161: -0.04072536034 | O161: -0.0680824627 | P161: -0.04253738225 | Q161: -48.99865723 | R161: -49.39401154 | S161: -20.30086712 | T161: -29.169845
A162: 62 | B162: -0.7400727466 | C162: 0.1451326577 | D162: 0.9944770989 | E162: 0.9252373829 | J162: -0.03389476562 | K162: 0.04579923497 | L162: -0.05420076503 | M162: -0.01139552938 | N162: -0.04353729544 | O162: -0.07851802313 | P162: -0.04377908298 | Q162: -45.0230578 | R162: -53.28220391 | S162: -23.42119377 | T162: -29.97825008
A163: 63 | B163: -0.6352788223 | C163: 0.1757489425 | D163: 0.8534292727 | E163: 1.205466592 | J163: -0.03057022558 | K163: 0.04812095809 | L163: -0.05187904191 | M163: -0.0118473556 | N163: -0.03859431272 | O163: -0.0674106793 | P163: -0.04522262588 | Q163: -47.38542382 | R163: -51.0860649 | S163: -20.10340805 | T163: -31.04497046
A164: 64 | B164: -0.6539905573 | C164: 0.2734152236 | D164: 1.343025726 | E164: 0.8237896866 | J164: -0.03701250075 | K164: 0.05659485497 | L164: -0.04340514503 | M164: -0.01813354102 | N164: -0.04510348349 | O164: -0.06632235318 | P164: -0.03358348439 | Q164: -55.54749642 | R164: -42.60187854 | S164: -19.71630709 | T164: -22.97828282
A165: 65 | B165: -0.6014200549 | C165: 0.15602723 | D165: 0.8769053213 | E165: 0.6353411951 | J165: -0.02879177174 | K165: 0.04787298247 | L165: -0.05212701753 | M165: -0.01220629835 | N165: -0.03589983177 | O165: -0.07823184675 | P165: -0.04093923357 | Q165: -47.18380848 | R165: -51.37660293 | S165: -23.32631584 | T165: -28.14306444
A166: 66 | B166: -0.7128631531 | C166: 0.1689552919 | D166: 0.8884164324 | E166: 1.126179787 | J166: -0.03259778659 | K166: 0.0457279724 | L166: -0.0542720276 | M166: -0.01222584923 | N166: -0.04132861689 | O166: -0.072361446 | P166: -0.04651941971 | Q166: -44.98265706 | R166: -53.38745361 | S166: -21.57573178 | T166: -31.89068965
A167: 67 | B167: -0.6768257341 | C167: 0.1439236461 | D167: 0.6112261174 | E167: 1.059888321 | J167: -0.02655153557 | K167: 0.03922950065 | L167: -0.06077049935 | M167: -0.01087504356 | N167: -0.03327003215 | O167: -0.07556120107 | P167: -0.05443162719 | Q167: -38.70869891 | R167: -59.96372431 | S167: -22.54510062 | T167: -37.46830934
A168: 68 | B168: -0.6329958432 | C168: 0.1600397212 | D168: 1.120033756 | E168: 1.095151217 | J168: -0.0333893294 | K168: 0.05274810215 | L168: -0.04725189785 | M168: -0.01085520122 | N168: -0.04304681291 | O168: -0.06782816881 | P168: -0.03843349601 | Q168: -51.86749027 | R168: -46.46304326 | S168: -20.23800738 | T168: -26.32439338
A169: 69 | B169: -0.5884675859 | C169: 0.1692246717 | D169: 0.8937620024 | E169: 0.9173936488 | J169: -0.02950792805 | K169: 0.05014367614 | L169: -0.04985632386 | M169: -0.01171841672 | N169: -0.03713200433 | O169: -0.06924768476 | P169: -0.04154574062 | Q169: -49.40385814 | R169: -49.12074545 | S169: -20.65258444 | T169: -28.54208162
A170: 70 | B170: -0.6499023061 | C170: 0.1871471344 | D170: 1.015000604 | E170: 0.7326257389 | J170: -0.03233268828 | K170: 0.04975007471 | L170: -0.05024992529 | M170: -0.014069427 | N170: -0.04015980026 | O170: -0.07517842604 | P170: -0.03956628212 | Q170: -48.94579788 | R170: -49.43756771 | S170: -22.3948702 | T170: -27.14025659
A171: 71 | B171: -0.5786078213 | C171: 0.2670794521 | D171: 1.216387967 | E171: 1.121867464 | J171: -0.03389836196 | K171: 0.05858607628 | L171: -0.04141392372 | M171: -0.01545222238 | N171: -0.04180385035 | O171: -0.05785627558 | P171: -0.0343672015 | Q171: -57.59309027 | R171: -40.71199163 | S171: -17.22278147 | T171: -23.55420257
A172: 72 | B172: -0.636915892 | C172: 0.1916945263 | D172: 0.8902054753 | E172: 1.017109873 | J172: -0.03111688219 | K172: 0.0488555594 | L172: -0.0511444406 | M172: -0.01318392982 | N172: -0.03880243321 | O172: -0.06877572395 | P172: -0.04358817631 | Q172: -48.09544306 | R172: -50.34871283 | S172: -20.49670704 | T172: -29.91975886
A173: 73 | B173: -0.8611284325 | C173: 0.299126528 | D173: 1.484455943 | E173: 0.9728466336 | J173: -0.04511427223 | K173: 0.05238971392 | L173: -0.04761028608 | M173: -0.02150176698 | N173: -0.05523391734 | O173: -0.07188184588 | P173: -0.03720818902 | Q173: -51.20795201 | R173: -46.53633437 | S173: -21.33271576 | T173: -25.3264284
A174: 74 | B174: -0.649225639 | C174: 0.2374690499 | D174: 1.377345173 | E174: 1.055535618 | J174: -0.0371510397 | K174: 0.0572236176 | L174: -0.0427763824 | M174: -0.01511550886 | N174: -0.04659483864 | O174: -0.06365254277 | P174: -0.03382945652 | Q174: -56.16065916 | R174: -41.98178886 | S174: -18.95144174 | T174: -23.12892224
A175: 75 | B175: -0.5833899983 | C175: 0.2851051643 | D175: 1.45242631 | E175: 1.294592074 | J175: -0.03620058587 | K175: 0.06205211946 | L175: -0.03794788054 | M175: -0.01540000326 | N175: -0.04511512127 | O175: -0.0540151677 | P175: -0.03106190033 | Q175: -60.92895792 | R175: -37.26101278 | S175: -16.07977524 | T175: -21.25285374
A176: 76 | B176: -0.7751429607 | C176: 0.2431055832 | D176: 1.169748603 | E176: 1.07253919 | J176: -0.0388435231 | K176: 0.05011143113 | L176: -0.04988856887 | M176: -0.01706466402 | N176: -0.04817731984 | O176: -0.07019445539 | P176: -0.04118604607 | Q176: -49.13817887 | R176: -48.91964498 | S176: -20.8786599 | T176: -28.13575059
A177: 77 | B177: -0.4810751101 | C177: 0.2480271864 | D177: 1.063715985 | E177: 0.5744741784 | J177: -0.02831268664 | K177: 0.05885294427 | L177: -0.04114705573 | M177: -0.01566582574 | N177: -0.03373276989 | O177: -0.06316172824 | P177: -0.03171219609 | Q177: -58.01980178 | R177: -40.56456389 | S177: -18.80009638 | T177: -21.82412819
A178: 78 | B178: -0.6619772073 | C178: 0.2229163816 | D178: 0.9971072686 | E178: 0.939565993 | J178: -0.03341157715 | K178: 0.05047239811 | L178: -0.04952760189 | M178: -0.01533036507 | N178: -0.04116066803 | O178: -0.06877181912 | P178: -0.04128008022 | Q178: -49.6292169 | R178: -48.70020425 | S178: -20.47340117 | T178: -28.30136567
A179: 79 | B179: -0.6169280784 | C179: 0.2104570441 | D179: 0.8156718302 | E179: 1.129290118 | J179: -0.02998864174 | K179: 0.04860962369 | L179: -0.05139037631 | M179: -0.01382732584 | N179: -0.03691491998 | O179: -0.06570141618 | P179: -0.04525707351 | Q179: -47.8807554 | R179: -50.61981252 | S179: -19.57415362 | T179: -31.09522002
A180: 80 | B180: -0.6867640668 | C180: 0.2335256151 | D180: 0.9269056505 | E180: 1.194271827 | J180: -0.03358209222 | K180: 0.04889902347 | L180: -0.05110097653 | M180: -0.01547417439 | N180: -0.04134262844 | O180: -0.06626328499 | P180: -0.04460284433 | Q180: -48.07795772 | R180: -50.24293767 | S180: -19.72518005 | T180: -30.57659144
A181: 81 | B181: -0.6891279789 | C181: 0.2777547765 | D181: 1.186587563 | E181: 0.8487996744 | J181: -0.03680558464 | K181: 0.05340892514 | L181: -0.04659107486 | M181: -0.01882479198 | N181: -0.04451163863 | O181: -0.06777486321 | P181: -0.03751230843 | Q181: -52.42605178 | R181: -45.73366899 | S181: -20.14108181 | T181: -25.67420889
A182: 82 | B182: -0.4717090774 | C182: 0.2380798866 | D182: 1.265118245 | E182: 0.8547398812 | J182: -0.02965874936 | K182: 0.06287508716 | L182: -0.03712491284 | M182: -0.01337451725 | N182: -0.03663770598 | O182: -0.05617659449 | P182: -0.02895990642 | Q182: -61.94268894 | R182: -36.5743736 | S182: -16.74027812 | T182: -19.9005759
A183: 83 | B183: -0.6147034687 | C183: 0.1723714618 | D183: 1.013419552 | E183: 1.267374261 | J183: -0.03213378585 | K183: 0.05227526358 | L183: -0.04772473642 | M183: -0.01108866165 | N183: -0.04115312479 | O183: -0.06433003199 | P183: -0.04060818117 | Q183: -51.43536252 | R183: -46.95794819 | S183: -19.1920095 | T183: -27.84082308
A184: 84 | B184: -0.5504361893 | C184: 0.1964725151 | D184: 1.054450856 | E184: 0.9007936886 | J184: -0.03047857883 | K184: 0.05537168417 | L184: -0.04462831583 | M184: -0.0126556126 | N184: -0.03811699292 | O184: -0.06441416297 | P184: -0.03614866706 | Q184: -54.52785905 | R184: -43.94821201 | S184: -19.20196879 | T184: -24.82180947
A185: 85 | B185: -0.711047428 | C185: 0.2046895491 | D185: 1.180606671 | E185: 0.9654115157 | J185: -0.03652648821 | K185: 0.05136997445 | L185: -0.04863002555 | M185: -0.01460245883 | N185: -0.04592250081 | O185: -0.07133954271 | P185: -0.03889737533 | Q185: -50.43179207 | R185: -47.74188352 | S185: -21.2456029 | T185: -26.60297007
A186: 86 | B186: -0.7114993018 | C186: 0.2575928909 | D186: 1.256387135 | E186: 0.8919872723 | J186: -0.0379259351 | K186: 0.0533042478 | L186: -0.0466957522 | M186: -0.01783147908 | N186: -0.04653784482 | O186: -0.06922349069 | P186: -0.03704100713 | Q186: -52.29344108 | R186: -45.81026216 | S186: -20.58189362 | T186: -25.32537196
A187: 87 | B187: -0.4146912952 | C187: 0.2280137976 | D187: 1.029804828 | E187: 0.8088310352 | J187: -0.02581099823 | K187: 0.06224147585 | L187: -0.03775852415 | M187: -0.01239227451 | N187: -0.03156187983 | O187: -0.05434879225 | P187: -0.03064840926 | Q187: -61.43821854 | R187: -37.27123155 | S187: -16.2036119 | T187: -21.11532399
A188: 88 | B188: -0.6943530707 | C188: 0.1983692306 | D188: 1.251147813 | E188: 0.981834924 | J188: -0.03672857119 | K188: 0.05289610249 | L188: -0.04710389751 | M188: -0.01394678068 | N188: -0.04649219569 | O188: -0.07030717737 | P188: -0.03715963472 | Q188: -51.92470335 | R188: -46.23886809 | S188: -20.94506939 | T188: -25.40707275
A189: 89 | B189: -0.6658767148 | C189: 0.2406042666 | D189: 1.188105255 | E189: 1.070323083 | J189: -0.03604146805 | K189: 0.05412633787 | L189: -0.04587366213 | M189: -0.01562658201 | N189: -0.04479070492 | O189: -0.06494723568 | P189: -0.03769927347 | Q189: -53.15094153 | R189: -45.04698507 | S189: -19.33193521 | T189: -25.79848946
A190: 90 | B190: -0.6577838805 | C190: 0.2092709537 | D190: 0.943378284 | E190: 1.019748659 | J190: -0.03256789454 | K190: 0.04951154247 | L190: -0.05048845753 | M190: -0.01431217335 | N190: -0.04039177505 | O190: -0.06839063472 | P190: -0.04281609587 | Q190: -48.70529913 | R190: -49.66630615 | S190: -20.37036762 | T190: -29.36597077
A191: 91 | B191: -0.5696014312 | C191: 0.1712090539 | D191: 0.7519225502 | E191: 1.24307381 | J191: -0.02753804392 | K191: 0.0483461635 | L191: -0.0516538365 | M191: -0.01110670005 | N191: -0.03458004844 | O191: -0.06487215366 | P191: -0.04598884343 | Q191: -47.68048411 | R191: -50.94261369 | S191: -19.35356876 | T191: -31.63558665
A192: 92 | B192: -0.6745954575 | C192: 0.2088413352 | D192: 0.8193933289 | E192: 0.9094441193 | J192: -0.03107281478 | K192: 0.0460614053 | L192: -0.0539385947 | M192: -0.01496381777 | N192: -0.03797667065 | O192: -0.07165160936 | P192: -0.0463473027 | Q192: -45.34577654 | R192: -53.10058272 | S192: -21.33465556 | T192: -31.8270712
A193: 93 | B193: -0.9055960173 | C193: 0.1936141895 | D193: 0.9218879033 | E193: 0.8972909568 | J193: -0.03674483453 | K193: 0.04057530491 | L193: -0.05942469509 | M193: -0.01598495559 | N193: -0.0456419255 | O193: -0.08256086823 | P193: -0.04950919232 | Q193: -39.82983848 | R193: -58.3329198 | S193: -24.5703007 | T193: -33.86554142
A194: 94 | B194: -0.7853087048 | C194: 0.2586484587 | D194: 1.001314848 | E194: 0.9976332419 | J194: -0.03701596564 | K194: 0.04713556008 | L194: -0.05286443992 | M194: -0.01847918898 | N194: -0.04496029849 | O194: -0.07144519272 | P194: -0.04490126014 | Q194: -46.26317595 | R194: -51.88602577 | S194: -21.23552043 | T194: -30.72431118
A195: 95 | B195: -0.6175645241 | C195: 0.2054306733 | D195: 1.090555881 | E195: 0.9786667508 | J195: -0.03306117521 | K195: 0.05353477073 | L195: -0.04646522927 | M195: -0.01362517006 | N195: -0.0413908917 | O195: -0.06632490584 | P195: -0.0379539393 | Q195: -52.64980952 | R195: -45.69713172 | S195: -19.76191854 | T195: -26.01792593
A196: 96 | B196: -0.5988955212 | C196: 0.1688201556 | D196: 0.7158743555 | E196: 0.9111571672 | J196: -0.02728674278 | K196: 0.04556177467 | L196: -0.05443822533 | M196: -0.01201907852 | N196: -0.03383002747 | O196: -0.0711945708 | P196: -0.04725693442 | Q196: -44.94015845 | R196: -53.69550441 | S196: -21.23001727 | T196: -32.52030791
A197: 97 | B197: -0.5027701018 | C197: 0.1542359094 | D197: 0.9088718914 | E197: 1.241110059 | J197: -0.02753516167 | K197: 0.05476690354 | L197: -0.04523309646 | M197: -0.009249031727 | N197: -0.0353720745 | O197: -0.05996678571 | P197: -0.03891865821 | Q197: -54.01289577 | R197: -44.61034615 | S197: -17.90684051 | T197: -26.76123896
A198: 98 | B198: -0.6669501406 | C198: 0.2417538255 | D198: 1.134321845 | E198: 1.224292566 | J198: -0.03574024472 | K198: 0.05358758106 | L198: -0.04641241894 | M198: -0.01526375197 | N198: -0.04451588447 | O198: -0.06313758196 | P198: -0.03924449193 | Q198: -52.62996443 | R198: -45.58302333 | S198: -18.79671713 | T198: -26.8596932
A199: 99 | B199: -0.8232501193 | C199: 0.1317855661 | D199: 0.9379267121 | E199: 0.8323719243 | J199: -0.03412751395 | K199: 0.0414546116 | L199: -0.0585453884 | M199: -0.01132556364 | N199: -0.04389977837 | O199: -0.08593933291 | P199: -0.04680512646 | Q199: -40.74724019 | R199: -57.54638412 | S199: -25.63580317 | T199: -32.04443138
A200: 100 | B200: -0.7452535952 | C200: 0.1482943853 | D200: 0.7348817551 | E200: 1.213818204 | J200: -0.03034689365 | K200: 0.04072022442 | L200: -0.05927977558 | M200: -0.01113768229 | N200: -0.0385794128 | O200: -0.07510521904 | P200: -0.05249744267 | Q200: -40.10235826 | R200: -58.38029705 | S200: -22.406091 | T200: -36.03934769
A201: 101 | B201: -0.7969329804 | C201: 0.1925494192 | D201: 0.7878779434 | E201: 0.957401659 | J201: -0.03265534209 | K201: 0.0409762714 | L201: -0.0590237286 | M201: -0.01492987193 | N201: -0.04025197217 | O201: -0.07753787049 | P201: -0.05108909635 | Q201: -40.30722432 | R201: -58.06000857 | S201: -23.08771658 | T201: -35.04261454
A202: 102 | B202: -0.4199269204 | C202: 0.1347018224 | D202: 0.9246803496 | E202: 0.7498815414 | J202: -0.02419447866 | K202: 0.05761592668 | L202: -0.04238407332 | M202: -0.008524095417 | N202: -0.03091035719 | O202: -0.06328121823 | P202: -0.03342815407 | Q202: -56.91893303 | R202: -41.87134304 | S202: -18.9034532 | T202: -23.03806118
A203: 103 | B203: -0.5460094427 | C203: 0.1234210322 | D203: 0.7436128651 | E203: 1.282867451 | J203: -0.02628450751 | K203: 0.04813929111 | L203: -0.05186070889 | M203: -0.008145777862 | N203: -0.03405824878 | O203: -0.06599991684 | P203: -0.04580104835 | Q203: -47.50663233 | R203: -51.1791423 | S203: -19.71933195 | T203: -31.51476762
A204: 104 | B204: -0.748239362 | C204: 0.3110410398 | D204: 1.527371366 | E204: 1.226091441 | J204: -0.04278360831 | K204: 0.05717903986 | L204: -0.04282096014 | M204: -0.01928126784 | N204: -0.05285603993 | O204: -0.0619894656 | P204: -0.03460588638 | Q204: -55.95587704 | R204: -41.90494255 | S204: -18.41755436 | T204: -23.58392492
A205: 105 | B205: -0.5558100174 | C205: 0.160832303 | D205: 1.000788906 | E205: 0.833075212 | J205: -0.02952663317 | K205: 0.05312360743 | L205: -0.04687639257 | M205: -0.01109719837 | N205: -0.03742496237 | O205: -0.06899856658 | P205: -0.03739546086 | Q205: -52.33932679 | R205: -46.18434155 | S205: -20.58471636 | T205: -25.6869893
A206: 106 | B206: -0.7039916471 | C206: 0.1953104509 | D206: 1.227906613 | E206: 0.7844720838 | J206: -0.03618378936 | K206: 0.0513980379 | L206: -0.0486019621 | M206: -0.01481313487 | N206: -0.04534264129 | O206: -0.07584404621 | P206: -0.03692678319 | Q206: -50.46815001 | R206: -47.72266052 | S206: -22.58469065 | T206: -25.26272297
A207: 107 | B207: -0.6794560554 | C207: 0.2006837442 | D207: 1.064264328 | E207: 0.9179572684 | J207: -0.03427162439 | K207: 0.05043979535 | L207: -0.04956020465 | M207: -0.0143099476 | N207: -0.04282662872 | O207: -0.07130596283 | P207: -0.040240594 | Q207: -49.57546849 | R207: -48.71095029 | S207: -21.23873116 | T207: -27.56523666
A208: 108 | B208: -0.6947612158 | C208: 0.1507881189 | D208: 0.6941225769 | E208: 1.034588484 | J208: -0.02856667281 | K208: 0.04111725318 | L208: -0.05888274682 | M208: -0.01138325013 | N208: -0.03593099681 | O208: -0.07549169129 | P208: -0.05176462776 | Q208: -40.52996162 | R208: -58.04170474 | S208: -22.51860627 | T208: -35.5842553
A209: 109 | B209: -0.5928964908 | C209: 0.1705543964 | D209: 0.8118947448 | E209: 1.009206526 | J209: -0.02870725315 | K209: 0.04841865924 | L209: -0.05158134076 | M209: -0.01167572694 | N209: -0.03600647867 | O209: -0.06845749621 | P209: -0.04434870271 | Q209: -47.72367589 | R209: -50.84096146 | S209: -20.41735521 | T209: -30.48519768
A210: 110 | B210: -0.5387259186 | C210: 0.2517056147 | D210: 1.242089325 | E210: 1.247065603 | J210: -0.03267283347 | K210: 0.06064834147 | L210: -0.03935165853 | M210: -0.01372868777 | N210: -0.04079175306 | O210: -0.05454263617 | P210: -0.03284123954 | Q210: -59.65756489 | R210: -38.70879343 | S210: -16.25047103 | T210: -22.51998957
A211: 111 | B211: -0.4998451272 | C211: 0.2506449434 | D211: 0.8441007778 | E211: 1.425525822 | J211: -0.02779620316 | K211: 0.05560963115 | L211: -0.04439036885 | M211: -0.01361895475 | N211: -0.03387216676 | O211: -0.05433564532 | P211: -0.04012810751 | Q211: -54.83676284 | R211: -43.773427 | S211: -16.18969439 | T211: -27.61394617
A212: 112 | B212: -0.7506886875 | C212: 0.1325481675 | D212: 0.6998782007 | E212: 1.446248701 | J212: -0.02968564608 | K212: 0.03954454966 | L212: -0.06045545034 | M212: -0.009832768198 | N212: -0.03819402232 | O212: -0.07418260382 | P212: -0.05457238457 | Q212: -38.9575969 | R212: -59.55812079 | S212: -22.14536809 | T212: -37.47115059
A213: 113 | B213: -0.6783249326 | C213: 0.137314117 | D213: 0.5155440566 | E213: 1.391852501 | J213: -0.02451077741 | K213: 0.03613427169 | L213: -0.06386572831 | M213: -0.01018316595 | N213: -0.03065118233 | O213: -0.0741596434 | P213: -0.05945405041 | Q213: -35.69143215 | R213: -63.08302898 | S213: -22.13461603 | T213: -40.98001736
A214: 114 | B214: -0.6258805195 | C214: 0.2158465113 | D214: 1.012365901 | E214: 1.245058765 | J214: -0.03293229286 | K214: 0.05261753935 | L214: -0.04738246065 | M214: -0.01358196092 | N214: -0.04122529226 | O214: -0.06292416236 | P214: -0.04072173135 | Q214: -51.75113124 | R214: -46.60225412 | S214: -18.74905368 | T214: -27.9176441
A215: 115 | B215: -0.753195946 | C215: 0.1840412898 | D215: 1.025035007 | E215: 1.088273012 | J215: -0.03560669385 | K215: 0.04727414432 | L215: -0.05272585568 | M215: -0.01345061845 | N215: -0.04510215474 | O215: -0.07308478691 | P215: -0.04400059944 | Q215: -46.43250633 | R215: -51.78715898 | S215: -21.77798074 | T215: -30.10583696
A216: 116 | B216: -0.5919482685 | C216: 0.1360409432 | D216: 0.8872196213 | E216: 1.091700951 | J216: -0.02930378053 | K216: 0.04950395513 | L216: -0.05049604487 | M216: -0.009355375071 | N216: -0.03785309715 | O216: -0.0687688195 | P216: -0.04266485574 | Q216: -48.77862861 | R216: -49.75618236 | S216: -20.53414214 | T216: -29.30015009
A217: 117 | B217: -0.3797543293 | C217: 0.1817743783 | D217: 1.030866586 | E217: 0.974435625 | J217: -0.02422233283 | K217: 0.06378421775 | L217: -0.03621578225 | M217: -0.009356265636 | N217: -0.03059350448 | O217: -0.05147186157 | P217: -0.02967746253 | Q217: -63.01171648 | R217: -35.77716688 | S217: -15.36932081 | T217: -20.45644562
A218: 118 | B218: -0.7800730796 | C218: 0.1762368128 | D218: 1.297330152 | E218: 0.5043673601 | J218: -0.03693399393 | K218: 0.04734683826 | L218: -0.05265316174 | M218: -0.01644034685 | N218: -0.04571698553 | O218: -0.09328554341 | P218: -0.03523928388 | Q218: -46.47248434 | R218: -51.68081597 | S218: -27.75561602 | T218: -24.10363688
A219: 119 | B219: -0.6441899826 | C219: 0.2203077234 | D219: 1.048507229 | E219: 0.7637107268 | J219: -0.03315551184 | K219: 0.0514685306 | L219: -0.0485314694 | M219: -0.01572114996 | N219: -0.04062738121 | O219: -0.07135995833 | P219: -0.03874783128 | Q219: -50.61529787 | R219: -47.72692654 | S219: -21.23970841 | T219: -26.57250388
A220: 120 | B220: -0.6388878397 | C220: 0.2710993861 | D220: 1.280381769 | E220: 0.8447764594 | J220: -0.0360400783 | K220: 0.05641064997 | L220: -0.04358935003 | M220: -0.01770197419 | N220: -0.04389926577 | O220: -0.06529699104 | P220: -0.03428607531 | Q220: -55.39412785 | R220: -42.80386824 | S220: -19.41571446 | T220: -23.47345598
A221: 121 | B221: -0.6017356389 | C221: 0.2095937384 | D221: 1.183579516 | E221: 0.9918461529 | J221: -0.03354457263 | K221: 0.0557463618 | L221: -0.0442536382 | M221: -0.01350911411 | N221: -0.04213119771 | O221: -0.0644538058 | P221: -0.03559642352 | Q221: -54.81136786 | R221: -43.51140351 | S221: -19.20553467 | T221: -24.39259448
A222: 122 | B222: -0.7383965603 | C222: 0.2881071953 | D222: 1.276726755 | E222: 0.6279164678 | J222: -0.03864713404 | K222: 0.05233926607 | L222: -0.04766073393 | M222: -0.0215678815 | N222: -0.0459668137 | O222: -0.07486061387 | P222: -0.03600364252 | Q222: -51.32788476 | R222: -46.73975854 | S222: -22.21599643 | T222: -24.62330931
A223: 123 | B223: -0.4659605385 | C223: 0.2749361231 | D223: 0.9520313079 | E223: 1.091128109 | J223: -0.02777356031 | K223: 0.05960496226 | L223: -0.04039503774 | M223: -0.01446058201 | N223: -0.03347912244 | O223: -0.05259615161 | P223: -0.03516598894 | Q223: -58.77724125 | R223: -39.83408073 | S223: -15.66475984 | T223: -24.204128
A224: 124 | B224: -0.4616034397 | C224: 0.2071307262 | D224: 0.9865804475 | E224: 1.364658805 | J224: -0.0275296172 | K224: 0.05963910759 | L224: -0.04036089241 | M224: -0.0108861593 | N224: -0.03466252773 | O224: -0.05255695039 | P224: -0.03513401042 | Q224: -58.81818669 | R224: -39.80533245 | S224: -15.68126362 | T224: -24.16756553
A225: 125 | B225: -0.6156563334 | C225: 0.2803478717 | D225: 1.49563264 | E225: 0.6549875819 | J225: -0.03643267269 | K225: 0.05917696402 | L225: -0.04082303598 | M225: -0.01893430494 | N225: -0.04393197315 | O225: -0.06753860774 | P225: -0.02937350522 | Q225: -58.09897654 | R225: -40.07938982 | S225: -20.06976283 | T225: -20.10980104
A226: 126 | B226: -0.46808169 | C226: 0.1876947027 | D226: 1.049046053 | E226: 0.8592864933 | J226: -0.02757815669 | K226: 0.05891740113 | L226: -0.04108259887 | M226: -0.01127261907 | N226: -0.03456624424 | O226: -0.06005826967 | P226: -0.03295016853 | Q226: -58.10498447 | R226: -40.5161077 | S226: -17.9159288 | T226: -22.66648072
A227: 127 | B227: -0.6359329926 | C227: 0.2415877728 | D227: 0.9955292392 | E227: 1.191168965 | J227: -0.03326228539 | K227: 0.05230470156 | L227: -0.04769529844 | M227: -0.01518829086 | N227: -0.04100828305 | O227: -0.06286862402 | P227: -0.04119244461 | Q227: -51.43481461 | R227: -46.90207112 | S227: -18.71735717 | T227: -28.24348023
A228: 128 | B228: -0.5334081578 | C228: 0.2032110114 | D228: 1.33356358 | E228: 1.044743302 | J228: -0.03240145268 | K228: 0.0607442016 | L228: -0.0392557984 | M228: -0.01195433923 | N228: -0.04116450129 | O228: -0.05882722174 | P228: -0.03086804553 | Q228: -59.76010142 | R228: -38.61982595 | S228: -17.54268044 | T228: -21.16289818
A229: 129 | B229: -0.6074195409 | C229: 0.2014202704 | D229: 1.050664281 | E229: 0.7232732445 | J229: -0.03180177858 | K229: 0.05235554084 | L229: -0.04764445916 | M229: -0.01443338533 | N229: -0.03924537568 | O229: -0.07165805758 | P229: -0.03735291698 | Q229: -51.52304118 | R229: -46.88686989 | S229: -21.34227702 | T229: -25.63396665
A230: 130 | B230: -0.5827537481 | C230: 0.1562021131 | D230: 0.974435625 | E230: 0.7627563904 | J230: -0.02976079842 | K230: 0.05106925269 | L230: -0.04893074731 | M230: -0.01140259582 | N230: -0.03762859953 | O230: -0.07299898565 | P230: -0.03861578802 | Q230: -50.30932182 | R230: -48.20263825 | S230: -21.77483901 | T230: -26.5224813
... 870 more rows

Sheet parameters
A1: cv = | B1: 0.2
I2: R
B3: ηD | C3: ε1 | D3: ε2 | E3: σ12 | H3: ηD | I3: ε1 | J3: ε2 | K3: σ12 | N3: TEST | O3: C'C
A4: mean | B4: -0.6 | C4: 0.2 | D4: 1 | E4: 1 | G4: ηD | H4: 1 | I4: 0 | J4: 0 | K4: 0 | M4: =MMULT(M10:P13,H10:K13) -> 1 | N4: 0 | O4: 0 | P4: 0
A5: sdev | B5: =ABS($B$1*B4) -> 0.12 | C5: =ABS($B$1*C4) -> 0.04 | D5: 0.2 | E5: 0.2 | G5: ε1 | H5: =I4 -> 0 | I5: 1 | J5: 0.75 | K5: 0 | M5: 0 | N5: 1 | O5: 0.75 | P5: 0
A6: L-Bound (L) | B6: =B4-4*B5 -> -1.08 | C6: =MAX(C4-4*C5,0.001) -> 0.04 | D6: =MAX(D4-4*D5,0.001) -> 0.2 | E6: =MAX(E4-4*E5,0.001) -> 0.2 | G6: ε2 | H6: =J4 -> 0 | I6: =J5 -> 0.75 | J6: 1 | K6: 0 | M6: 0 | N6: 0.75 | O6: 1 | P6: 0
A7: U-Bound (U) | B7: =MIN(B4+4*B5,-0.001) -> -0.12 | C7: =C4+4*C5 -> 0.36 | D7: 1.8 | E7: 1.8 | G7: σ12 | H7: =K4 -> 0 | I7: =K5 -> 0 | J7: =K6 -> 0 | K7: 1 | M7: 0 | N7: 0 | O7: 0 | P7: 1
B9: =(B4-B6)/B5 -> 4 | C9: =(C4-C6)/C5 -> 4 | D9: 4 | E9: 4 | I9: CHOL | J9: MATRIX C | N9: TEST | O9: C'
B10: =(B7-B4)/B5 -> 4 | C10: =(C7-C4)/C5 -> 4 | D10: 4 | E10: 4 | H10: =[1]!chol(H4:K7) -> 1 | I10: 0 | J10: 0 | K10: 0 | M10: =TRANSPOSE(H10:K13) -> 1 | N10: 0 | O10: 0 | P10: 0
B11: =(B9/(B9+B10))*((B9*B10)-1) -> 7.5 | C11: =(C9/(C9+C10))*((C9*C10)-1) -> 7.5 | D11: 7.5 | E11: 7.5 | H11: 0 | I11: 1 | J11: 0.75 | K11: 0 | M11: 0 | N11: 1 | O11: 0 | P11: 0
B12: =(B10/(B9+B10))*(B9*B10-1) -> 7.5 | C12: =(C10/(C9+C10))*(C9*C10-1) -> 7.5 | D12: 7.5 | E12: 7.5 | H12: 0 | I12: 0 | J12: 0.6614378278 | K12: 0 | M12: 0 | N12: 0.75 | O12: 0.6614378278 | P12: 0 | Y12: COR(E1,E2) | Z12: =CORREL(Y18:Y1017,Z18:Z1017) -> 0.7222680026
H13: 0 | I13: 0 | J13: 0 | K13: 1 | M13: 0 | N13: 0 | O13: 0 | P13: 1
A14: average | B14: =AVERAGE(B18:B1017) -> -0.6 | C14: =AVERAGE(C18:C1017) -> 0.2 | D14: 1 | E14: 1 | V14: average | X14: =AVERAGE(X18:X1017) -> -0.6 | Y14: =AVERAGE(Y18:Y1017) -> 0.2 | Z14: 1 | AA14: 1
A15: sdev | B15: =STDEV(B18:B1017) -> 0.1195542418 | C15: =STDEV(C18:C1017) -> 0.03985141394 | D15: 0.1992570697 | E15: 0.1992570697 | N15: cor(zc2,zc3) | V15: sdev | X15: =STDEV(X18:X1017) -> 0.1195542418 | Y15: =STDEV(Y18:Y1017) -> 0.03985141394 | Z15: 0.1992570697 | AA15: 0.1992570697
C16: sorted simulated values | N16: =CORREL(N18:N1017,O18:O1017) -> 0.7243879187 | Y16: CORRELATED simulated values
A17: index | B17: ηD | C17: ε1 | D17: ε2 | E17: σ12 | I17: ZI | N17: ZC | S17: RANKS | X17: ηD | Y17: ε1 | Z17: ε2 | AA17: σ12
A18: 1 | B18: =BETAINV($A18/1001,B$11,B$12,B$6,B$7) -> -0.9331231194 | C18: =BETAINV($A18/1001,C$11,C$12,C$6,C$7) -> 0.08895896019 | D18: 0.4447948009 | E18: 0.4447948009 | H18: -1.276300736 | I18: 0.1991725185 | J18: -0.3463401299 | K18: -0.9830728231 | M18: =MMULT(H18:K1017,H10:K13) -> -1.276300736 | N18: 0.1991725185 | O18: -0.07970307434 | P18: -0.9830728231 | R18: =RANK(M18,M$18:M$1017,1)+COUNTIF(M$18:M18,M18)-1 -> 105 | S18: =RANK(N18,N$18:N$1017,1)+COUNTIF(N$18:N18,N18)-1 -> 551 | T18: =RANK(O18,O$18:O$1017,1)+COUNTIF(O$18:O18,O18)-1 -> 454 | U18: =RANK(P18,P$18:P$1017,1)+COUNTIF(P$18:P18,P18)-1 -> 162 | X18: =LOOKUP(R18,$A$18:$A$1017,B$18:B$1017) -> -0.7538322809 | Y18: =LOOKUP(S18,$A$18:$A$1017,C$18:C$1017) -> 0.2053247103 | Z18: =LOOKUP(T18,$A$18:$A$1017,D$18:D$1017) -> 0.9754942189 | AA18: =LOOKUP(U18,$A$18:$A$1017,E$18:E$1017) -> 0.7961665235
A19: =A18+1 -> 2 | B19: =BETAINV($A19/1001,B$11,B$12,B$6,B$7) -> -0.9164228194 | C19: 0.09452572686 | D19: 0.4726286343 | E19: 0.4726286343 | H19: -0.3561854101 | I19: -0.4841854206 | J19: -0.4268144949 | K19: 0.1575858732 | M19: -0.3561854101 | N19: -0.4841854206 | O19: -0.6454503178 | P19: 0.1575858732 | R19: =RANK(M19,M$18:M$1017,1)+COUNTIF(M$18:M19,M19)-1 -> 384 | S19: =RANK(N19,N$18:N$1017,1)+COUNTIF(N$18:N19,N19)-1 -> 308 | T19: =RANK(O19,O$18:O$1017,1)+COUNTIF(O$18:O19,O19)-1 -> 242 | U19: =RANK(P19,P$18:P$1017,1)+COUNTIF(P$18:P19,P19)-1 -> 574 | X19: =LOOKUP(R19,$A$18:$A$1017,B$18:B$1017) -> -0.6372439727 | Y19: 0.1789882632 | Z19: 0.8540852352 | AA19: 1.038854119
A20: =A19+1 -> 3 | B20: -0.9055960173 | C20: 0.0981346609 | D20: 0.4906733045 | E20: 0.4906733045 | H20: 0.5726951713 | I20: -1.162875378 | J20: 0.4135279141 | K20: -0.8305960364 | M20: 0.5726951713 | N20: -1.162875378 | O20: -0.5986335284 | P20: -0.8305960364 | R20: =RANK(M20,M$18:M$1017,1)+COUNTIF(M$18:M20,M20)-1 -> 741 | S20: =RANK(N20,N$18:N$1017,1)+COUNTIF(N$18:N20,N20)-1 -> 98 | T20: =RANK(O20,O$18:O$1017,1)+COUNTIF(O$18:O20,O20)-1 -> 254 | U20: =RANK(P20,P$18:P$1017,1)+COUNTIF(P$18:P20,P20)-1 -> 199 | X20: -0.5194068932 | Y20: 0.1471996601 | Z20: 0.8618573088 | AA20: 0.8245153424
A21: 4 | B21: -0.897379584 | C21: 0.100873472 | D21: 0.5043673601 | E21: 0.5043673601 | H21: -0.4251387509 | I21: -0.08198298929 | J21: 0.1384830739 | K21: -1.119165063 | M21: -0.4251387509 | N21: -0.08198298929 | O21: 0.03011070162 | P21: -1.119165063 | R21: =RANK(M21,M$18:M$1017,1)+COUNTIF(M$18:M21,M21)-1 -> 347 | S21: =RANK(N21,N$18:N$1017,1)+COUNTIF(N$18:N21,N21)-1 -> 453 | T21: =RANK(O21,O$18:O$1017,1)+COUNTIF(O$18:O21,O21)-1 -> 501 | U21: =RANK(P21,P$18:P$1017,1)+COUNTIF(P$18:P21,P21)-1 -> 130 | X21: -0.6495638107 | Y21: 0.1949929987 | Z21: 1.000262968 | AA21: 0.7684123038
A22: 5 | B22: -0.8906735661 | C22: 0.1031088113 | D22: 0.5155440566 | E22: 0.5155440566 | H22: 0.02911178854 | I22: 0.4061234904 | J22: -2.133310772 | K22: -1.392527338 | M22: 0.02911178854 | N22: 0.4061234904 | O22: -1.106459826 | P22: -1.392527338 | R22: =RANK(M22,M$18:M$1017,1)+COUNTIF(M$18:M22,M22)-1 -> 524 | S22: =RANK(N22,N$18:N$1017,1)+COUNTIF(N$18:N22,N22)-1 -> 625 | T22: =RANK(O22,O$18:O$1017,1)+COUNTIF(O$18:O22,O22)-1 -> 124 | U22: =RANK(P22,P$18:P$1017,1)+COUNTIF(P$18:P22,P22)-1 -> 79 | X22: -0.5925804591 | Y22: 0.2132923387 | Z22: 0.7627563904 | AA22: 0.7133260983
A23: 6 | B23: -0.8849634413 | C23: 0.1050121862 | D23: 0.5250609312 | E23: 0.5250609312 | H23: -0.3529271453 | I23: 1.207813511 | J23: -0.4254729902 | K23: -1.452485776 | M23: -0.3529271453 | N23: 1.207813511 | O23: 0.6244362032 | P23: -1.452485776 | R23: =RANK(M23,M$18:M$1017,1)+COUNTIF(M$18:M23,M23)-1 -> 386 | S23: =RANK(N23,N$18:N$1017,1)+COUNTIF(N$18:N23,N23)-1 -> 883 | T23: =RANK(O23,O$18:O$1017,1)+COUNTIF(O$18:O23,O23)-1 -> 696 | U23: =RANK(P23,P$18:P$1017,1)+COUNTIF(P$18:P23,P23)-1 -> 71 | X23: -0.6365880366 | Y23: 0.248614762 | Z23: 1.1068288 | AA23: 0.7026698477
A24: 7 | B24: -0.8799642033 | C24: 0.1066785989 | D24: 0.5333929945 | E24: 0.5333929945 | H24: 0.4025537237 | I24: 1.103560408 | J24: 0.9038035387 | K24: -0.334100605 | M24: 0.4025537237 | N24: 1.103560408 | O24: 1.425480155 | P24: -0.334100605 | R24: =RANK(M24,M$18:M$1017,1)+COUNTIF(M$18:M24,M24)-1 -> 686 | S24: =RANK(N24,N$18:N$1017,1)+COUNTIF(N$18:N24,N24)-1 -> 855 | T24: =RANK(O24,O$18:O$1017,1)+COUNTIF(O$18:O24,O24)-1 -> 921 | U24: =RANK(P24,P$18:P$1017,1)+COUNTIF(P$18:P24,P24)-1 -> 383 | X24: -0.5394273112 | Y24: 0.2434503079 | Z24: 1.285394381 | AA24: 0.9373795312
A25: 8 | B25: -0.875500385 | C25: 0.1081665383 | D25: 0.5408326916 | E25: 0.5408326916 | H25: 0.1580519893 | I25: 0.5533343028 | J25: 0.6676623343 | K25: 0.5396555025 | M25: 0.1580519893 | N25: 0.5533343028 | O25: 0.8566178512 | P25: 0.5396555025 | R25: =RANK(M25,M$18:M$1017,1)+COUNTIF(M$18:M25,M25)-1 -> 583 | S25: =RANK(N25,N$18:N$1017,1)+COUNTIF(N$18:N25,N25)-1 -> 676 | T25: =RANK(O25,O$18:O$1017,1)+COUNTIF(O$18:O25,O25)-1 -> 790 | U25: =RANK(P25,P$18:P$1017,1)+COUNTIF(P$18:P25,P25)-1 -> 708 | X25: -0.5737978142 | Y25: 0.2190302433 | Z25: 1.166924788 | AA25: 1.113980547
A26: 9 | B26: -0.8714557861 | C26: 0.109514738 | D26: 0.5475736899 | E26: 0.5475736899 | H26: 0.2332376425 | I26: -0.7163589544 | J26: -1.097953373 | K26: -0.8784286365 | M26: 0.2332376425 | N26: -0.7163589544 | O26: -1.26349711 | P26: -0.8784286365 | R26: =RANK(M26,M$18:M$1017,1)+COUNTIF(M$18:M26,M26)-1 -> 612 | S26: =RANK(N26,N$18:N$1017,1)+COUNTIF(N$18:N26,N26)-1 -> 220 | T26: =RANK(O26,O$18:O$1017,1)+COUNTIF(O$18:O26,O26)-1 -> 94 | U26: =RANK(P26,P$18:P$1017,1)+COUNTIF(P$18:P26,P26)-1 -> 183 | X26: -0.5643942006 | Y26: 0.1678656094 | Z26: 0.731485974 | AA26: 0.8126547504
A27: 10 | B27: -0.8677492204 | C27: 0.1107502599 | D27: 0.5537512993 | E27: 0.5537512993 | H27: 0.04955268196 | I27: -0.4679077392 | J27: -0.6423499599 | K27: 0.7895994258 | M27: 0.04955268196 | N27: -0.4679077392 | O27: -0.7758053666 | P27: 0.7895994258 | R27: =RANK(M27,M$18:M$1017,1)+COUNTIF(M$18:M27,M27)-1 -> 533 | S27: =RANK(N27,N$18:N$1017,1)+COUNTIF(N$18:N27,N27)-1 -> 313 | T27: =RANK(O27,O$18:O$1017,1)+COUNTIF(O$18:O27,O27)-1 -> 199 | U27: =RANK(P27,P$18:P$1017,1)+COUNTIF(P$18:P27,P27)-1 -> 798 | X27: -0.5897340761 | Y27: 0.1795753062 | Z27: 0.8245153424 | AA27: 1.172601506
A28: 11 | B28: -0.8643215859 | C28: 0.1118928047 | D28: 0.5594640236 | E28: 0.5594640236 | H28: 0.1683622486 | I28: -0.07170228855 | J28: 0.1376338332 | K28: 0.7537437341 | M28: 0.1683622486 | N28: -0.07170228855 | O28: 0.03725950726 | P28: 0.7537437341 | R28: =RANK(M28,M$18:M$1017,1)+COUNTIF(M$18:M28,M28)-1 -> 586 | S28: =RANK(N28,N$18:N$1017,1)+COUNTIF(N$18:N28,N28)-1 -> 459 | T28: =RANK(O28,O$18:O$1017,1)+COUNTIF(O$18:O28,O28)-1 -> 506 | U28: =RANK(P28,P$18:P$1017,1)+COUNTIF(P$18:P28,P28)-1 -> 787 | X28: -0.572831886 | Y28: 0.1956276632 | Z28: 1.002892731 | AA28: 1.164825353
A29: 12 | B29: -0.8611284325 | C29: 0.1129571892 | D29: 0.5647859458 | E29: 0.5647859458 | H29: 0.3150694283 | I29: -0.5288916327 | J29: 1.101034286 | K29: -1.161220098 | M29: 0.3150694283 | N29: -0.5288916327 | O29: 0.3315970019 | P29: -1.161220098 | R29: =RANK(M29,M$18:M$1017,1)+COUNTIF(M$18:M29,M29)-1 -> 648 | S29: =RANK(N29,N$18:N$1017,1)+COUNTIF(N$18:N29,N29)-1 -> 287 | T29: =RANK(O29,O$18:O$1017,1)+COUNTIF(O$18:O29,O29)-1 -> 600 | U29: =RANK(P29,P$18:P$1017,1)+COUNTIF(P$18:P29,P29)-1 -> 120 | X29: -0.552460466 | Y29: 0.176479647 | Z29: 1.052826152 | AA29: 0.7588899408
A30: 13 | B30: -0.8581354339 | C30: 0.1139548554 | D30: 0.5697742769 | E30: 0.5697742769 | H30: 0.8217716641 | I30: 2.445485734 | J30: 0.2568083346 | K30: -1.103701379 | M30: 0.8217716641 | N30: 2.445485734 | O30: 2.003977047 | P30: -1.103701379 | R30: =RANK(M30,M$18:M$1017,1)+COUNTIF(M$18:M30,M30)-1 -> 818 | S30: =RANK(N30,N$18:N$1017,1)+COUNTIF(N$18:N30,N30)-1 -> 995 | T30: =RANK(O30,O$18:O$1017,1)+COUNTIF(O$18:O30,O30)-1 -> 980 | U30: =RANK(P30,P$18:P$1017,1)+COUNTIF(P$18:P30,P30)-1 -> 135 | X30: -0.4875928502 | Y30: 0.2949878138 | Z30: 1.398326065 | AA30: 0.7730030384
A31: 14 | B31: -0.8553154929 | C31: 0.1148948357 | D31: 0.5744741784 | E31: 0.5744741784 | H31: -1.68661245 | I31: 0.02528508958 | J31: 0.9543327906 | K31: -0.4688467925 | M31: -1.68661245 | N31: 0.02528508958 | O31: 0.6501956251 | P31: -0.4688467925 | R31: =RANK(M31,M$18:M$1017,1)+COUNTIF(M$18:M31,M31)-1 -> 44 | S31: =RANK(N31,N$18:N$1017,1)+COUNTIF(N$18:N31,N31)-1 -> 484 | T31: =RANK(O31,O$18:O$1017,1)+COUNTIF(O$18:O31,O31)-1 -> 709 | U31: =RANK(P31,P$18:P$1017,1)+COUNTIF(P$18:P31,P31)-1 -> 330 | X31: -0.8046433017 | Y31: 0.1982639676 | Z31: 1.114581908 | AA31: 0.9077255859
A32: 15 | B32: -0.8526468207 | C32: 0.1157843931 | D32: 0.5789219654 | E32: 0.5789219654 | H32: -0.7044468475 | I32: 0.2409478839 | J32: 0.910961262 | K32: 1.103280738 | M32: -0.7044468475 | N32: 0.2409478839 | O32: 0.7832551512 | P32: 1.103280738 | R32: =RANK(M32,M$18:M$1017,1)+COUNTIF(M$18:M32,M32)-1 -> 249 | S32: =RANK(N32,N$18:N$1017,1)+COUNTIF(N$18:N32,N32)-1 -> 566 | T32: =RANK(O32,O$18:O$1017,1)+COUNTIF(O$18:O32,O32)-1 -> 758 | U32: =RANK(P32,P$18:P$1017,1)+COUNTIF(P$18:P32,P32)-1 -> 878 | X32: -0.6848155519 | Y32: 0.2069176969 | Z32: 1.145260119 | AA32: 1.238202783
A33: 16 | B33: -0.8501116172 | C33: 0.1166294609 | D33: 0.5831473046 | E33: 0.5831473046 | H33: -0.422460289 | I33: -0.4992944014 | J33: -1.383309609 | K33: 0.3351522082 | M33: -0.422460289 | N33: -0.4992944014 | O33: -1.289444104 | P33: 0.3351522082 | R33: =RANK(M33,M$18:M$1017,1)+COUNTIF(M$18:M33,M33)-1 -> 349 | S33: =RANK(N33,N$18:N$1017,1)+COUNTIF(N$18:N33,N33)-1 -> 300 | T33: =RANK(O33,O$18:O$1017,1)+COUNTIF(O$18:O33,O33)-1 -> 87 | U33: =RANK(P33,P$18:P$1017,1)+COUNTIF(P$18:P33,P33)-1 -> 630 | X33: -0.6488877879 | Y33: 0.1780410951 | Z33: 0.7232732445 | AA33: 1.069217689
A34: 17 | B34: -0.8476951412 | C34: 0.1174349529 | D34: 0.5871747647 | E34: 0.5871747647 | H34: -1.841463018 | I34: -0.79672418 | J34: -0.1111129677 | K34: -1.499311111 | M34: -1.841463018 | N34: -0.79672418 | O34: -0.671037455 | P34: -1.499311111 | R34: =RANK(M34,M$18:M$1017,1)+COUNTIF(M$18:M34,M34)-1 -> 29 | S34: =RANK(N34,N$18:N$1017,1)+COUNTIF(N$18:N34,N34)-1 -> 195 | T34: =RANK(O34,O$18:O$1017,1)+COUNTIF(O$18:O34,O34)-1 -> 236 | U34: =RANK(P34,P$18:P$1017,1)+COUNTIF(P$18:P34,P34)-1 -> 62 | X34: -0.8248083692 | Y34: 0.1643201442 | Z34: 0.8501292986 | AA34: 0.6896422485
A35: 18 | B35: -0.8453850381 | C35: 0.1182049873 | D35: 0.5910249364 | E35: 0.5910249364 | H35: 0.3755712896 | I35: 1.126061306 | J35: -0.8010397323 | K35: 1.707276169 | M35: 0.3755712896 | N35: 1.126061306 | O35: 0.3147079993 | P35: 1.707276169 | R35: =RANK(M35,M$18:M$1017,1)+COUNTIF(M$18:M35,M35)-1 -> 670 | S35: =RANK(N35,N$18:N$1017,1)+COUNTIF(N$18:N35,N35)-1 -> 864 | T35: =RANK(O35,O$18:O$1017,1)+COUNTIF(O$18:O35,O35)-1 -> 595 | U35: =RANK(P35,P$18:P$1017,1)+COUNTIF(P$18:P35,P35)-1 -> 960 | X35: -0.5449794292 | Y35: 0.2450379987 | Z35: 1.050124575 | AA35: 1.347033685
A36: 19 | B36: -0.8431708445 | C36: 0.1189430518 | D36: 0.5947152591 | E36: 0.5947152591 | H36: -0.01143689587 | I36: 0.8925803741 | J36: 0.7818903214 | K36: -0.2502520147 | M36: -0.01143689587 | N36: 0.8925803741 | O36: 1.186607116 | P36: -0.2502520147 | R36: =RANK(M36,M$18:M$1017,1)+COUNTIF(M$18:M36,M36)-1 -> 518 | S36: =RANK(N36,N$18:N$1017,1)+COUNTIF(N$18:N36,N36)-1 -> 786 | T36: =RANK(O36,O$18:O$1017,1)+COUNTIF(O$18:O36,O36)-1 -> 879 | U36: =RANK(P36,P$18:P$1017,1)+COUNTIF(P$18:P36,P36)-1 -> 418 | X36: -0.5944760844 | Y36: 0.2328257925 | Z36: 1.239166865 | AA36: 0.9563296903
A37: 20 | B37: -0.8410436152 | C37: 0.1196521283 | D37: 0.5982606413 | E37: 0.5982606413 | H37: 0.1916089332 | I37: 0.377788183 | J37: -1.329754014 | K37: 1.631492523 | M37: 0.1916089332 | N37: 0.377788183 | O37: -0.596208469 | P37: 1.631492523 | R37: =RANK(M37,M$18:M$1017,1)+COUNTIF(M$18:M37,M37)-1 -> 594 | S37: =RANK(N37,N$18:N$1017,1)+COUNTIF(N$18:N37,N37)-1 -> 614 | T37: =RANK(O37,O$18:O$1017,1)+COUNTIF(O$18:O37,O37)-1 -> 257 | U37: =RANK(P37,P$18:P$1017,1)+COUNTIF(P$18:P37,P37)-1 -> 949 | X37: -0.5702488997 | Y37: 0.2120868014 | Z37: 0.8637729325 | AA37: 1.326490888
A38: 21 | B38: -0.8389956393 | C38: 0.1203347869 | D38: 0.6016739345 | E38: 0.6016739345 | H38: 0.8774168236 | I38: -0.1997182153 | J38: -1.822618287 | K38: -0.6340042091 | M38: 0.8774168236 | N38: -0.1997182153 | O38: -1.355337342 | P38: -0.6340042091 | R38: =RANK(M38,M$18:M$1017,1)+COUNTIF(M$18:M38,M38)-1 -> 829 | S38: =RANK(N38,N$18:N$1017,1)+COUNTIF(N$18:N38,N38)-1 -> 408 | T38: =RANK(O38,O$18:O$1017,1)+COUNTIF(O$18:O38,O38)-1 -> 77 | U38: =RANK(P38,P$18:P$1017,1)+COUNTIF(P$18:P38,P38)-1 -> 273 | X38: -0.482496909 | Y38: 0.1901907894 | Z38: 0.7107337026 | AA38: 0.8738202134
A39: 22 | B39: -0.8370202197 | C39: 0.1209932601 | D39: 0.6049663005 | E39: 0.6049663005 | H39: 0.3762283995 | I39: 1.694920684 | J39: -1.060429895 | K39: -0.6516870599 | M39: 0.3762283995 | N39: 1.694920684 | O39: 0.5697820666 | P39: -0.6516870599 | R39: =RANK(M39,M$18:M$1017,1)+COUNTIF(M$18:M39,M39)-1 -> 671 | S39: =RANK(N39,N$18:N$1017,1)+COUNTIF(N$18:N39,N39)-1 -> 957 | T39: =RANK(O39,O$18:O$1017,1)+COUNTIF(O$18:O39,O39)-1 -> 681 | U39: =RANK(P39,P$18:P$1017,1)+COUNTIF(P$18:P39,P39)-1 -> 264 | X39: -0.5446353516 | Y39: 0.2682144339 | Z39: 1.098044337 | AA39: 0.868202728
A40: 23 | B40: -0.8351115005 | C40: 0.1216294998 | D40: 0.6081474991 | E40: 0.6081474991 | H40: -0.5251990842 | I40: -0.6618415682 | J40: 1.942098606 | K40: -1.386101758 | M40: -0.5251990842 | N40: -0.6618415682 | O40: 0.7881963073 | P40: -1.386101758 | R40: =RANK(M40,M$18:M$1017,1)+COUNTIF(M$18:M40,M40)-1 -> 313 | S40: =RANK(N40,N$18:N$1017,1)+COUNTIF(N$18:N40,N40)-1 -> 244 | T40: =RANK(O40,O$18:O$1017,1)+COUNTIF(O$18:O40,O40)-1 -> 760 | U40: =RANK(P40,P$18:P$1017,1)+COUNTIF(P$18:P40,P40)-1 -> 81 | X40: -0.6612740814 | Y40: 0.1710786444 | Z40: 1.146570727 | AA40: 0.7158743555
A41: 24 | B41: -0.8332643296 | C41: 0.1222452235 | D41: 0.6112261174 | E41: 0.6112261174 | H41: -0.2556225809 | I41: 0.4534467735 | J41: -0.797354005 | K41: 1.218352281 | M41: -0.2556225809 | N41: 0.4534467735 | O41: -0.187315021 | P41: 1.218352281 | R41: =RANK(M41,M$18:M$1017,1)+COUNTIF(M$18:M41,M41)-1 -> 432 | S41: =RANK(N41,N$18:N$1017,1)+COUNTIF(N$18:N41,N41)-1 -> 640 | T41: =RANK(O41,O$18:O$1017,1)+COUNTIF(O$18:O41,O41)-1 -> 421 | U41: =RANK(P41,P$18:P$1017,1)+COUNTIF(P$18:P41,P41)-1 -> 896 | X41: -0.6217119071 | Y41: 0.2149525234 | Z41: 0.957937268 | AA41: 1.256387135
A42: 25 | B42: -0.8314741485 | C42: 0.1228419505 | D42: 0.6142097525 | E42: 0.6142097525 | H42: -0.409780796 | I42: -2.871165634 | J42: -1.357102519 | K42: 0.6813957043 | M42: -0.409780796 | N42: -2.871165634 | O42: -3.051013168 | P42: 0.6813957043 | R42: =RANK(M42,M$18:M$1017,1)+COUNTIF(M$18:M42,M42)-1 -> 356 | S42: =RANK(N42,N$18:N$1017,1)+COUNTIF(N$18:N42,N42)-1 -> 1 | T42: =RANK(O42,O$18:O$1017,1)+COUNTIF(O$18:O42,O42)-1 -> 2 | U42: =RANK(P42,P$18:P$1017,1)+COUNTIF(P$18:P42,P42)-1 -> 766 | X42: -0.6465315731 | Y42: 0.08895896019 | Z42: 0.4726286343 | AA42: 1.150534813
A43: 26 | B43: -0.8297369034 | C43: 0.1234210322 | D43: 0.617105161 | E43: 0.617105161 | H43: -1.195530785 | I43: -1.351168066 | J43: -1.509270078 | K43: 0.5072820386 | M43: -1.195530785 | N43: -1.351168066 | O43: -2.011664372 | P43: 0.5072820386 | R43: =RANK(M43,M$18:M$1017,1)+COUNTIF(M$18:M43,M43)-1 -> 122 | S43: =RANK(N43,N$18:N$1017,1)+COUNTIF(N$18:N43,N43)-1 -> 74 | T43: =RANK(O43,O$18:O$1017,1)+COUNTIF(O$18:O43,O43)-1 -> 20 | U43: =RANK(P43,P$18:P$1017,1)+COUNTIF(P$18:P43,P43)-1 -> 688 | X43: -0.7435001191 | Y43: 0.1413515413 | Z43: 0.5982606413 | AA43: 1.102123469
A44: 27 | B44: -0.828048972 | C44: 0.123983676 | D44: 0.61991838 | E44: 0.61991838 | H44: 1.265323135 | I44: -0.7867811291 | J44: -0.2593401405 | K44: -0.9372229215 | M44: 1.265323135 | N44: -0.7867811291 | O44: -0.761623226 | P44: -0.9372229215 | R44: =RANK(M44,M$18:M$1017,1)+COUNTIF(M$18:M44,M44)-1 -> 903 | S44: =RANK(N44,N$18:N$1017,1)+COUNTIF(N$18:N44,N44)-1 -> 198 | T44: =RANK(O44,O$18:O$1017,1)+COUNTIF(O$18:O44,O44)-1 -> 204 | U44: =RANK(P44,P$18:P$1017,1)+COUNTIF(P$18:P44,P44)-1 -> 173 | X44: -0.4415989804 | Y44: 0.1647579373 | Z44: 0.828114509 | AA44: 0.8049461364
A45: 28 | B45: -0.8264071037 | C45: 0.1245309654 | D45: 0.6226548272 | E45: 0.6226548272 | H45: -0.9575956028 | I45: 0.9668315215 | J45: 0.0704744707 | K45: 2.174547262 | M45: -0.9575956028 | N45: 0.9668315215 | O45: 0.7717381219 | P45: 2.174547262 | R45: =RANK(M45,M$18:M$1017,1)+COUNTIF(M$18:M45,M45)-1 -> 172 | S45: =RANK(N45,N$18:N$1017,1)+COUNTIF(N$18:N45,N45)-1 -> 819 | T45: =RANK(O45,O$18:O$1017,1)+COUNTIF(O$18:O45,O45)-1 -> 751 | U45: =RANK(P45,P$18:P$1017,1)+COUNTIF(P$18:P45,P45)-1 -> 986 | X45: -0.717503091 | Y45: 0.237621051 | Z45: 1.140713507 | AA45: 1.421078035
A46: 29 | B46: -0.8248083692 | C46: 0.1250638769 | D46: 0.6253193847 | E46: 0.6253193847 | H46: 0.4659455044 | I46: 0.9459222383 | J46: 1.323116976 | K46: 1.557086762 | M46: 0.4659455044 | N46: 0.9459222383 | O46: 1.584601297 | P46: 1.557086762 | R46: =RANK(M46,M$18:M$1017,1)+COUNTIF(M$18:M46,M46)-1 -> 705 | S46: =RANK(N46,N$18:N$1017,1)+COUNTIF(N$18:N46,N46)-1 -> 809 | T46: =RANK(O46,O$18:O$1017,1)+COUNTIF(O$18:O46,O46)-1 -> 948 | U46: =RANK(P46,P$18:P$1017,1)+COUNTIF(P$18:P46,P46)-1 -> 943 | X46: -0.5326910658 | Y46: 0.2361213342 | Z46: 1.324783655 | AA46: 1.316573728
A47: 30 | B47: -0.8232501193 | C47: 0.1255832936 | D47: 0.6279164678 | E47: 0.6279164678 | H47: 2.448541636 | I47: 2.193646651 | J47: -0.7257835932 | K47: -0.6118057172 | M47: 2.448541636 | N47: 2.193646651 | O47: 1.165174265 | P47: -0.6118057172 | R47: =RANK(M47,M$18:M$1017,1)+COUNTIF(M$18:M47,M47)-1 -> 996 | S47: =RANK(N47,N$18:N$1017,1)+COUNTIF(N$18:N47,N47)-1 -> 988 | T47: =RANK(O47,O$18:O$1017,1)+COUNTIF(O$18:O47,O47)-1 -> 875 | U47: =RANK(P47,P$18:P$1017,1)+COUNTIF(P$18:P47,P47)-1 -> 280 | X47: -0.3093264339 | Y47: 0.2860451446 | Z47: 1.235339702 | AA47: 0.878132536
A48: 31 | B48: -0.8217299497 | C48: 0.1260900168 | D48: 0.6304500839 | E48: 0.6304500839 | H48: 1.4888019 | I48: 0.8343840818 | J48: 0.4216235538 | K48: -1.129383236 | M48: 1.4888019 | N48: 0.8343840818 | O48: 0.904665829 | P48: -1.129383236 | R48: =RANK(M48,M$18:M$1017,1)+COUNTIF(M$18:M48,M48)-1 -> 940 | S48: =RANK(N48,N$18:N$1017,1)+COUNTIF(N$18:N48,N48)-1 -> 772 | T48: =RANK(O48,O$18:O$1017,1)+COUNTIF(O$18:O48,O48)-1 -> 800 | U48: =RANK(P48,P$18:P$1017,1)+COUNTIF(P$18:P48,P48)-1 -> 129 | X48: -0.4128691364 | Y48: 0.2309098703 | Z48: 1.174039226 | AA48: 0.7674811105
A49: 32 | B49: -0.8202456707 | C49: 0.1265847764 | D49: 0.6329238821 | E49: 0.6329238821 | H49: 0.4703838385 | I49: -0.6175355338 | J49: -2.558954293 | K49: -1.181269909 | M49: 0.4703838385 | N49: -0.6175355338 | O49: -2.155740819 | P49: -1.181269909 | R49: =RANK(M49,M$18:M$1017,1)+COUNTIF(M$18:M49,M49)-1 -> 708 | S49: =RANK(N49,N$18:N$1017,1)+COUNTIF(N$18:N49,N49)-1 -> 257 | T49: =RANK(O49,O$18:O$1017,1)+COUNTIF(O$18:O49,O49)-1 -> 12 | U49: =RANK(P49,P$18:P$1017,1)+COUNTIF(P$18:P49,P49)-1 -> 114 | X49: -0.5316116717 | Y49: 0.1727545865 | Z49: 0.5647859458 | AA49: 0.7529343966
A50: 33 | B50: -0.8187952829 | C50: 0.127068239 | D50: 0.6353411951 | E50: 0.6353411951 | H50: 0.9993254935 | I50: 1.181269909 | J50: -0.1228204383 | K50: -0.7219068721 | M50: 0.9993254935 | N50: 1.181269909 | O50: 0.8047143475 | P50: -0.7219068721 | R50: =RANK(M50,M$18:M$1017,1)+COUNTIF(M$18:M50,M50)-1 -> 855 | S50: =RANK(N50,N$18:N$1017,1)+COUNTIF(N$18:N50,N50)-1 -> 879 | T50: =RANK(O50,O$18:O$1017,1)+COUNTIF(O$18:O50,O50)-1 -> 770 | U50: =RANK(P50,P$18:P$1017,1)+COUNTIF(P$18:P50,P50)-1 -> 235 | X50: -0.4696490763 | Y50: 0.247833373 | Z50: 1.153205397 | AA50: 0.849465187
A51: 34 | B51: -0.8173769546 | C51: 0.1275410151 | D51: 0.6377050756 | E51: 0.6377050756 | H51: -0.8067468116 | I51: -0.3035142981 | J51: 1.062310275 | K51: -1.042874374 | M51: -0.8067468116 | N51: -0.3035142981 | O51: 0.4750164773 | P51: -1.042874374 | R51: =RANK(M51,M$18:M$1017,1)+COUNTIF(M$18:M51,M51)-1 -> 217 | S51: =RANK(N51,N$18:N$1017,1)+COUNTIF(N$18:N51,N51)-1 -> 369 | T51: =RANK(O51,O$18:O$1017,1)+COUNTIF(O$18:O51,O51)-1 -> 656 | U51: =RANK(P51,P$18:P$1017,1)+COUNTIF(P$18:P51,P51)-1 -> 150 | X51: -0.6976447301 | Y51: 0.1859353834 | Z51: 1.083735213 | AA51: 0.7861817957
A52: 35 | B52: -0.8159890037 | C52: 0.1280036654 | D52: 0.6400183271 | E52: 0.6400183271 | H52: 0.1838236585 | I52: 0.0592831384 | J52: -1.234416231 | K52: -0.7851144801 | M52: 0.1838236585 | N52: 0.0592831384 | O52: -0.7720272369 | P52: -0.7851144801 | R52: =RANK(M52,M$18:M$1017,1)+COUNTIF(M$18:M52,M52)-1 -> 592 | S52: =RANK(N52,N$18:N$1017,1)+COUNTIF(N$18:N52,N52)-1 -> 497 | T52: =RANK(O52,O$18:O$1017,1)+COUNTIF(O$18:O52,O52)-1 -> 202 | U52: =RANK(P52,P$18:P$1017,1)+COUNTIF(P$18:P52,P52)-1 -> 212 | X52: -0.5708956626 | Y52: 0.1996318404 | Z52: 0.8266805882 | AA52: 0.8337767507
A53: 36 | B53: -0.8146298814 | C53: 0.1284567062 | D53: 0.642283531 | E53: 0.642283531 | H53: -0.5645119927 | I53: -0.1074954525 | J53: 0.3080037914 | K53: -1.080509264 | M53: -0.5645119927 | N53: -0.1074954525 | O53: 0.1231037693 | P53: -1.080509264 | R53: =RANK(M53,M$18:M$1017,1)+COUNTIF(M$18:M53,M53)-1 -> 299 | S53: =RANK(N53,N$18:N$1017,1)+COUNTIF(N$18:N53,N53)-1 -> 439 | T53: =RANK(O53,O$18:O$1017,1)+COUNTIF(O$18:O53,O53)-1 -> 539 | U53: =RANK(P53,P$18:P$1017,1)+COUNTIF(P$18:P53,P53)-1 -> 142 | X53: -0.666234035 | Y53: 0.1935078882 | Z53: 1.02027674 | AA53: 0.7792580248
A54: 37 | B54: -0.8132981584 | C54: 0.1289006139 | D54: 0.6445030693 | E54: 0.6445030693 | H54: 1.479138518 | I54: 1.180965228 | J54: -0.07952735359 | K54: 0.4446474122 | M54: 1.479138518 | N54: 1.180965228 | O54: 0.8331215209 | P54: 0.4446474122 | R54: =RANK(M54,M$18:M$1017,1)+COUNTIF(M$18:M54,M54)-1 -> 936 | S54: =RANK(N54,N$18:N$1017,1)+COUNTIF(N$18:N54,N54)-1 -> 878 | T54: =RANK(O54,O$18:O$1017,1)+COUNTIF(O$18:O54,O54)-1 -> 779 | U54: =RANK(P54,P$18:P$1017,1)+COUNTIF(P$18:P54,P54)-1 -> 667 | X54: -0.4164735461 | Y54: 0.2476405565 | Z54: 1.159300502 | AA54: 1.089984262
A55: 38 | B55: -0.8119925126 | C55: 0.1293358291 | D55: 0.6466791457 | E55: 0.6466791457 | H55: 0.911772986 | I55: 0.3824754913 | J55: -0.8062170309 | K55: -0.6007735465 | M55: 0.911772986 | N55: 0.3824754913 | O55: -0.2464058232 | P55: -0.6007735465 | R55: =RANK(M55,M$18:M$1017,1)+COUNTIF(M$18:M55,M55)-1 -> 839 | S55: =RANK(N55,N$18:N$1017,1)+COUNTIF(N$18:N55,N55)-1 -> 616 | T55: =RANK(O55,O$18:O$1017,1)+COUNTIF(O$18:O55,O55)-1 -> 401 | U55: =RANK(P55,P$18:P$1017,1)+COUNTIF(P$18:P55,P55)-1 -> 286 | X55: -0.4776999141 | Y55: 0.2123052973 | Z55: 0.9471738477 | AA55: 0.881791602
A56: 39 | B56: -0.8107117184 | C56: 0.1297627605 | D56: 0.6488138027 | E56: 0.6488138027 | H56: 0.3602644938 | I56: 1.804783096 | J56: 1.435773811 | K56: -1.069329301 | M56: 0.3602644938 | N56: 1.804783096 | O56: 2.303262433 | P56: -1.069329301 | R56: =RANK(M56,M$18:M$1017,1)+COUNTIF(M$18:M56,M56)-1 -> 663 | S56: =RANK(N56,N$18:N$1017,1)+COUNTIF(N$18:N56,N56)-1 -> 968 | T56: =RANK(O56,O$18:O$1017,1)+COUNTIF(O$18:O56,O56)-1 -> 988 | U56: =RANK(P56,P$18:P$1017,1)+COUNTIF(P$18:P56,P56)-1 -> 143 | X56: -0.5473777326 | Y56: 0.272931761 | Z56: 1.430225723 | AA56: 0.7801361499
A57: 40 | B57: -0.8094546376 | C57: 0.1301817875 | D57: 0.6509089374 | E57: 0.6509089374 | H57: -2.095421223 | I57: 0.957957127 | J57: -0.03316813491 | K57: -0.0118961907 | M57: -2.095421223 | N57: 0.957957127 | O57: 0.6965291861 | P57: -0.0118961907 | R57: =RANK(M57,M$18:M$1017,1)+COUNTIF(M$18:M57,M57)-1 -> 16 | S57: =RANK(N57,N$18:N$1017,1)+COUNTIF(N$18:N57,N57)-1 -> 813 | T57: =RANK(O57,O$18:O$1017,1)+COUNTIF(O$18:O57,O57)-1 -> 727 | U57: =RANK(P57,P$18:P$1017,1)+COUNTIF(P$18:P57,P57)-1 -> 504 | X57: -0.8501116172 | Y57: 0.2367159032 | Z57: 1.125560781 | AA57: 1.001840798
A58: 41 | B58: -0.8082202109 | C58: 0.130593263 | D58: 0.6529663152 | E58: 0.6529663152 | H58: -0.6307345757 | I58: 1.32994046 | J58: 0.3145078153 | K58: 0.09188852346 | M58: -0.6307345757 | N58: 1.32994046 | O58: 1.205482711 | P58: 0.09188852346 | R58: =RANK(M58,M$18:M$1017,1)+COUNTIF(M$18:M58,M58)-1 -> 275 | S58: =RANK(N58,N$18:N$1017,1)+COUNTIF(N$18:N58,N58)-1 -> 906 | T58: =RANK(O58,O$18:O$1017,1)+COUNTIF(O$18:O58,O58)-1 -> 886 | U58: =RANK(P58,P$18:P$1017,1)+COUNTIF(P$18:P58,P58)-1 -> 545 | X58: -0.6749656655 | Y58: 0.2534748522 | Z58: 1.246059405 | AA58: 1.023447745
A59: 42 | B59: -0.8070074509 | C59: 0.1309975164 | D59: 0.6549875819 | E59: 0.6549875819 | H59: -1.194907782 | I59: -0.1664227511 | J59: 0.7462449503 | K59: -3.315217327 | M59: -1.194907782 | N59: -0.1664227511 | O59: 0.3687775755 | P59: -3.315217327 | R59: =RANK(M59,M$18:M$1017,1)+COUNTIF(M$18:M59,M59)-1 -> 123 | S59: =RANK(N59,N$18:N$1017,1)+COUNTIF(N$18:N59,N59)-1 -> 418 | T59: =RANK(O59,O$18:O$1017,1)+COUNTIF(O$18:O59,O59)-1 -> 614 | U59: =RANK(P59,P$18:P$1017,1)+COUNTIF(P$18:P59,P59)-1 -> 2 | X59: -0.7429216695 | Y59: 0.1912659381 | Z59: 1.060434007 | AA59: 0.4726286343
A60: 43 | B60: -0.8058154353 | C60: 0.1313948549 | D60: 0.6569742744 | E60: 0.6569742744 | H60: 0.6131904229 | I60: -0.3427680895 | J60: -0.5804645298 | K60: 0.4686751254 | M60: 0.6131904229 | N60: -0.3427680895 | O60: -0.6410172648 | P60: 0.4686751254 | R60: =RANK(M60,M$18:M$1017,1)+COUNTIF(M$18:M60,M60)-1 -> 755 | S60: =RANK(N60,N$18:N$1017,1)+COUNTIF(N$18:N60,N60)-1 -> 359 | T60: =RANK(O60,O$18:O$1017,1)+COUNTIF(O$18:O60,O60)-1 -> 244 | U60: =RANK(P60,P$18:P$1017,1)+COUNTIF(P$18:P60,P60)-1 -> 671 | X60: -0.5140176206 | Y60: 0.1848245674 | Z60: 0.8553932221 | AA60: 1.092274414
A61: 44 | B61: -0.8046433017 | C61: 0.1317855661 | D61: 0.6589278305 | E61: 0.6589278305 | H61: 0.5724245966 | I61: -0.2498575213 | J61: 1.945127224 | K61: 1.044061264 | M61: 0.5724245966 | N61: -0.2498575213 | O61: 1.099187585 | P61: 1.044061264 | R61: =RANK(M61,M$18:M$1017,1)+COUNTIF(M$18:M61,M61)-1 -> 740 | S61: =RANK(N61,N$18:N$1017,1)+COUNTIF(N$18:N61,N61)-1 -> 393 | T61: =RANK(O61,O$18:O$1017,1)+COUNTIF(O$18:O61,O61)-1 -> 860 | U61: =RANK(P61,P$18:P$1017,1)+COUNTIF(P$18:P61,P61)-1 -> 860 | X61: -0.5197865785 | Y61: 0.188566945 | Z61: 1.221623859 | AA61: 1.221623859
A62: 45 | B62: -0.8034902418 | C62: 0.1321699194 | D62: 0.660849597 | E62: 0.660849597 | H62: -0.007611333785 | I62: -1.893968147 | J62: 0.3117759206 | K62: 2.493907232 | M62: -0.007611333785 | N62: -1.893968147 | O62: -1.214255722 | P62: 2.493907232 | R62: =RANK(M62,M$18:M$1017,1)+COUNTIF(M$18:M62,M62)-1 -> 519 | S62: =RANK(N62,N$18:N$1017,1)+COUNTIF(N$18:N62,N62)-1 -> 28 | T62: =RANK(O62,O$18:O$1017,1)+COUNTIF(O$18:O62,O62)-1 -> 102 | U62: =RANK(P62,P$18:P$1017,1)+COUNTIF(P$18:P62,P62)-1 -> 992 | X62: -0.594160235 | Y62: 0.1245309654 | Z62: 0.7403913103 | AA62: 1.45242631
A63: 46 | B63: -0.8023554975 | C63: 0.1325481675 | D63: 0.6627408376 | E63: 0.6627408376 | H63: 0.726182634 | I63: -0.6078448678 | J63: -0.410946086 | K63: 0.5674758086 | M63: 0.726182634 | N63: -0.6078448678 | O63: -0.7276989373 | P63: 0.5674758086 | R63: =RANK(M63,M$18:M$1017,1)+COUNTIF(M$18:M63,M63)-1 -> 793 | S63: =RANK(N63,N$18:N$1017,1)+COUNTIF(N$18:N63,N63)-1 -> 261 | T63: =RANK(O63,O$18:O$1017,1)+COUNTIF(O$18:O63,O63)-1 -> 217 | U63: =RANK(P63,P$18:P$1017,1)+COUNTIF(P$18:P63,P63)-1 -> 723 | X63: -0.4985760205 | Y63: 0.1732621928 | Z63: 0.8372587832 | AA63: 1.123094679
A64: 47 | B64: -0.8012383562 | C64: 0.1329205479 | D64: 0.6646027397 | E64: 0.6646027397 | H64: -0.4207049642 | I64: -0.6058212421 | J64: -0.123591235 | K64: -0.5494155175 | M64: -0.4207049642 | N64: -0.6058212421 | O64: -0.5361138496 | P64: -0.5494155175 | R64: =RANK(M64,M$18:M$1017,1)+COUNTIF(M$18:M64,M64)-1 -> 350 | S64: =RANK(N64,N$18:N$1017,1)+COUNTIF(N$18:N64,N64)-1 -> 266 | T64: =RANK(O64,O$18:O$1017,1)+COUNTIF(O$18:O64,O64)-1 -> 279 | U64: =RANK(P64,P$18:P$1017,1)+COUNTIF(P$18:P64,P64)-1 -> 302 | X64: -0.6485502547 | Y64: 0.1738916891 | Z64: 0.8775194083 | AA64: 0.8913941339
A65: 48 | B65: -0.8001381477 | C65: 0.1332872841 | D65: 0.6664364205 | E65: 0.6664364205 | H65: -1.024084213 | I65: -0.2921592568 | J65: 0.9907921594 | K65: 0.5897231858 | M65: -1.024084213 | N65: -0.2921592568 | O65: 0.4362279711 | P65: 0.5897231858 | R65: =RANK(M65,M$18:M$1017,1)+COUNTIF(M$18:M65,M65)-1 -> 162 | S65: =RANK(N65,N$18:N$1017,1)+COUNTIF(N$18:N65,N65)-1 -> 372 | T65: =RANK(O65,O$18:O$1017,1)+COUNTIF(O$18:O65,O65)-1 -> 630 | U65: =RANK(P65,P$18:P$1017,1)+COUNTIF(P$18:P65,P65)-1 -> 732 | X65: -0.7223000859 | Y65: 0.1862668715 | Z65: 1.069217689 | AA65: 1.128665982
A66: 49 | B66: -0.7990542405 | C66: 0.1336485865 | D66: 0.6682429325 | E66: 0.6682429325 | H66: 0.6643199413 | I66: 1.419455202 | J66: -0.4207890925 | K66: 0.5491483535 | M66: 0.6643199413 | N66: 1.419455202 | O66: 0.7862655784 | P66: 0.5491483535 | R66: =RANK(M66,M$18:M$1017,1)+COUNTIF(M$18:M66,M66)-1 -> 777 | S66: =RANK(N66,N$18:N$1017,1)+COUNTIF(N$18:N66,N66)-1 -> 920 | T66: =RANK(O66,O$18:O$1017,1)+COUNTIF(O$18:O66,O66)-1 -> 759 | U66: =RANK(P66,P$18:P$1017,1)+COUNTIF(P$18:P66,P66)-1 -> 716 | X66: -0.5052387842 | Y66: 0.2568251289 | Z66: 1.145914765 | AA66: 1.118815936
A67: 50 | B67: -0.7979860389 | C67: 0.1340046537 | D67: 0.6700232685 | E67: 0.6700232685 | H67: 1.464004526 | I67: -0.7863650353 | J67: -0.9926679923 | K67: -0.09519226296 | M67: 1.464004526 | N67: -0.7863650353 | O67: -1.246361937 | P67: -0.09519226296 | R67: =RANK(M67,M$18:M$1017,1)+COUNTIF(M$18:M67,M67)-1 -> 935 | S67: =RANK(N67,N$18:N$1017,1)+COUNTIF(N$18:N67,N67)-1 -> 199 | T67: =RANK(O67,O$18:O$1017,1)+COUNTIF(O$18:O67,O67)-1 -> 100 | U67: =RANK(P67,P$18:P$1017,1)+COUNTIF(P$18:P67,P67)-1 -> 472 | X67: -0.4173503992 | Y67: 0.1649030685 | Z67: 0.7382091719 | AA67: 0.9849993958
A68: 51 | B68: -0.7969329804 | C68: 0.1343556732 | D68: 0.6717783661 | E68: 0.6717783661 | H68: 2.103033694 | I68: -1.028358838 | J68: 1.524254003 | K68: 0.6794675755 | M68: 2.103033694 | N68: -1.028358838 | O68: 0.2369301282 | P68: 0.6794675755 | R68: =RANK(M68,M$18:M$1017,1)+COUNTIF(M$18:M68,M68)-1 -> 984 | S68: =RANK(N68,N$18:N$1017,1)+COUNTIF(N$18:N68,N68)-1 -> 129 | T68: =RANK(O68,O$18:O$1017,1)+COUNTIF(O$18:O68,O68)-1 -> 565 | U68: =RANK(P68,P$18:P$1017,1)+COUNTIF(P$18:P68,P68)-1 -> 765 | X68: -0.3523048588 | Y68: 0.1534962221 | Z68: 1.034056212 | AA68: 1.149870701
A69: 52 | B69: -0.7958945329 | C69: 0.1347018224 | D69: 0.6735091118 | E69: 0.6735091118 | H69: -1.013031579 | I69: 0.9501195564 | J69: -0.391875119 | K69: -1.337948561 | M69: -1.013031579 | N69: 0.9501195564 | O69: 0.4533886398 | P69: -1.337948561 | R69: =RANK(M69,M$18:M$1017,1)+COUNTIF(M$18:M69,M69)-1 -> 164 | S69: =RANK(N69,N$18:N$1017,1)+COUNTIF(N$18:N69,N69)-1 -> 811 | T69: =RANK(O69,O$18:O$1017,1)+COUNTIF(O$18:O69,O69)-1 -> 641 | U69: =RANK(P69,P$18:P$1017,1)+COUNTIF(P$18:P69,P69)-1 -> 91 | X69: -0.7213272517 | Y69: 0.2364177568 | Z69: 1.07531965 | AA69: 0.7280177931
A70: 53 | B70: -0.7948701932 | C70: 0.1350432689 | D70: 0.6752163447 | E70: 0.6752163447 | H70: 0.5800120562 | I70: 0.003863078746 | J70: 1.476628313 | K70: -0.06564505384 | M70: 0.5800120562 | N70: 0.003863078746 | O70: 0.9795951328 | P70: -0.06564505384 | R70: =RANK(M70,M$18:M$1017,1)+COUNTIF(M$18:M70,M70)-1 -> 744 | S70: =RANK(N70,N$18:N$1017,1)+COUNTIF(N$18:N70,N70)-1 -> 476 | T70: =RANK(O70,O$18:O$1017,1)+COUNTIF(O$18:O70,O70)-1 -> 828 | U70: =RANK(P70,P$18:P$1017,1)+COUNTIF(P$18:P70,P70)-1 -> 482 | X70: -0.5182637595 | Y70: 0.1974214619 | Z70: 1.195053864 | AA70: 0.9902670584
A71: 54 | B71: -0.793859484 | C71: 0.135380172 | D71: 0.67690086 | E71: 0.67690086 | H71: -0.3022330475 | I71: -0.09388713806 | J71: -1.649414116 | K71: 0.1777584657 | M71: -0.3022330475 | N71: -0.09388713806 | O71: -1.161400244 | P71: 0.1777584657 | R71: =RANK(M71,M$18:M$1017,1)+COUNTIF(M$18:M71,M71)-1 -> 405 | S71: =RANK(N71,N$18:N$1017,1)+COUNTIF(N$18:N71,N71)-1 -> 445 | T71: =RANK(O71,O$18:O$1017,1)+COUNTIF(O$18:O71,O71)-1 -> 112 | U71: =RANK(P71,P$18:P$1017,1)+COUNTIF(P$18:P71,P71)-1 -> 583 | X71: -0.6303985688 | Y71: 0.1941451586 | Z71: 0.7509049634 | AA71: 1.04367031
A72: 55 | B72: -0.7928619529 | C72: 0.1357126824 | D72: 0.6785634118 | E72: 0.6785634118 | H72: -0.4197863746 | I72: -2.021042746 | J72: 0.2335525551 | K72: 0.7603671293 | M72: -0.4197863746 | N72: -2.021042746 | O72: -1.361301565 | P72: 0.7603671293 | R72: =RANK(M72,M$18:M$1017,1)+COUNTIF(M$18:M72,M72)-1 -> 351 | S72: =RANK(N72,N$18:N$1017,1)+COUNTIF(N$18:N72,N72)-1 -> 19 | T72: =RANK(O72,O$18:O$1017,1)+COUNTIF(O$18:O72,O72)-1 -> 74 | U72: =RANK(P72,P$18:P$1017,1)+COUNTIF(P$18:P72,P72)-1 -> 791 | X72: -0.6482130365 | Y72: 0.1189430518 | Z72: 0.7067577064 | AA72: 1.167628076
A73: 56 | B73: -0.7918771703 | C73: 0.1360409432 | D73: 0.6802047162 | E73: 0.6802047162 | H73: 0.6254231266 | I73: -0.7230983101 | J73: -0.2525416676 | K73: -1.805956344 | M73: 0.6254231266 | N73: -0.7230983101 | O73: -0.7093643446 | P73: -1.805956344 | R73: =RANK(M73,M$18:M$1017,1)+COUNTIF(M$18:M73,M73)-1 -> 759 | S73: =RANK(N73,N$18:N$1017,1)+COUNTIF(N$18:N73,N73)-1 -> 217 | T73: =RANK(O73,O$18:O$1017,1)+COUNTIF(O$18:O73,O73)-1 -> 222 | U73: =RANK(P73,P$18:P$1017,1)+COUNTIF(P$18:P73,P73)-1 -> 36 | X73: -0.5124511411 | Y73: 0.1674517566 | Z73: 0.8406994979 | AA73: 0.642283531
A74: 57 | B74: -0.7909047278 | C74: 0.1363650907 | D74: 0.6818254537 | E74: 0.6818254537 | H74: 0.9632981346 | I74: 0.1086505108 | J74: 2.067390596 | K74: 0.9708674042 | M74: 0.9632981346 | N74: 0.1086505108 | O74: 1.448938228 | P74: 0.9708674042 | R74: =RANK(M74,M$18:M$1017,1)+COUNTIF(M$18:M74,M74)-1 -> 846 | S74: =RANK(N74,N$18:N$1017,1)+COUNTIF(N$18:N74,N74)-1 -> 519 | T74: =RANK(O74,O$18:O$1017,1)+COUNTIF(O$18:O74,O74)-1 -> 924 | U74: =RANK(P74,P$18:P$1017,1)+COUNTIF(P$18:P74,P74)-1 -> 846 | X74: -0.4742384765 | Y74: 0.2019465883 | Z74: 1.289266297 | AA74: 1.209602539
A75: 58 | B75: -0.789944237 | C75: 0.1366852543 | D75: 0.6834262716 | E75: 0.6834262716 | H75: 0.3776244739 | I75: 1.973821782 | J75: 0.0571367309 | K75: -0.5926392532 | M75: 0.3776244739 | N75: 1.973821782 | O75: 1.518158731 | P75: -0.5926392532 | R75: =RANK(M75,M$18:M$1017,1)+COUNTIF(M$18:M75,M75)-1 -> 672 | S75: =RANK(N75,N$18:N$1017,1)+COUNTIF(N$18:N75,N75)-1 -> 979 | T75: =RANK(O75,O$18:O$1017,1)+COUNTIF(O$18:O75,O75)-1 -> 932 | U75: =RANK(P75,P$18:P$1017,1)+COUNTIF(P$18:P75,P75)-1 -> 288 | X75: -0.5442908987 | Y75: 0.2790067399 | Z75: 1.300121799 | AA75: 0.8830039713
A76: 59 | B76: -0.7889953283 | C76: 0.1370015572 | D76: 0.6850077862 | E76: 0.6850077862 | H76: -0.3878312782 | I76: -1.458442966 | J76: 0.6835205113 | K76: 0.3745037702 | M76: -0.3878312782 | N76: -1.458442966 | O76: -0.6417259026 | P76: 0.3745037702 | R76: =RANK(M76,M$18:M$1017,1)+COUNTIF(M$18:M76,M76)-1 -> 372 | S76: =RANK(N76,N$18:N$1017,1)+COUNTIF(N$18:N76,N76)-1 -> 65 | T76: =RANK(O76,O$18:O$1017,1)+COUNTIF(O$18:O76,O76)-1 -> 243 | U76: =RANK(P76,P$18:P$1017,1)+COUNTIF(P$18:P76,P76)-1 -> 644 | X76: -0.6411993855 | Y76: 0.1388245154 | Z76: 0.8547398812 | AA76: 1.076993644
A77: 60 | B77: -0.7880576491 | C77: 0.137314117 | D77: 0.6865705848 | E77: 0.6865705848 | H77: -0.8233814697 | I77: -0.8979486665 | J77: 0.4060393621 | K77: -0.3656566605 | M77: -0.8233814697 | N77: -0.8979486665 | O77: -0.4048917062 | P77: -0.3656566605 | R77: =RANK(M77,M$18:M$1017,1)+COUNTIF(M$18:M77,M77)-1 -> 212 | S77: =RANK(N77,N$18:N$1017,1)+COUNTIF(N$18:N77,N77)-1 -> 156 | T77: =RANK(O77,O$18:O$1017,1)+COUNTIF(O$18:O77,O77)-1 -> 330 | U77: =RANK(P77,P$18:P$1017,1)+COUNTIF(P$18:P77,P77)-1 -> 373 | X77: -0.6997339496 | Y77: 0.1582461745 | Z77: 0.9077255859 | AA77: 0.9318859762
A78: 61 | B78: -0.7871308636 | C78: 0.1376230455 | D78: 0.6881152274 | E78: 0.6881152274 | H78: -0.4044613888 | I78: -0.497648216 | J78: 0.2754336492 | K78: 0.556545956 | M78: -0.4044613888 | N78: -0.497648216 | O78: -0.1910539273 | P78: 0.556545956 | R78: =RANK(M78,M$18:M$1017,1)+COUNTIF(M$18:M78,M78)-1 -> 359 | S78: =RANK(N78,N$18:N$1017,1)+COUNTIF(N$18:N78,N78)-1 -> 301 | T78: =RANK(O78,O$18:O$1017,1)+COUNTIF(O$18:O78,O78)-1 -> 420 | U78: =RANK(P78,P$18:P$1017,1)+COUNTIF(P$18:P78,P78)-1 -> 717 | X78: -0.6455262978 | Y78: 0.1781600408 | Z78: 0.957401659 | AA78: 1.119424386
A79: 62 | B79: -0.7862146509 | C79: 0.1379284497 | D79: 0.6896422485 | E79: 0.6896422485 | H79: -1.186513146 | I79: -1.217708814 | J79: 1.38750238 | K79: -0.3846162144 | M79: -1.186513146 | N79: -1.217708814 | O79: 0.004464949683 | P79: -0.3846162144 | R79: =RANK(M79,M$18:M$1017,1)+COUNTIF(M$18:M79,M79)-1 -> 128 | S79: =RANK(N79,N$18:N$1017,1)+COUNTIF(N$18:N79,N79)-1 -> 89 | T79: =RANK(O79,O$18:O$1017,1)+COUNTIF(O$18:O79,O79)-1 -> 490 | U79: =RANK(P79,P$18:P$1017,1)+COUNTIF(P$18:P79,P79)-1 -> 361 | X79: -0.7400727466 | Y79: 0.1451326577 | Z79: 0.9944770989 | AA79: 0.9252373829
A80: 63 | B80: -0.7853087048 | C80: 0.1382304317 | D80: 0.6911521586 | E80: 0.6911521586 | H80: -0.3461775577 | I80: -0.5425772542 | J80: -0.371551323 | K80: 0.9522841538 | M80: -0.3461775577 | N80: -0.5425772542 | O80: -0.6526910407 | P80: 0.9522841538 | R80: =RANK(M80,M$18:M$1017,1)+COUNTIF(M$18:M80,M80)-1 -> 390 | S80: =RANK(N80,N$18:N$1017,1)+COUNTIF(N$18:N80,N80)-1 -> 281 | T80: =RANK(O80,O$18:O$1017,1)+COUNTIF(O$18:O80,O80)-1 -> 241 | U80: =RANK(P80,P$18:P$1017,1)+COUNTIF(P$18:P80,P80)-1 -> 841 | X80: -0.6352788223 | Y80: 0.1757489425 | Z80: 0.8534292727 | AA80: 1.205466592
A81: 64 | B81: -0.7844127325 | C81: 0.1385290892 | D81: 0.6926454458 | E81: 0.6926454458 | H81: -0.4770595297 | I81: 1.817006705 | J81: 0.4256412467 | K81: -0.8357915249 | M81: -0.4770595297 | N81: 1.817006705 | O81: 1.64429025 | P81: -0.8357915249 | R81: =RANK(M81,M$18:M$1017,1)+COUNTIF(M$18:M81,M81)-1 -> 334 | S81: =RANK(N81,N$18:N$1017,1)+COUNTIF(N$18:N81,N81)-1 -> 969 | T81: =RANK(O81,O$18:O$1017,1)+COUNTIF(O$18:O81,O81)-1 -> 958 | U81: =RANK(P81,P$18:P$1017,1)+COUNTIF(P$18:P81,P81)-1 -> 198 | X81: -0.6539905573 | Y81: 0.2734152236 | Z81: 1.343025726 | AA81: 0.8237896866
A82: 65 | B82: -0.7835264539 | C82: 0.1388245154 | D82: 0.6941225769 | E82: 0.6941225769 | H82: -0.07469338925 | I82: -0.9412656254 | J82: 0.2523836429 | K82: -1.910784704 | M82: -0.07469338925 | N82: -0.9412656254 | O82: -0.5390131306 | P82: -1.910784704 | R82: =RANK(M82,M$18:M$1017,1)+COUNTIF(M$18:M82,M82)-1 -> 496 | S82: =RANK(N82,N$18:N$1017,1)+COUNTIF(N$18:N82,N82)-1 -> 143 | T82: =RANK(O82,O$18:O$1017,1)+COUNTIF(O$18:O82,O82)-1 -> 278 | U82: =RANK(P82,P$18:P$1017,1)+COUNTIF(P$18:P82,P82)-1 -> 33 | X82: -0.6014200549 | Y82: =LOOKUP(S82,$A$18:$A$1017,C$18:C$1017) -> 0.15602723 | Z82: =LOOKUP(T82,$A$18:$A$1017,D$18:D$1017) -> 0.8769053213 | AA82: =LOOKUP(U82,$A$18:$A$1017,E$18:E$1017) -> 0.6353411951
A83: 66 | B83: =BETAINV($A83/1001,B$11,B$12,B$6,B$7) -> -0.7826496008 | C83: 0.1391167997 | D83: 0.6955839987 | E83: 0.6955839987 | H83: -0.9200334716 | I83: -0.6926325113 | J83: 0.04426851774 | K83: 0.5801018688 | M83: -0.9200334716 | N83: -0.6926325113 | O83: -0.4901935113 | P83: 0.5801018688 | R83: =RANK(M83,M$18:M$1017,1)+COUNTIF(M$18:M83,M83)-1 -> 182 | S83: =RANK(N83,N$18:N$1017,1)+COUNTIF(N$18:N83,N83)-1 -> 228 | T83: =RANK(O83,O$18:O$1017,1)+COUNTIF(O$18:O83,O83)-1 -> 297 | U83: =RANK(P83,P$18:P$1017,1)+COUNTIF(P$18:P83,P83)-1 -> 728 | X83: =LOOKUP(R83,$A$18:$A$1017,B$18:B$1017) -> -0.7128631531 | Y83: 0.1689552919 | Z83: 0.8884164324 | AA83: 1.126179787
A84: =A83+1 -> 67 | B84: -0.7817819165 | C84: 0.1394060278 | D84: 0.6970301392 | E84: 0.6970301392 | H84: -0.6538641628 | I84: -1.286384759 | J84: -1.515272743 | K84: 0.2816364031 | M84: -0.6538641628 | N84: -1.286384759 | O84: -1.967047281 | P84: 0.2816364031 | R84: =RANK(M84,M$18:M$1017,1)+COUNTIF(M$18:M84,M84)-1 -> 270 | S84: =RANK(N84,N$18:N$1017,1)+COUNTIF(N$18:N84,N84)-1 -> 84 | T84: =RANK(O84,O$18:O$1017,1)+COUNTIF(O$18:O84,O84)-1 -> 24 | U84: =RANK(P84,P$18:P$1017,1)+COUNTIF(P$18:P84,P84)-1 -> 613 | X84: -0.6768257341 | Y84: 0.1439236461 | Z84: 0.6112261174 | AA84: 1.059888321
A85: 68 | B85: -0.7809231548 | C85: 0.1396922817 | D85: 0.6984614087 | E85: 0.6984614087 | H85: -0.3228774403 | I85: -0.8627830539 | J85: 1.991847967 | K85: 0.4812636689 | M85: -0.3228774403 | N85: -0.8627830539 | O85: 0.6703963018 | P85: 0.4812636689 | R85: =RANK(M85,M$18:M$1017,1)+COUNTIF(M$18:M85,M85)-1 -> 397 | S85: =RANK(N85,N$18:N$1017,1)+COUNTIF(N$18:N85,N85)-1 -> 167 | T85: =RANK(O85,O$18:O$1017,1)+COUNTIF(O$18:O85,O85)-1 -> 718 | U85: =RANK(P85,P$18:P$1017,1)+COUNTIF(P$18:P85,P85)-1 -> 676 | X85: -0.6329958432 | Y85: 0.1600397212 | Z85: 1.120033756 | AA85: 1.095151217
A86: 69 | B86: -0.7800730796 | C86: 0.1399756401 | D86: 0.6998782007 | E86: 0.6998782007 | H86: 0.05346009857 | I86: -0.6907862371 | J86: 0.07753214959 | K86: -0.4248033747 | M86: 0.05346009857 | N86: -0.6907862371 | O86: -0.4668069812 | P86: -0.4248033747 | R86: =RANK(M86,M$18:M$1017,1)+COUNTIF(M$18:M86,M86)-1 -> 537 | S86: =RANK(N86,N$18:N$1017,1)+COUNTIF(N$18:N86,N86)-1 -> 230 | T86: =RANK(O86,O$18:O$1017,1)+COUNTIF(O$18:O86,O86)-1 -> 306 | U86: =RANK(P86,P$18:P$1017,1)+COUNTIF(P$18:P86,P86)-1 -> 347 | X86: -0.5884675859 | Y86: 0.1692246717 | Z86: 0.8937620024 | AA86: 0.9173936488
A87: 70 | B87: -0.7792314643 | C87: 0.1402561786 | D87: 0.7012808928 | E87: 0.7012808928 | H87: -0.4255571184 | I87: -0.2792501164 | J87: 0.469101451 | K87: -1.315265763 | M87: -0.4255571184 | N87: -0.2792501164 | O87: 0.1008438575 | P87: -1.315265763 | R87: =RANK(M87,M$18:M$1017,1)+COUNTIF(M$18:M87,M87)-1 -> 346 | S87: =RANK(N87,N$18:N$1017,1)+COUNTIF(N$18:N87,N87)-1 -> 380 | T87: =RANK(O87,O$18:O$1017,1)+COUNTIF(O$18:O87,O87)-1 -> 529 | U87: =RANK(P87,P$18:P$1017,1)+COUNTIF(P$18:P87,P87)-1 -> 95 | X87: -0.6499023061 | Y87: 0.1871471344 | Z87: 1.015000604 | AA87: 0.7326257389
A88: 71 | B88: -0.7783980914 | C88: 0.1405339695 | D88: 0.7026698477 | E88: 0.7026698477 | H88: 0.120585355 | I88: 1.655103006 | J88: -0.2495414719 | K88: 0.5633467026 | M88: 0.120585355 | N88: 1.655103006 | O88: 1.076271085 | P88: 0.5633467026 | R88: =RANK(M88,M$18:M$1017,1)+COUNTIF(M$18:M88,M88)-1 -> 568 | S88: =RANK(N88,N$18:N$1017,1)+COUNTIF(N$18:N88,N88)-1 -> 954 | T88: =RANK(O88,O$18:O$1017,1)+COUNTIF(O$18:O88,O88)-1 -> 854 | U88: =RANK(P88,P$18:P$1017,1)+COUNTIF(P$18:P88,P88)-1 -> 721 | X88: -0.5786078213 | Y88: 0.2670794521 | Z88: 1.216387967 | AA88: 1.121867464
A89: 72 | B89: -0.7775727518 | C89: 0.1408090827 | D89: 0.7040454137 | E89: 0.7040454137 | H89: -0.3539048521 | I89: -0.1429634722 | J89: -0.5731453712 | K89: 0.0474085482 | M89: -0.3539048521 | N89: -0.1429634722 | O89: -0.4863226334 | P89: 0.0474085482 | R89: =RANK(M89,M$18:M$1017,1)+COUNTIF(M$18:M89,M89)-1 -> 385 | S89: =RANK(N89,N$18:N$1017,1)+COUNTIF(N$18:N89,N89)-1 -> 422 | T89: =RANK(O89,O$18:O$1017,1)+COUNTIF(O$18:O89,O89)-1 -> 300 | U89: =RANK(P89,P$18:P$1017,1)+COUNTIF(P$18:P89,P89)-1 -> 533 | X89: -0.636915892 | Y89: 0.1916945263 | Z89: 0.8902054753 | AA89: 1.017109873
A90: 73 | B90: -0.7767552445 | C90: 0.1410815852 | D90: 0.7054079258 | E90: 0.7054079258 | H90: -2.138549462 | I90: 2.584019967 | J90: 1.25533461 | K90: -0.1614603207 | M90: -2.138549462 | N90: 2.584019967 | O90: 2.768340772 | P90: -0.1614603207 | R90: =RANK(M90,M$18:M$1017,1)+COUNTIF(M$18:M90,M90)-1 -> 12 | S90: =RANK(N90,N$18:N$1017,1)+COUNTIF(N$18:N90,N90)-1 -> 997 | T90: =RANK(O90,O$18:O$1017,1)+COUNTIF(O$18:O90,O90)-1 -> 996 | U90: =RANK(P90,P$18:P$1017,1)+COUNTIF(P$18:P90,P90)-1 -> 449 | X90: -0.8611284325 | Y90: 0.299126528 | Z90: 1.484455943 | AA90: 0.9728466336
A91: 74 | B91: -0.7759453762 | C91: 0.1413515413 | D91: 0.7067577064 | E91: 0.7067577064 | H91: -0.4232128958 | I91: 0.9664654499 | J91: 1.748803697 | K91: 0.2404760835 | M91: -0.4232128958 | N91: 0.9664654499 | O91: 1.881574006 | P91: 0.2404760835 | R91: =RANK(M91,M$18:M$1017,1)+COUNTIF(M$18:M91,M91)-1 -> 348 | S91: =RANK(N91,N$18:N$1017,1)+COUNTIF(N$18:N91,N91)-1 -> 818 | T91: =RANK(O91,O$18:O$1017,1)+COUNTIF(O$18:O91,O91)-1 -> 973 | U91: =RANK(P91,P$18:P$1017,1)+COUNTIF(P$18:P91,P91)-1 -> 605 | X91: -0.649225639 | Y91: 0.2374690499 | Z91: 1.377345173 | AA91: 1.055535618
A92: 75 | B92: -0.7751429607 | C92: 0.1416190131 | D92: 0.7080950654 | E92: 0.7080950654 | H92: 0.09319478522 | I92: 2.18358764 | J92: 1.092796538 | K92: 1.438352228 | M92: 0.09319478522 | N92: 2.18358764 | O92: 2.360507698 | P92: 1.438352228 | R92: =RANK(M92,M$18:M$1017,1)+COUNTIF(M$18:M92,M92)-1 -> 553 | S92: =RANK(N92,N$18:N$1017,1)+COUNTIF(N$18:N92,N92)-1 -> 987 | T92: =RANK(O92,O$18:O$1017,1)+COUNTIF(O$18:O92,O92)-1 -> 992 | U92: =RANK(P92,P$18:P$1017,1)+COUNTIF(P$18:P92,P92)-1 -> 928 | X92: -0.5833899983 | Y92: 0.2851051643 | Z92: 1.45242631 | AA92: 1.294592074
A93: 76 | B93: -0.774347819 | C93: 0.1418840603 | D93: 0.7094203016 | E93: 0.7094203016 | H93: -1.44245405 | I93: 1.101454927 | J93: 0.08482402336 | K93: 0.3495097189 | M93: -1.44245405 | N93: 1.101454927 | O93: 0.8821970132 | P93: 0.3495097189 | R93: =RANK(M93,M$18:M$1017,1)+COUNTIF(M$18:M93,M93)-1 -> 75 | S93: =RANK(N93,N$18:N$1017,1)+COUNTIF(N$18:N93,N93)-1 -> 853 | T93: =RANK(O93,O$18:O$1017,1)+COUNTIF(O$18:O93,O93)-1 -> 794 | U93: =RANK(P93,P$18:P$1017,1)+COUNTIF(P$18:P93,P93)-1 -> 636 | X93: -0.7751429607 | Y93: 0.2431055832 | Z93: 1.169748603 | AA93: 1.07253919
A94: 77 | B94: -0.7735597785 | C94: 0.1421467405 | D94: 0.7107337026 | E94: 0.7107337026 | H94: 0.8889401215 | I94: 1.182502274 | J94: -0.7493815701 | K94: -2.387387212 | M94: 0.8889401215 | N94: 1.182502274 | O94: 0.3912073875 | P94: -2.387387212 | R94: =RANK(M94,M$18:M$1017,1)+COUNTIF(M$18:M94,M94)-1 -> 832 | S94: =RANK(N94,N$18:N$1017,1)+COUNTIF(N$18:N94,N94)-1 -> 880 | T94: =RANK(O94,O$18:O$1017,1)+COUNTIF(O$18:O94,O94)-1 -> 620 | U94: =RANK(P94,P$18:P$1017,1)+COUNTIF(P$18:P94,P94)-1 -> 14 | X94: -0.4810751101 | Y94: 0.2480271864 | Z94: 1.063715985 | AA94: 0.5744741784
A95: 78 | B95: -0.7727786726 | C95: 0.1424071091 | D95: 0.7120355457 | E95: 0.7120355457 | H95: -0.5257265911 | I95: 0.6746574854 | J95: -0.7327707863 | K95: -0.3213472155 | M95: -0.5257265911 | N95: 0.6746574854 | O95: 0.02131079695 | P95: -0.3213472155 | R95: =RANK(M95,M$18:M$1017,1)+COUNTIF(M$18:M95,M95)-1 -> 311 | S95: =RANK(N95,N$18:N$1017,1)+COUNTIF(N$18:N95,N95)-1 -> 709 | T95: =RANK(O95,O$18:O$1017,1)+COUNTIF(O$18:O95,O95)-1 -> 495 | U95: =RANK(P95,P$18:P$1017,1)+COUNTIF(P$18:P95,P95)-1 -> 387 | X95: -0.6619772073 | Y95: 0.2229163816 | Z95: 0.9971072686 | AA95: 0.939565993
A96: 79 | B96: -0.772004341 | C96: 0.1426652197 | D96: 0.7133260983 | E96: 0.7133260983 | H96: -0.1947273631 | I96: 0.3517061486 | J96: -1.644662007 | K96: 0.5898141353 | M96: -0.1947273631 | N96: 0.3517061486 | O96: -0.8240620536 | P96: 0.5898141353 | R96: =RANK(M96,M$18:M$1017,1)+COUNTIF(M$18:M96,M96)-1 -> 447 | S96: =RANK(N96,N$18:N$1017,1)+COUNTIF(N$18:N96,N96)-1 -> 599 | T96: =RANK(O96,O$18:O$1017,1)+COUNTIF(O$18:O96,O96)-1 -> 187 | U96: =RANK(P96,P$18:P$1017,1)+COUNTIF(P$18:P96,P96)-1 -> 733 | X96: -0.6169280784 | Y96: 0.2104570441 | Z96: 0.8156718302 | AA96: 1.129290118
A97: 80 | B97: -0.7712366289 | C97: 0.1429211237 | D97: 0.7146056186 | E97: 0.7146056186 | H97: -0.7169523997 | I97: 0.8998972589 | J97: -1.533608156 | K97: 0.9024233805 | M97: -0.7169523997 | N97: 0.8998972589 | O97: -0.3394635032 | P97: 0.9024233805 | R97: =RANK(M97,M$18:M$1017,1)+COUNTIF(M$18:M97,M97)-1 -> 244 | S97: =RANK(N97,N$18:N$1017,1)+COUNTIF(N$18:N97,N97)-1 -> 791 | T97: =RANK(O97,O$18:O$1017,1)+COUNTIF(O$18:O97,O97)-1 -> 364 | U97: =RANK(P97,P$18:P$1017,1)+COUNTIF(P$18:P97,P97)-1 -> 827 | X97: -0.6867640668 | Y97: 0.2335256151 | Z97: 0.9269056505 | AA97: 1.194271827
A98: 81 | B98: -0.7704753867 | C98: 0.1431748711 | D98: 0.7158743555 | E98: 0.7158743555 | H98: -0.7311700756 | I98: 1.922790034 | J98: -0.7540484148 | K98: -0.7234962141 | M98: -0.7311700756 | N98: 1.922790034 | O98: 0.9433363799 | P98: -0.7234962141 | R98: =RANK(M98,M$18:M$1017,1)+COUNTIF(M$18:M98,M98)-1 -> 238 | S98: =RANK(N98,N$18:N$1017,1)+COUNTIF(N$18:N98,N98)-1 -> 977 | T98: =RANK(O98,O$18:O$1017,1)+COUNTIF(O$18:O98,O98)-1 -> 817 | U98: =RANK(P98,P$18:P$1017,1)+COUNTIF(P$18:P98,P98)-1 -> 234 | X98: -0.6891279789 | Y98: 0.2777547765 | Z98: 1.186587563 | AA98: 0.8487996744
A99: 82 | B99: -0.7697204703 | C99: 0.1434265099 | D99: 0.7171325495 | E99: 0.7171325495 | H99: 0.9863038031 | I99: 0.9750419849 | J99: 0.9160703485 | K99: -0.7007247405 | M99: 0.9863038031 | N99: 0.9750419849 | O99: 1.33720507 | P99: -0.7007247405 | R99: =RANK(M99,M$18:M$1017,1)+COUNTIF(M$18:M99,M99)-1 -> 851 | S99: =RANK(N99,N$18:N$1017,1)+COUNTIF(N$18:N99,N99)-1 -> 822 | T99: =RANK(O99,O$18:O$1017,1)+COUNTIF(O$18:O99,O99)-1 -> 904 | U99: =RANK(P99,P$18:P$1017,1)+COUNTIF(P$18:P99,P99)-1 -> 243 | X99: -0.4717090774 | Y99: 0.2380798866 | Z99: 1.265118245 | AA99: 0.8547398812
A100: 83 | B100: -0.7689717402 | C100: 0.1436760866 | D100: 0.718380433 | E100: 0.718380433 | H100: -0.1784576398 | I100: -0.625609573 | J100: 0.8175970834 | K100: 1.26822215 | M100: -0.1784576398 | N100: -0.625609573 | O100: 0.07158245904 | P100: 1.26822215 | R100: =RANK(M100,M$18:M$1017,1)+COUNTIF(M$18:M100,M100)-1 -> 454 | S100: =RANK(N100,N$18:N$1017,1)+COUNTIF(N$18:N100,N100)-1 -> 254 | T100: =RANK(O100,O$18:O$1017,1)+COUNTIF(O$18:O100,O100)-1 -> 526 | U100: =RANK(P100,P$18:P$1017,1)+COUNTIF(P$18:P100,P100)-1 -> 906 | X100: -0.6147034687 | Y100: 0.1723714618 | Z100: 1.013419552 | AA100: 1.267374261
A101: 84 | B101: -0.7682290616 | C101: 0.1439236461 | D101: 0.7196182307 | E101: 0.7196182307 | H101: 0.3299783202 | I101: -0.03913896762 | J101: 0.5640640666 | K101: -0.5020683602 | M101: 0.3299783202 | N101: -0.03913896762 | O101: 0.3437390852 | P101: -0.5020683602 | R101: =RANK(M101,M$18:M$1017,1)+COUNTIF(M$18:M101,M101)-1 -> 654 | S101: =RANK(N101,N$18:N$1017,1)+COUNTIF(N$18:N101,N101)-1 -> 467 | T101: =RANK(O101,O$18:O$1017,1)+COUNTIF(O$18:O101,O101)-1 -> 603 | U101: =RANK(P101,P$18:P$1017,1)+COUNTIF(P$18:P101,P101)-1 -> 318 | X101: -0.5504361893 | Y101: 0.1964725151 | Z101: 1.054450856 | AA101: 0.9007936886
A102: 85 | B102: -0.7674923042 | C102: 0.1441692319 | D102: 0.7208461596 | E102: 0.7208461596 | H102: -0.9039172255 | I102: 0.1864691512 | J102: 1.185430847 | K102: -0.1949604211 | M102: -0.9039172255 | N102: 0.1864691512 | O102: 0.9239406677 | P102: -0.1949604211 | R102: =RANK(M102,M$18:M$1017,1)+COUNTIF(M$18:M102,M102)-1 -> 186 | S102: =RANK(N102,N$18:N$1017,1)+COUNTIF(N$18:N102,N102)-1 -> 545 | T102: =RANK(O102,O$18:O$1017,1)+COUNTIF(O$18:O102,O102)-1 -> 809 | U102: =RANK(P102,P$18:P$1017,1)+COUNTIF(P$18:P102,P102)-1 -> 435 | X102: -0.711047428 | Y102: 0.2046895491 | Z102: 1.180606671 | AA102: 0.9654115157
A103: 86 | B103: -0.7667613421 | C103: 0.144412886 | D103: 0.7220644298 | E103: 0.7220644298 | H103: -0.9043787941 | I103: 1.442235771 | J103: 0.3067998477 | K103: -0.5467484243 | M103: -0.9043787941 | N103: 1.442235771 | O103: 1.284605853 | P103: -0.5467484243 | R103: =RANK(M103,M$18:M$1017,1)+COUNTIF(M$18:M103,M103)-1 -> 185 | S103: =RANK(N103,N$18:N$1017,1)+COUNTIF(N$18:N103,N103)-1 -> 923 | T103: =RANK(O103,O$18:O$1017,1)+COUNTIF(O$18:O103,O103)-1 -> 896 | U103: =RANK(P103,P$18:P$1017,1)+COUNTIF(P$18:P103,P103)-1 -> 303 | X103: -0.7114993018 | Y103: 0.2575928909 | Z103: 1.256387135 | AA103: 0.8919872723
A104: 87 | B104: -0.7660360533 | C104: 0.1446546489 | D104: 0.7232732445 | E104: 0.7232732445 | H104: 1.481657819 | I104: 0.765586492 | J104: -0.5959248028 | K104: -0.908646598 | M104: 1.481657819 | N104: 0.765586492 | O104: 0.1800226619 | P104: -0.908646598 | R104: =RANK(M104,M$18:M$1017,1)+COUNTIF(M$18:M104,M104)-1 -> 938 | S104: =RANK(N104,N$18:N$1017,1)+COUNTIF(N$18:N104,N104)-1 -> 750 | T104: =RANK(O104,O$18:O$1017,1)+COUNTIF(O$18:O104,O104)-1 -> 557 | U104: =RANK(P104,P$18:P$1017,1)+COUNTIF(P$18:P104,P104)-1 -> 178 | X104: -0.4146912952 | Y104: 0.2280137976 | Z104: 1.029804828 | AA104: 0.8088310352
A105: 88 | B105: -0.7653163196 | C105: 0.1448945601 | D105: 0.7244728006 | E105: 0.7244728006 | H105: -0.7881374131 | I105: 0.03156060302 | J105: 1.822618287 | K105: -0.1124215032 | M105: -0.7881374131 | N105: 0.03156060302 | O105: 1.229219133 | P105: -0.1124215032 | R105: =RANK(M105,M$18:M$1017,1)+COUNTIF(M$18:M105,M105)-1 -> 225 | S105: =RANK(N105,N$18:N$1017,1)+COUNTIF(N$18:N105,N105)-1 -> 485 | T105: =RANK(O105,O$18:O$1017,1)+COUNTIF(O$18:O105,O105)-1 -> 891 | U105: =RANK(P105,P$18:P$1017,1)+COUNTIF(P$18:P105,P105)-1 -> 466 | X105: -0.6943530707 | Y105: 0.1983692306 | Z105: 1.251147813 | AA105: 0.981834924
A106: 89 | B106: -0.7646020268 | C106: 0.1451326577 | D106: 0.7256632886 | E106: 0.7256632886 | H106: -0.5631682143 | I106: 1.04340188 | J106: 0.2632179985 | K106: 0.3391198788 | M106: -0.5631682143 | N106: 1.04340188 | O106: 0.9566537515 | P106: 0.3391198788 | R106: =RANK(M106,M$18:M$1017,1)+COUNTIF(M$18:M106,M106)-1 -> 300 | S106: =RANK(N106,N$18:N$1017,1)+COUNTIF(N$18:N106,N106)-1 -> 838 | T106: =RANK(O106,O$18:O$1017,1)+COUNTIF(O$18:O106,O106)-1 -> 819 | U106: =RANK(P106,P$18:P$1017,1)+COUNTIF(P$18:P106,P106)-1 -> 632 | X106: -0.6658767148 | Y106: 0.2406042666 | Z106: 1.188105255 | AA106: 1.070323083
A107: 90 | B107: -0.7638930641 | C107: 0.1453689786 | D107: 0.7268448932 | E107: 0.7268448932 | H107: -0.4963499123 | I107: 0.3185289188 | J107: -0.7523226486 | K107: 0.06940126696 | M107: -0.4963499123 | N107: 0.3185289188 | O107: -0.2587179694 | P107: 0.06940126696 | R107: =RANK(M107,M$18:M$1017,1)+COUNTIF(M$18:M107,M107)-1 -> 323 | S107: =RANK(N107,N$18:N$1017,1)+COUNTIF(N$18:N107,N107)-1 -> 588 | T107: =RANK(O107,O$18:O$1017,1)+COUNTIF(O$18:O107,O107)-1 -> 394 | U107: =RANK(P107,P$18:P$1017,1)+COUNTIF(P$18:P107,P107)-1 -> 538 | X107: -0.6577838805 | Y107: 0.2092709537 | Z107: 0.943378284 | AA107: 1.019748659
A108: 91 | B108: -0.7631893241 | C108: 0.1456035586 | D108: 0.7280177931 | E108: 0.7280177931 | H108: 0.1955845619 | I108: -0.6567086075 | J108: -0.997688403 | K108: 1.128082658 | M108: 0.1955845619 | N108: -0.6567086075 | O108: -1.152440306 | P108: 1.128082658 | R108: =RANK(M108,M$18:M$1017,1)+COUNTIF(M$18:M108,M108)-1 -> 596 | S108: =RANK(N108,N$18:N$1017,1)+COUNTIF(N$18:N108,N108)-1 -> 245 | T108: =RANK(O108,O$18:O$1017,1)+COUNTIF(O$18:O108,O108)-1 -> 113 | U108: =RANK(P108,P$18:P$1017,1)+COUNTIF(P$18:P108,P108)-1 -> 883 | X108: -0.5696014312 | Y108: 0.1712090539 | Z108: 0.7519225502 | AA108: 1.24307381
A109: 92 | B109: -0.7624907029 | C109: 0.1458364324 | D109: 0.7291821619 | E109: 0.7291821619 | H109: -0.6301740996 | I109: 0.3134630333 | J109: -1.575344868 | K109: -0.4551429811 | M109: -0.6301740996 | N109: 0.3134630333 | O109: -0.8068954124 | P109: -0.4551429811 | R109: =RANK(M109,M$18:M$1017,1)+COUNTIF(M$18:M109,M109)-1 -> 276 | S109: =RANK(N109,N$18:N$1017,1)+COUNTIF(N$18:N109,N109)-1 -> 584 | T109: =RANK(O109,O$18:O$1017,1)+COUNTIF(O$18:O109,O109)-1 -> 192 | U109: =RANK(P109,P$18:P$1017,1)+COUNTIF(P$18:P109,P109)-1 -> 333 | X109: -0.6745954575 | Y109: 0.2088413352 | Z109: 0.8193933289 | AA109: 0.9094441193
A110: 93 | B110: -0.7617970993 | C110: 0.1460676336 | D110: 0.7303381678 | E110: 0.7303381678 | H110: -2.773012966 | I110: -0.1046487341 | J110: -0.4161961442 | K110: -0.5187121133 | M110: -2.773012966 | N110: -0.1046487341 | O110: -0.3537744241 | P110: -0.5187121133 | R110: =RANK(M110,M$18:M$1017,1)+COUNTIF(M$18:M110,M110)-1 -> 3 | S110: =RANK(N110,N$18:N$1017,1)+COUNTIF(N$18:N110,N110)-1 -> 440 | T110: =RANK(O110,O$18:O$1017,1)+COUNTIF(O$18:O110,O110)-1 -> 355 | U110: =RANK(P110,P$18:P$1017,1)+COUNTIF(P$18:P110,P110)-1 -> 312 | X110: -0.9055960173 | Y110: 0.1936141895 | Z110: 0.9218879033 | AA110: 0.8972909568
A111: 94 | B111: -0.7611084156 | C111: 0.1462971948 | D111: 0.731485974 | E111: 0.731485974 | H111: -1.525477273 | I111: 1.482571861 | J111: -1.628313839 | K111: -0.04212438398 | M111: -1.525477273 | N111: 1.482571861 | O111: 0.03490052682 | P111: -0.04212438398 | R111: =RANK(M111,M$18:M$1017,1)+COUNTIF(M$18:M111,M111)-1 -> 63 | S111: =RANK(N111,N$18:N$1017,1)+COUNTIF(N$18:N111,N111)-1 -> 927 | T111: =RANK(O111,O$18:O$1017,1)+COUNTIF(O$18:O111,O111)-1 -> 503 | U111: =RANK(P111,P$18:P$1017,1)+COUNTIF(P$18:P111,P111)-1 -> 496 | X111: -0.7853087048 | Y111: 0.2586484587 | Z111: 1.001314848 | AA111: 0.9976332419
A112: 95 | B112: -0.7604245567 | C112: 0.1465251478 | D112: 0.7326257389 | E112: 0.7326257389 | H112: -0.2025285539 | I112: 0.1994067134 | J112: 0.5516403689 | K112: -0.1297598828 | M112: -0.2025285539 | N112: 0.1994067134 | O112: 0.5144308424 | P112: -0.1297598828 | R112: =RANK(M112,M$18:M$1017,1)+COUNTIF(M$18:M112,M112)-1 -> 445 | S112: =RANK(N112,N$18:N$1017,1)+COUNTIF(N$18:N112,N112)-1 -> 552 | T112: =RANK(O112,O$18:O$1017,1)+COUNTIF(O$18:O112,O112)-1 -> 668 | U112: =RANK(P112,P$18:P$1017,1)+COUNTIF(P$18:P112,P112)-1 -> 460 | X112: -0.6175645241 | Y112: 0.2054306733 | Z112: 1.090555881 | AA112: 0.9786667508
A113: 96 | B113: -0.7597454303 | C113: 0.1467515232 | D113: 0.7337576161 | E113: 0.7337576161 | H113: -0.05652395885 | I113: -0.6955519893 | J113: -1.21402536 | K113: -0.4487878869 | M113: -0.05652395885 | N113: -0.6955519893 | O113: -1.324666289 | P113: -0.4487878869 | R113: =RANK(M113,M$18:M$1017,1)+COUNTIF(M$18:M113,M113)-1 -> 504 | S113: =RANK(N113,N$18:N$1017,1)+COUNTIF(N$18:N113,N113)-1 -> 227 | T113: =RANK(O113,O$18:O$1017,1)+COUNTIF(O$18:O113,O113)-1 -> 81 | U113: =RANK(P113,P$18:P$1017,1)+COUNTIF(P$18:P113,P113)-1 -> 336 | X113: -0.5988955212 | Y113: 0.1688201556 | Z113: 0.7158743555 | AA113: 0.9111571672
A114: 97 | B114: -0.759070947 | C114: 0.146976351 | D114: 0.7348817551 | E114: 0.7348817551 | H114: 0.6863251656 | I114: -1.001596956 | J114: 0.5263405001 | K114: 1.124187747 | M114: 0.6863251656 | N114: -1.001596956 | O114: -0.4030562003 | P114: 1.124187747 | R114: =RANK(M114,M$18:M$1017,1)+COUNTIF(M$18:M114,M114)-1 -> 783 | S114: =RANK(N114,N$18:N$1017,1)+COUNTIF(N$18:N114,N114)-1 -> 133 | T114: =RANK(O114,O$18:O$1017,1)+COUNTIF(O$18:O114,O114)-1 -> 332 | U114: =RANK(P114,P$18:P$1017,1)+COUNTIF(P$18:P114,P114)-1 -> 881 | X114: -0.5027701018 | Y114: 0.1542359094 | Z114: 0.9088718914 | AA114: 1.241110059
A115: 98 | B115: -0.7584010196 | C115: 0.1471996601 | D115: 0.7359983007 | E115: 0.7359983007 | H115: -0.5738684195 | I115: 1.070550297 | J115: -0.09903601494 | K115: 1.046837497 | M115: -0.5738684195 | N115: 1.070550297 | O115: 0.7374065564 | P115: 1.046837497 | R115: =RANK(M115,M$18:M$1017,1)+COUNTIF(M$18:M115,M115)-1 -> 297 | S115: =RANK(N115,N$18:N$1017,1)+COUNTIF(N$18:N115,N115)-1 -> 845 | T115: =RANK(O115,O$18:O$1017,1)+COUNTIF(O$18:O115,O115)-1 -> 741 | U115: =RANK(P115,P$18:P$1017,1)+COUNTIF(P$18:P115,P115)-1 -> 863 | X115: -0.6669501406 | Y115: 0.2417538255 | Z115: 1.134321845 | AA115: 1.224292566
A116: 99 | B116: -0.7577355636 | C116: 0.1474214788 | D116: 0.737107394 | E116: 0.737107394 | H116: -1.836069714 | I116: -1.62429842 | J116: 1.405555849 | K116: -0.7881374131 | M116: -1.836069714 | N116: -1.62429842 | O116: -0.2885360073 | P116: -0.7881374131 | R116: =RANK(M116,M$18:M$1017,1)+COUNTIF(M$18:M116,M116)-1 -> 30 | S116: =RANK(N116,N$18:N$1017,1)+COUNTIF(N$18:N116,N116)-1 -> 44 | T116: =RANK(O116,O$18:O$1017,1)+COUNTIF(O$18:O116,O116)-1 -> 384 | U116: =RANK(P116,P$18:P$1017,1)+COUNTIF(P$18:P116,P116)-1 -> 210 | X116: -0.8232501193 | Y116: 0.1317855661 | Z116: 0.9379267121 | AA116: 0.8323719243
A117: 100 | B117: -0.7570744969 | C117: 0.1476418344 | D117: 0.7382091719 | E117: 0.7382091719 | H117: -1.21274752 | I117: -1.120167781 | J117: -0.6335358194 | K117: 1.011883342 | M117: -1.21274752 | N117: -1.120167781 | O117: -1.259170392 | P117: 1.011883342 | R117: =RANK(M117,M$18:M$1017,1)+COUNTIF(M$18:M117,M117)-1 -> 119 | S117: =RANK(N117,N$18:N$1017,1)+COUNTIF(N$18:N117,N117)-1 -> 103 | T117: =RANK(O117,O$18:O$1017,1)+COUNTIF(O$18:O117,O117)-1 -> 97 | U117: =RANK(P117,P$18:P$1017,1)+COUNTIF(P$18:P117,P117)-1 -> 851 | X117: -0.7452535952 | Y117: 0.1482943853 | Z117: 0.7348817551 | AA117: 1.213818204
A118: 101 | B118: -0.7564177395 | C118: 0.1478607535 | D118: 0.7393037675 | E118: 0.7393037675 | H118: -1.646440069 | I118: -0.1210480605 | J118: -1.311277629 | K118: -0.2496199158 | M118: -1.646440069 | N118: -0.1210480605 | O118: -0.9581146717 | P118: -0.2496199158 | R118: =RANK(M118,M$18:M$1017,1)+COUNTIF(M$18:M118,M118)-1 -> 51 | S118: =RANK(N118,N$18:N$1017,1)+COUNTIF(N$18:N118,N118)-1 -> 430 | T118: =RANK(O118,O$18:O$1017,1)+COUNTIF(O$18:O118,O118)-1 -> 152 | U118: =RANK(P118,P$18:P$1017,1)+COUNTIF(P$18:P118,P118)-1 -> 420 | X118: -0.7969329804 | Y118: 0.1925494192 | Z118: 0.7878779434 | AA118: 0.957401659
A119: 102 | B119: -0.7557652138 | C119: 0.1480782621 | D119: 0.7403913103 | E119: 0.7403913103 | H119: 1.448543117 | I119: -1.531875569 | J119: 1.211631115 | K119: -1.216105829 | M119: 1.448543117 | N119: -1.531875569 | O119: -0.3474880234 | P119: -1.216105829 | R119: =RANK(M119,M$18:M$1017,1)+COUNTIF(M$18:M119,M119)-1 -> 932 | S119: =RANK(N119,N$18:N$1017,1)+COUNTIF(N$18:N119,N119)-1 -> 52 | T119: =RANK(O119,O$18:O$1017,1)+COUNTIF(O$18:O119,O119)-1 -> 360 | U119: =RANK(P119,P$18:P$1017,1)+COUNTIF(P$18:P119,P119)-1 -> 111 | X119: -0.4199269204 | Y119: 0.1347018224 | Z119: 0.9246803496 | AA119: 0.7498815414
A120: 103 | B120: -0.7551168442 | C120: 0.1482943853 | D120: 0.7414719263 | E120: 0.7414719263 | H120: 0.3690115591 | I120: -1.911257641 | J120: 0.354881422 | K120: 1.34151378 | M120: 0.3690115591 | N120: -1.911257641 | O120: -1.198711234 | P120: 1.34151378 | R120: =RANK(M120,M$18:M$1017,1)+COUNTIF(M$18:M120,M120)-1 -> 667 | S120: =RANK(N120,N$18:N$1017,1)+COUNTIF(N$18:N120,N120)-1 -> 26 | T120: =RANK(O120,O$18:O$1017,1)+COUNTIF(O$18:O120,O120)-1 -> 105 | U120: =RANK(P120,P$18:P$1017,1)+COUNTIF(P$18:P120,P120)-1 -> 919 | X120: -0.5460094427 | Y120: 0.1234210322 | Z120: 0.7436128651 | AA120: 1.282867451
A121: 104 | B121: -0.7544725571 | C121: 0.1485091476 | D121: 0.7425457382 | E121: 0.7425457382 | H121: -1.230166617 | I121: 3.487220965 | J121: 0.7652784006 | K121: 1.055209395 | M121: -1.230166617 | N121: 3.487220965 | O121: 3.121599807 | P121: 1.055209395 | R121: =RANK(M121,M$18:M$1017,1)+COUNTIF(M$18:M121,M121)-1 -> 114 | S121: =RANK(N121,N$18:N$1017,1)+COUNTIF(N$18:N121,N121)-1 -> 1000 | T121: =RANK(O121,O$18:O$1017,1)+COUNTIF(O$18:O121,O121)-1 -> 999 | U121: =RANK(P121,P$18:P$1017,1)+COUNTIF(P$18:P121,P121)-1 -> 865 | X121: -0.748239362 | Y121: 0.3110410398 | Z121: 1.527371366 | AA121: 1.226091441
A122: 105 | B122: -0.7538322809 | C122: 0.148722573 | D122: 0.7436128651 | E122: 0.7436128651 | H122: 0.2904835128 | I122: -0.8392680684 | J122: 1.00438001 | K122: -0.7864696272 | M122: 0.2904835128 | N122: -0.8392680684 | O122: 0.03488388096 | P122: -0.7864696272 | R122: =RANK(M122,M$18:M$1017,1)+COUNTIF(M$18:M122,M122)-1 -> 638 | S122: =RANK(N122,N$18:N$1017,1)+COUNTIF(N$18:N122,N122)-1 -> 172 | T122: =RANK(O122,O$18:O$1017,1)+COUNTIF(O$18:O122,O122)-1 -> 502 | U122: =RANK(P122,P$18:P$1017,1)+COUNTIF(P$18:P122,P122)-1 -> 211 | X122: -0.5558100174 | Y122: 0.160832303 | Z122: 1.000788906 | AA122: 0.833075212
A123: 106 | B123: -0.753195946 | C123: 0.1489346847 | D123: 0.7446734233 | E123: 0.7446734233 | H123: -0.8582424016 | I123: -0.0739260031 | J123: 1.79550625 | K123: -1.050016181 | M123: -0.8582424016 | N123: -0.0739260031 | O123: 1.132171252 | P123: -1.050016181 | R123: =RANK(M123,M$18:M$1017,1)+COUNTIF(M$18:M123,M123)-1 -> 202 | S123: =RANK(N123,N$18:N$1017,1)+COUNTIF(N$18:N123,N123)-1 -> 456 | T123: =RANK(O123,O$18:O$1017,1)+COUNTIF(O$18:O123,O123)-1 -> 867 | U123: =RANK(P123,P$18:P$1017,1)+COUNTIF(P$18:P123,P123)-1 -> 148 | X123: -0.7039916471 | Y123: 0.1953104509 | Z123: 1.227906613 | AA123: 0.7844720838
A124: 107 | B124: -0.7525634845 | C124: 0.1491455052 | D124: 0.7457275258 | E124: 0.7457275258 | H124: -0.6636525995 | I124: 0.08367237569 | J124: 0.4991204605 | K124: -0.4231299044 | M124: -0.6636525995 | N124: 0.08367237569 | O124: 0.392891435 | P124: -0.4231299044 | R124: =RANK(M124,M$18:M$1017,1)+COUNTIF(M$18:M124,M124)-1 -> 263 | S124: =RANK(N124,N$18:N$1017,1)+COUNTIF(N$18:N124,N124)-1 -> 507 | T124: =RANK(O124,O$18:O$1017,1)+COUNTIF(O$18:O124,O124)-1 -> 621 | U124: =RANK(P124,P$18:P$1017,1)+COUNTIF(P$18:P124,P124)-1 -> 348 | X124: -0.6794560554 | Y124: 0.2006837442 | Z124: 1.064264328 | AA124: 0.9179572684
A125: 108 | B125: -0.7519348303 | C125: 0.1493550566 | D125: 0.7467752829 | E125: 0.7467752829 | H125: -0.793891104 | I125: -1.073949534 | J125: -0.8995516509 | K125: 0.1398734639 | M125: -0.793891104 | N125: -1.073949534 | O125: -1.40045964 | P125: 0.1398734639 | R125: =RANK(M125,M$18:M$1017,1)+COUNTIF(M$18:M125,M125)-1 -> 224 | S125: =RANK(N125,N$18:N$1017,1)+COUNTIF(N$18:N125,N125)-1 -> 115 | T125: =RANK(O125,O$18:O$1017,1)+COUNTIF(O$18:O125,O125)-1 -> 65 | U125: =RANK(P125,P$18:P$1017,1)+COUNTIF(P$18:P125,P125)-1 -> 566 | X125: -0.6947612158 | Y125: 0.1507881189 | Z125: 0.6941225769 | AA125: 1.034588484
A126: 109 | B126: -0.7513099189 | C126: 0.1495633604 | D126: 0.7478168019 | E126: 0.7478168019 | H126: 0.02015895006 | I126: -0.6654659046 | J126: -0.5091965249 | K126: 0.01885837264 | M126: 0.02015895006 | N126: -0.6654659046 | O126: -0.8359012718 | P126: 0.01885837264 | R126: =RANK(M126,M$18:M$1017,1)+COUNTIF(M$18:M126,M126)-1 -> 523 | S126: =RANK(N126,N$18:N$1017,1)+COUNTIF(N$18:N126,N126)-1 -> 240 | T126: =RANK(O126,O$18:O$1017,1)+COUNTIF(O$18:O126,O126)-1 -> 182 | U126: =RANK(P126,P$18:P$1017,1)+COUNTIF(P$18:P126,P126)-1 -> 518 | X126: -0.5928964908 | Y126: 0.1705543964 | Z126: 0.8118947448 | AA126: 1.009206526
A127: 110 | B127: -0.7506886875 | C127: 0.1497704375 | D127: 0.7488521874 | E127: 0.7488521874 | H127: 0.4172807166 | I127: 1.272510417 | J127: 0.3707327778 | K127: 1.15137027 | M127: 0.4172807166 | N127: 1.272510417 | O127: 1.199599496 | P127: 1.15137027 | R127: =RANK(M127,M$18:M$1017,1)+COUNTIF(M$18:M127,M127)-1 -> 688 | S127: =RANK(N127,N$18:N$1017,1)+COUNTIF(N$18:N127,N127)-1 -> 898 | T127: =RANK(O127,O$18:O$1017,1)+COUNTIF(O$18:O127,O127)-1 -> 882 | U127: =RANK(P127,P$18:P$1017,1)+COUNTIF(P$18:P127,P127)-1 -> 887 | X127: -0.5387259186 | Y127: 0.2517056147 | Z127: 1.242089325 | AA127: 1.247065603
A128: 111 | B128: -0.7500710751 | C128: 0.1499763083 | D128: 0.7498815414 | E128: 0.7498815414 | H128: 0.7181392903 | I128: 1.246803549 | J128: -2.456290531 | K128: 2.201359166 | M128: 0.7181392903 | N128: 1.246803549 | O128: -0.6895808112 | P128: 2.201359166 | R128: =RANK(M128,M$18:M$1017,1)+COUNTIF(M$18:M128,M128)-1 -> 790 | S128: =RANK(N128,N$18:N$1017,1)+COUNTIF(N$18:N128,N128)-1 -> 893 | T128: =RANK(O128,O$18:O$1017,1)+COUNTIF(O$18:O128,O128)-1 -> 227 | U128: =RANK(P128,P$18:P$1017,1)+COUNTIF(P$18:P128,P128)-1 -> 987 | X128: -0.4998451272 | Y128: 0.2506449434 | Z128: 0.8441007778 | AA128: 1.425525822
A129: 112 | B129: -0.749457022 | C129: 0.1501809927 | D129: 0.7509049634 | E129: 0.7509049634 | H129: -1.262601472 | I129: -1.604030331 | J129: -0.2679735189 | K129: 2.416127245 | M129: -1.262601472 | N129: -1.604030331 | O129: -1.38027057 | P129: 2.416127245 | R129: =RANK(M129,M$18:M$1017,1)+COUNTIF(M$18:M129,M129)-1 -> 110 | S129: =RANK(N129,N$18:N$1017,1)+COUNTIF(N$18:N129,N129)-1 -> 46 | T129: =RANK(O129,O$18:O$1017,1)+COUNTIF(O$18:O129,O129)-1 -> 69 | U129: =RANK(P129,P$18:P$1017,1)+COUNTIF(P$18:P129,P129)-1 -> 991 | X129: -0.7506886875 | Y129: 0.1325481675 | Z129: 0.6998782007 | AA129: 1.446248701
A130: 113 | B130: -0.7488464699 | C130: 0.15038451 | D130: 0.7519225502 | E130: 0.7519225502 | H130: -0.6583229606 | I130: -1.492285264 | J130: -2.267206582 | K130: 1.935577529 | M130: -0.6583229606 | N130: -1.492285264 | O130: -2.618830145 | P130: 1.935577529 | R130: =RANK(M130,M$18:M$1017,1)+COUNTIF(M$18:M130,M130)-1 -> 266 | S130: =RANK(N130,N$18:N$1017,1)+COUNTIF(N$18:N130,N130)-1 -> 60 | T130: =RANK(O130,O$18:O$1017,1)+COUNTIF(O$18:O130,O130)-1 -> 5 | U130: =RANK(P130,P$18:P$1017,1)+COUNTIF(P$18:P130,P130)-1 -> 978 | X130: -0.6783249326 | Y130: 0.137314117 | Z130: 0.5155440566 | AA130: 1.391852501
A131: 114 | B131: -0.748239362 | C131: 0.1505868793 | D131: 0.7529343966 | E131: 0.7529343966 | H131: -0.2771821528 | I131: 0.4710670964 | J131: -0.4361334049 | K131: 1.142068413 | M131: -0.2771821528 | N131: 0.4710670964 | O131: 0.06482519035 | P131: 1.142068413 | R131: =RANK(M131,M$18:M$1017,1)+COUNTIF(M$18:M131,M131)-1 -> 419 | S131: =RANK(N131,N$18:N$1017,1)+COUNTIF(N$18:N131,N131)-1 -> 648 | T131: =RANK(O131,O$18:O$1017,1)+COUNTIF(O$18:O131,O131)-1 -> 524 | U131: =RANK(P131,P$18:P$1017,1)+COUNTIF(P$18:P131,P131)-1 -> 885 | X131: -0.6258805195 | Y131: 0.2158465113 | Z131: 1.012365901 | AA131: 1.245058765
A132: 115 | B132: -0.7476356432 | C132: 0.1507881189 | D132: 0.7539405947 | E132: 0.7539405947 | H132: -1.27113708 | I132: -0.3619788913 | J132: 0.6566142474 | K132: 0.4330229331 | M132: -1.27113708 | N132: -0.3619788913 | O132: 0.162825333 | P132: 0.4330229331 | R132: =RANK(M132,M$18:M$1017,1)+COUNTIF(M$18:M132,M132)-1 -> 106 | S132: =RANK(N132,N$18:N$1017,1)+COUNTIF(N$18:N132,N132)-1 -> 352 | T132: =RANK(O132,O$18:O$1017,1)+COUNTIF(O$18:O132,O132)-1 -> 548 | U132: =RANK(P132,P$18:P$1017,1)+COUNTIF(P$18:P132,P132)-1 -> 664 | X132: -0.753195946 | Y132: 0.1840412898 | Z132: 1.025035007 | AA132: 1.088273012
A133: 116 | B133: -0.7470352592 | C133: 0.1509882469 | D133: 0.7549412347 | E133: 0.7549412347 | H133: 0.03232571544 | I133: -1.501666702 | J133: 0.9565064829 | K133: 0.4642402018 | M133: 0.03232571544 | N133: -1.501666702 | O133: -0.4935804563 | P133: 0.4642402018 | R133: =RANK(M133,M$18:M$1017,1)+COUNTIF(M$18:M133,M133)-1 -> 526 | S133: =RANK(N133,N$18:N$1017,1)+COUNTIF(N$18:N133,N133)-1 -> 56 | T133: =RANK(O133,O$18:O$1017,1)+COUNTIF(O$18:O133,O133)-1 -> 295 | U133: =RANK(P133,P$18:P$1017,1)+COUNTIF(P$18:P133,P133)-1 -> 670 | X133: -0.5919482685 | Y133: 0.1360409432 | Z133: 0.8872196213 | AA133: 1.091700951
A134: 117 | B134: -0.7464381573 | C134: 0.1511872809 | D134: 0.7559364045 | E134: 0.7559364045 | H134: 1.845228326 | I134: -0.4090327366 | J134: 0.7746416486 | K134: -0.1566570518 | M134: 1.845228326 | N134: -0.4090327366 | O134: 0.2056027369 | P134: -0.1566570518 | R134: =RANK(M134,M$18:M$1017,1)+COUNTIF(M$18:M134,M134)-1 -> 969 | S134: =RANK(N134,N$18:N$1017,1)+COUNTIF(N$18:N134,N134)-1 -> 332 | T134: =RANK(O134,O$18:O$1017,1)+COUNTIF(O$18:O134,O134)-1 -> 559 | U134: =RANK(P134,P$18:P$1017,1)+COUNTIF(P$18:P134,P134)-1 -> 452 | X134: -0.3797543293 | Y134: 0.1817743783 | Z134: 1.030866586 | AA134: 0.974435625
A135: 118 | B135: -0.7458442861 | C135: 0.151385238 | D135: 0.7569261899 | E135: 0.7569261899 | H135: -1.496960067 | I135: -0.5348829291 | J135: 2.88564479 | K135: -3.248569556 | M135: -1.496960067 | N135: -0.5348829291 | O135: 1.507512425 | P135: -3.248569556 | R135: =RANK(M135,M$18:M$1017,1)+COUNTIF(M$18:M135,M135)-1 -> 69 | S135: =RANK(N135,N$18:N$1017,1)+COUNTIF(N$18:N135,N135)-1 -> 285 | T135: =RANK(O135,O$18:O$1017,1)+COUNTIF(O$18:O135,O135)-1 -> 930 | U135: =RANK(P135,P$18:P$1017,1)+COUNTIF(P$18:P135,P135)-1 -> 4 | X135: -0.7800730796 | Y135: 0.1762368128 | Z135: 1.297330152 | AA135: 0.5043673601
A136: 119 | B136: -0.7452535952 | C136: 0.1515821349 | D136: 0.7579106747 | E136: 0.7579106747 | H136: -0.3971672413 | I136: 0.6018740351 | J136: -0.2162914825 | K136: -1.141188477 | M136: -0.3971672413 | N136: 0.6018740351 | O136: 0.3083421579 | P136: -1.141188477 | R136: =RANK(M136,M$18:M$1017,1)+COUNTIF(M$18:M136,M136)-1 -> 363 | S136: =RANK(N136,N$18:N$1017,1)+COUNTIF(N$18:N136,N136)-1 -> 687 | T136: =RANK(O136,O$18:O$1017,1)+COUNTIF(O$18:O136,O136)-1 -> 592 | U136: =RANK(P136,P$18:P$1017,1)+COUNTIF(P$18:P136,P136)-1 -> 125 | X136: -0.6441899826 | Y136: 0.2203077234 | Z136: 1.048507229 | AA136: 0.7637107268
A137: 120 | B137: -0.7446660355 | C137: 0.1517779882 | D137: 0.7588899408 | E137: 0.7588899408 | H137: -0.3632044354 | I137: 1.765638444 | J137: 0.1250555215 | K137: -0.7525250112 | M137: -0.3632044354 | N137: 1.765638444 | O137: 1.406945286 | P137: -0.7525250112 | R137: =RANK(M137,M$18:M$1017,1)+COUNTIF(M$18:M137,M137)-1 -> 379 | S137: =RANK(N137,N$18:N$1017,1)+COUNTIF(N$18:N137,N137)-1 -> 964 | T137: =RANK(O137,O$18:O$1017,1)+COUNTIF(O$18:O137,O137)-1 -> 917 | U137: =RANK(P137,P$18:P$1017,1)+COUNTIF(P$18:P137,P137)-1 -> 228 | X137: -0.6388878397 | Y137: 0.2710993861 | Z137: 1.280381769 | AA137: 0.8447764594
A138: 121 | B138: -0.7440815591 | C138: 0.1519728136 | D138: 0.7598640681 | E138: 0.7598640681 | H138: -0.07599737728 | I138: 0.3323214059 | J138: 1.025637175 | K138: -0.06012555787 | M138: -0.07599737728 | N138: 0.3323214059 | O138: 0.9276362797 | P138: -0.06012555787 | R138: =RANK(M138,M$18:M$1017,1)+COUNTIF(M$18:M138,M138)-1 -> 495 | S138: =RANK(N138,N$18:N$1017,1)+COUNTIF(N$18:N138,N138)-1 -> 591 | T138: =RANK(O138,O$18:O$1017,1)+COUNTIF(O$18:O138,O138)-1 -> 813 | U138: =RANK(P138,P$18:P$1017,1)+COUNTIF(P$18:P138,P138)-1 -> 485 | X138: -0.6017356389 | Y138: 0.2095937384 | Z138: 1.183579516 | AA138: 0.9918461529
A139: 122 | B139: -0.7435001191 | C139: 0.152166627 | D139: 0.7608331349 | E139: 0.7608331349 | H139: -1.176827027 | I139: 2.290835255 | J139: -0.4797175279 | K139: -1.961097951 | M139: -1.176827027 | N139: 2.290835255 | O139: 1.400823122 | P139: -1.961097951 | R139: =RANK(M139,M$18:M$1017,1)+COUNTIF(M$18:M139,M139)-1 -> 131 | S139: =RANK(N139,N$18:N$1017,1)+COUNTIF(N$18:N139,N139)-1 -> 990 | T139: =RANK(O139,O$18:O$1017,1)+COUNTIF(O$18:O139,O139)-1 -> 914 | U139: =RANK(P139,P$18:P$1017,1)+COUNTIF(P$18:P139,P139)-1 -> 30 | X139: -0.7383965603 | Y139: 0.2881071953 | Z139: 1.276726755 | AA139: 0.6279164678
A140: 123 | B140: -0.7429216695 | C140: 0.1523594435 | D140: 0.7617972174 | E140: 0.7617972174 | H140: 1.028488441 | I140: 1.864455044 | J140: -2.439446689 | K140: 0.4553976396 | M140: 1.028488441 | N140: 1.864455044 | O140: -0.2152010362 | P140: 0.4553976396 | R140: =RANK(M140,M$18:M$1017,1)+COUNTIF(M$18:M140,M140)-1 -> 862 | S140: =RANK(N140,N$18:N$1017,1)+COUNTIF(N$18:N140,N140)-1 -> 972 | T140: =RANK(O140,O$18:O$1017,1)+COUNTIF(O$18:O140,O140)-1 -> 410 | U140: =RANK(P140,P$18:P$1017,1)+COUNTIF(P$18:P140,P140)-1 -> 669 | X140: -0.4659605385 | Y140: 0.2749361231 | Z140: 0.9520313079 | AA140: 1.091128109
A141: 124 | B141: -0.7423461658 | C141: 0.1525512781 | D141: 0.7627563904 | E141: 0.7627563904 | H141: 1.090020305 | I141: 0.2572039648 | J141: -0.3355569334 | K141: 1.809485184 | M141: 1.090020305 | N141: 0.2572039648 | O141: -0.02904707549 | P141: 1.809485184 | R141: =RANK(M141,M$18:M$1017,1)+COUNTIF(M$18:M141,M141)-1 -> 870 | S141: =RANK(N141,N$18:N$1017,1)+COUNTIF(N$18:N141,N141)-1 -> 568 | T141: =RANK(O141,O$18:O$1017,1)+COUNTIF(O$18:O141,O141)-1 -> 475 | U141: =RANK(P141,P$18:P$1017,1)+COUNTIF(P$18:P141,P141)-1 -> 968 | X141: -0.4616034397 | Y141: 0.2071307262 | Z141: 0.9865804475 | AA141: 1.364658805
A142: 125 | B142: -0.7417735639 | C142: 0.1527421454 | D142: 0.7637107268 | E142: 0.7637107268 | H142: -0.1904413693 | I142: 2.013439371 | J142: 2.261258487 | K142: -1.737962521 | M142: -0.1904413693 | N142: 2.013439371 | O142: 3.00576143 | P142: -1.737962521 | R142: =RANK(M142,M$18:M$1017,1)+COUNTIF(M$18:M142,M142)-1 -> 451 | S142: =RANK(N142,N$18:N$1017,1)+COUNTIF(N$18:N142,N142)-1 -> 981 | T142: =RANK(O142,O$18:O$1017,1)+COUNTIF(O$18:O142,O142)-1 -> 997 | U142: =RANK(P142,P$18:P$1017,1)+COUNTIF(P$18:P142,P142)-1 -> 42 | X142: -0.6156563334 | Y142: 0.2803478717 | Z142: 1.49563264 | AA142: 0.6549875819
A143: 126 | B143: -0.7412038212 | C143: 0.1529320596 | D143: 0.7646602979 | E143: 0.7646602979 | H143: 1.019570846 | I143: -0.2620299711 | J143: 0.7650737643 | K143: -0.6832306099 | M143: 1.019570846 | N143: -0.2620299711 | O143: 0.3095262505 | P143: -0.6832306099 | R143: =RANK(M143,M$18:M$1017,1)+COUNTIF(M$18:M143,M143)-1 -> 858 | S143: =RANK(N143,N$18:N$1017,1)+COUNTIF(N$18:N143,N143)-1 -> 385 | T143: =RANK(O143,O$18:O$1017,1)+COUNTIF(O$18:O143,O143)-1 -> 593 | U143: =RANK(P143,P$18:P$1017,1)+COUNTIF(P$18:P143,P143)-1 -> 250 | X143: -0.46808169 | Y143: 0.1876947027 | Z143: 1.049046053 | AA143: 0.8592864933
A144: 127 | B144: -0.7406368958 | C144: 0.1531210347 | D144: 0.7656051737 | E144: 0.7656051737 | H144: -0.3511365776 | I144: 1.067301127 | J144: -1.191165211 | K144: 0.893151082 | M144: -0.3511365776 | N144: 1.067301127 | O144: 0.01259411599 | P144: 0.893151082 | R144: =RANK(M144,M$18:M$1017,1)+COUNTIF(M$18:M144,M144)-1 -> 388 | S144: =RANK(N144,N$18:N$1017,1)+COUNTIF(N$18:N144,N144)-1 -> 844 | T144: =RANK(O144,O$18:O$1017,1)+COUNTIF(O$18:O144,O144)-1 -> 492 | U144: =RANK(P144,P$18:P$1017,1)+COUNTIF(P$18:P144,P144)-1 -> 823 | X144: -0.6359329926 | Y144: 0.2415877728 | Z144: 0.9955292392 | AA144: 1.191168965
A145: 128 | B145: -0.7400727466 | C145: 0.1533090845 | D145: 0.7665454223 | E145: 0.7665454223 | H145: 0.4646665275 | I145: 0.1397961569 | J145: 2.276301529 | K145: 0.1824230367 | M145: 0.4646665275 | N145: 0.1397961569 | O145: 1.610479057 | P145: 0.1824230367 | R145: =RANK(M145,M$18:M$1017,1)+COUNTIF(M$18:M145,M145)-1 -> 703 | S145: =RANK(N145,N$18:N$1017,1)+COUNTIF(N$18:N145,N145)-1 -> 531 | T145: =RANK(O145,O$18:O$1017,1)+COUNTIF(O$18:O145,O145)-1 -> 953 | U145: =RANK(P145,P$18:P$1017,1)+COUNTIF(P$18:P145,P145)-1 -> 585 | X145: -0.5334081578 | Y145: 0.2032110114 | Z145: 1.33356358 | AA145: 1.044743302
A146: 129 | B146: -0.7395113337 | C146: 0.1534962221 | D146: 0.7674811105 | E146: =BETAINV($A146/1001,E$11,E$12,E$6,E$7) -> 0.7674811105 | H146: -0.1071884981 | I146: 0.09865175343 | J146: 0.3714694685 | K146: -1.354801498 | M146: -0.1071884981 | N146: 0.09865175343 | O146: 0.3196927734 | P146: -1.354801498 | R146: =RANK(M146,M$18:M$1017,1)+COUNTIF(M$18:M146,M146)-1 -> 477 | S146: =RANK(N146,N$18:N$1017,1)+COUNTIF(N$18:N146,N146)-1 -> 514 | T146: =RANK(O146,O$18:O$1017,1)+COUNTIF(O$18:O146,O146)-1 -> 596 | U146: =RANK(P146,P$18:P$1017,1)+COUNTIF(P$18:P146,P146)-1 -> 87 | X146: -0.6074195409 | Y146: =LOOKUP(S146,$A$18:$A$1017,C$18:C$1017) -> 0.2014202704 | Z146: =LOOKUP(T146,$A$18:$A$1017,D$18:D$1017) -> 1.050664281 | AA146: =LOOKUP(U146,$A$18:$A$1017,E$18:E$1017) -> 0.7232732445
A147: 130 | B147: =BETAINV($A147/1001,B$11,B$12,B$6,B$7) -> -0.7389526177 | C147: 0.1536824608 | D147: 0.7684123038 | E147: 0.7684123038 | H147: 0.09626887731 | I147: -0.9365112419 | J147: 0.9354448594 | K147: -1.142509518 | M147: 0.09626887731 | N147: -0.9365112419 | O147: -0.08364481565 | P147: -1.142509518 | R147: =RANK(M147,M$18:M$1017,1)+COUNTIF(M$18:M147,M147)-1 -> 555 | S147: =RANK(N147,N$18:N$1017,1)+COUNTIF(N$18:N147,N147)-1 -> 144 | T147: =RANK(O147,O$18:O$1017,1)+COUNTIF(O$18:O147,O147)-1 -> 452 | U147: =RANK(P147,P$18:P$1017,1)+COUNTIF(P$18:P147,P147)-1 -> 124 | X147: =LOOKUP(R147,$A$18:$A$1017,B$18:B$1017) -> -0.5827537481 | Y147: 0.1562021131 | Z147: 0.974435625 | AA147: 0.7627563904
A148: =A147+1 -> 131 | B148: -0.7383965603 | C148: 0.1538678132 | D148: 0.7693390661 | E148: 0.7693390661 | H148: -0.96086751 | I148: 0.2166825652 | J148: -1.516718839 | K148: 1.069872724 | M148: -0.96086751 | N148: 0.2166825652 | O148: -0.8407032906 | P148: 1.069872724 | R148: =RANK(M148,M$18:M$1017,1)+COUNTIF(M$18:M148,M148)-1 -> 171 | S148: =RANK(N148,N$18:N$1017,1)+COUNTIF(N$18:N148,N148)-1 -> 556 | T148: =RANK(O148,O$18:O$1017,1)+COUNTIF(O$18:O148,O148)-1 -> 181 | U148: =RANK(P148,P$18:P$1017,1)+COUNTIF(P$18:P148,P148)-1 -> 870 | X148: -0.717975432 | Y148: 0.2058548414 | Z148: 0.8111323959 | AA148: 1.230660934
A149: 132 | B149: -0.737843124 | C149: 0.154052292 | D149: 0.77026146 | E149: 0.77026146 | H149: -2.064807632 | I149: 0.5884498933 | J149: -1.171035819 | K149: 0.5135552783 | M149: -2.064807632 | N149: 0.5884498933 | O149: -0.3332299687 | P149: 0.5135552783 | R149: =RANK(M149,M$18:M$1017,1)+COUNTIF(M$18:M149,M149)-1 -> 17 | S149: =RANK(N149,N$18:N$1017,1)+COUNTIF(N$18:N149,N149)-1 -> 684 | T149: =RANK(O149,O$18:O$1017,1)+COUNTIF(O$18:O149,O149)-1 -> 366 | U149: =RANK(P149,P$18:P$1017,1)+COUNTIF(P$18:P149,P149)-1 -> 694 | X149: -0.8476951412 | Y149: 0.2199576669 | Z149: 0.9280155125 | AA149: 1.105647961
A150: 133 | B150: -0.7372922719 | C150: 0.1542359094 | D150: 0.7711795469 | E150: 0.7711795469 | H150: -0.577931587 | I150: -0.823274604 | J150: -1.636726665 | K150: -0.8500887816 | M150: -0.577931587 | N150: -0.823274604 | O150: -1.700048883 | P150: -0.8500887816 | R150: =RANK(M150,M$18:M$1017,1)+COUNTIF(M$18:M150,M150)-1 -> 296 | S150: =RANK(N150,N$18:N$1017,1)+COUNTIF(N$18:N150,N150)-1 -> 184 | T150: =RANK(O150,O$18:O$1017,1)+COUNTIF(O$18:O150,O150)-1 -> 33 | U150: =RANK(P150,P$18:P$1017,1)+COUNTIF(P$18:P150,P150)-1 -> 194 | X150: -0.6673089342 | Y150: 0.1626824875 | Z150: 0.6353411951 | AA150: 0.8208669988
A151: 134 | B151: -0.7367439679 | C151: 0.1544186774 | D151: 0.7720933868 | E151: 0.7720933868 | H151: 0.2735282578 | I151: 0.3063200893 | J151: 1.891212378 | K151: 1.313087523 | M151: 0.2735282578 | N151: 0.3063200893 | O151: 1.480659474 | P151: 1.313087523 | R151: =RANK(M151,M$18:M$1017,1)+COUNTIF(M$18:M151,M151)-1 -> 632 | S151: =RANK(N151,N$18:N$1017,1)+COUNTIF(N$18:N151,N151)-1 -> 580 | T151: =RANK(O151,O$18:O$1017,1)+COUNTIF(O$18:O151,O151)-1 -> 928 | U151: =RANK(P151,P$18:P$1017,1)+COUNTIF(P$18:P151,P151)-1 -> 912 | X151: -0.5578061502 | Y151: 0.2084125464 | Z151: 1.294592074 | AA151: 1.274336711
A152: 135 | B152: -0.7361981769 | C152: 0.1546006077 | D152: 0.7730030384 | E152: 0.7730030384 | H152: -0.8627830539 | I152: -0.2573619895 | J152: -1.933094609 | K152: 0.1527087079 | M152: -0.8627830539 | N152: -0.2573619895 | O152: -1.471643391 | P152: 0.1527087079 | R152: =RANK(M152,M$18:M$1017,1)+COUNTIF(M$18:M152,M152)-1 -> 200 | S152: =RANK(N152,N$18:N$1017,1)+COUNTIF(N$18:N152,N152)-1 -> 389 | T152: =RANK(O152,O$18:O$1017,1)+COUNTIF(O$18:O152,O152)-1 -> 54 | U152: =RANK(P152,P$18:P$1017,1)+COUNTIF(P$18:P152,P152)-1 -> 573 | X152: -0.704856581 | Y152: 0.1881314002 | Z152: 0.67690086 | AA152: 1.03832016
A153: 136 | B153: -0.7356548643 | C153: 0.1547817119 | D153: 0.7739085595 | E153: 0.7739085595 | H153: 0.7604694474 | I153: 1.682819857 | J153: 0.2829108325 | K153: 0.2011233846 | M153: 0.7604694474 | N153: 1.682819857 | O153: 1.449242819 | P153: 0.2011233846 | R153: =RANK(M153,M$18:M$1017,1)+COUNTIF(M$18:M153,M153)-1 -> 805 | S153: =RANK(N153,N$18:N$1017,1)+COUNTIF(N$18:N153,N153)-1 -> 956 | T153: =RANK(O153,O$18:O$1017,1)+COUNTIF(O$18:O153,O153)-1 -> 925 | U153: =RANK(P153,P$18:P$1017,1)+COUNTIF(P$18:P153,P153)-1 -> 597 | X153: -0.4933994376 | Y153: 0.2678300806 | Z153: 1.290579698 | AA153: 1.051204288
A154: 137 | B154: -0.7351139962 | C154: 0.1549620013 | D154: 0.7748100063 | E154: 0.7748100063 | H154: 0.9297718861 | I154: -0.7453354556 | J154: -0.3710601959 | K154: -0.8257461559 | M154: 0.9297718861 | N154: -0.7453354556 | O154: -0.8044348416 | P154: -0.8257461559 | R154: =RANK(M154,M$18:M$1017,1)+COUNTIF(M$18:M154,M154)-1 -> 841 | S154: =RANK(N154,N$18:N$1017,1)+COUNTIF(N$18:N154,N154)-1 -> 209 | T154: =RANK(O154,O$18:O$1017,1)+COUNTIF(O$18:O154,O154)-1 -> 193 | U154: =RANK(P154,P$18:P$1017,1)+COUNTIF(P$18:P154,P154)-1 -> 201 | X154: -0.476720045 | Y154: 0.1663333741 | Z154: 0.8201312084 | AA154: 0.8259607738
A155: 138 | B155: -0.7345755394 | C155: 0.1551414869 | D155: 0.7757074343 | E155: 0.7757074343 | H155: 0.5522645097 | I155: -0.5259903446 | J155: 1.436419552 | K155: -0.7252867817 | M155: 0.5522645097 | N155: -0.5259903446 | O155: 0.5556094699 | P155: -0.7252867817 | R155: =RANK(M155,M$18:M$1017,1)+COUNTIF(M$18:M155,M155)-1 -> 730 | S155: =RANK(N155,N$18:N$1017,1)+COUNTIF(N$18:N155,N155)-1 -> 289 | T155: =RANK(O155,O$18:O$1017,1)+COUNTIF(O$18:O155,O155)-1 -> 676 | U155: =RANK(P155,P$18:P$1017,1)+COUNTIF(P$18:P155,P155)-1 -> 233 | X155: -0.5235475005 | Y155: 0.1767217635 | Z155: 1.095151217 | AA155: 0.848132748
A156: 139 | B156: -0.7340394615 | C156: 0.1553201795 | D156: 0.7766008975 | E156: 0.7766008975 | H156: -1.059356691 | I156: -0.7975654626 | J156: -1.008188519 | K156: 0.6504569683 | M156: -1.059356691 | N156: -0.7975654626 | O156: -1.265028121 | P156: 0.6504569683 | R156: =RANK(M156,M$18:M$1017,1)+COUNTIF(M$18:M156,M156)-1 -> 154 | S156: =RANK(N156,N$18:N$1017,1)+COUNTIF(N$18:N156,N156)-1 -> 194 | T156: =RANK(O156,O$18:O$1017,1)+COUNTIF(O$18:O156,O156)-1 -> 93 | U156: =RANK(P156,P$18:P$1017,1)+COUNTIF(P$18:P156,P156)-1 -> 756 | X156: -0.7262634831 | Y156: 0.1641733998 | Z156: 0.7303381678 | AA156: 1.143954731
A157: 140 | B157: -0.7335057305 | C157: 0.1554980898 | D157: 0.7774904492 | E157: 0.7774904492 | H157: 0.3832155926 | I157: 0.4812636689 | J157: 0.1661123861 | K157: 0.4867683856 | M157: 0.3832155926 | N157: 0.4812636689 | O157: 0.4708207675 | P157: 0.4867683856 | R157: =RANK(M157,M$18:M$1017,1)+COUNTIF(M$18:M157,M157)-1 -> 674 | S157: =RANK(N157,N$18:N$1017,1)+COUNTIF(N$18:N157,N157)-1 -> 650 | T157: =RANK(O157,O$18:O$1017,1)+COUNTIF(O$18:O157,O157)-1 -> 653 | U157: =RANK(P157,P$18:P$1017,1)+COUNTIF(P$18:P157,P157)-1 -> 679 | X157: -0.5436008543 | Y157: 0.2160710122 | Z157: 1.082042732 | AA157: 1.096885086
A158: 141 | B158: -0.7329743152 | C158: 0.1556752283 | D158: 0.7783761413 | E158: 0.7783761413 | H158: -0.391296453 | I158: 1.021503522 | J158: 0.6695756838 | K158: 0.9108453014 | M158: -0.391296453 | N158: 1.021503522 | O158: 1.209010327 | P158: 0.9108453014 | R158: =RANK(M158,M$18:M$1017,1)+COUNTIF(M$18:M158,M158)-1 -> 369 | S158: =RANK(N158,N$18:N$1017,1)+COUNTIF(N$18:N158,N158)-1 -> 833 | T158: =RANK(O158,O$18:O$1017,1)+COUNTIF(O$18:O158,O158)-1 -> 888 | U158: =RANK(P158,P$18:P$1017,1)+COUNTIF(P$18:P158,P158)-1 -> 830 | X158: -0.6421938498 | Y158: 0.239800681 | Z158: 1.24807745 | AA158: 1.19662572
A159: 142 | B159: -0.7324451851 | C159: 0.155851605 | D159: 0.7792580248 | E159: 0.7792580248 | H159: 1.118592081 | I159: 0.4394166808 | J159: 0.5807351044 | K159: 0.8296251508 | M159: 1.118592081 | N159: 0.4394166808 | O159: 0.7136826766 | P159: 0.8296251508 | R159: =RANK(M159,M$18:M$1017,1)+COUNTIF(M$18:M159,M159)-1 -> 876 | S159: =RANK(N159,N$18:N$1017,1)+COUNTIF(N$18:N159,N159)-1 -> 635 | T159: =RANK(O159,O$18:O$1017,1)+COUNTIF(O$18:O159,O159)-1 -> 733 | U159: =RANK(P159,P$18:P$1017,1)+COUNTIF(P$18:P159,P159)-1 -> 811 | X159: -0.4582264361 | Y159: 0.2143968975 | Z159: 1.129290118 | AA159: 1.182088784
A160: 143 | B160: -0.73191831 | C160: 0.15602723 | D160: 0.7801361499 | E160: 0.7801361499 | H160: 0.3191735232 | I160: -0.69243697 | J160: 0.5606591458 | K160: 1.346043064 | M160: 0.3191735232 | N160: -0.69243697 | O160: -0.14848656 | P160: 1.346043064 | R160: =RANK(M160,M$18:M$1017,1)+COUNTIF(M$18:M160,M160)-1 -> 651 | S160: =RANK(N160,N$18:N$1017,1)+COUNTIF(N$18:N160,N160)-1 -> 229 | T160: =RANK(O160,O$18:O$1017,1)+COUNTIF(O$18:O160,O160)-1 -> 432 | U160: =RANK(P160,P$18:P$1017,1)+COUNTIF(P$18:P160,P160)-1 -> 920 | X160: -0.5514497453 | Y160: 0.1690901297 | Z160: 0.9638134882 | AA160: 1.284125645
A161: 144 | B161: -0.7313936606 | C161: 0.1562021131 | D161: 0.7810105657 | E161: 0.7810105657 | H161: -0.6173502243 | I161: 0.134776883 | J161: -0.06250161277 | K161: -0.4476885351 | M161: -0.6173502243 | N161: 0.134776883 | O161: 0.05974173126 | P161: -0.4476885351 | R161: =RANK(M161,M$18:M$1017,1)+COUNTIF(M$18:M161,M161)-1 -> 284 | S161: =RANK(N161,N$18:N$1017,1)+COUNTIF(N$18:N161,N161)-1 -> 530 | T161: =RANK(O161,O$18:O$1017,1)+COUNTIF(O$18:O161,O161)-1 -> 521 | U161: =RANK(P161,P$18:P$1017,1)+COUNTIF(P$18:P161,P161)-1 -> 337 | X161: -0.6716546318 | Y161: 0.2031055574 | Z161: 1.01078594 | AA161: 0.9117269884
A162: 145 | B162: -0.7308712079 | C162: 0.156376264 | D162: 0.7818813201 | E162: 0.7818813201 | H162: 0.2042474989 | I162: 1.344151315 | J162: 0.2184845016 | K162: -0.6645109352 | M162: 0.2042474989 | N162: 1.344151315 | O162: 1.1526274 | P162: -0.6645109352 | R162: =RANK(M162,M$18:M$1017,1)+COUNTIF(M$18:M162,M162)-1 -> 599 | S162: =RANK(N162,N$18:N$1017,1)+COUNTIF(N$18:N162,N162)-1 -> 908 | T162: =RANK(O162,O$18:O$1017,1)+COUNTIF(O$18:O162,O162)-1 -> 870 | U162: =RANK(P162,P$18:P$1017,1)+COUNTIF(P$18:P162,P162)-1 -> 261 | X162: -0.5686288678 | Y162: 0.2539323664 | Z162: 1.230660934 | AA162: 0.8663109641
A163: 146 | B163: -0.7303509237 | C163: 0.1565496921 | D163: 0.7827484605 | E163: 0.7827484605 | H163: 0.2598142146 | I163: 0.5443507689 | J163: 0.9728296391 | K163: 1.512144081 | M163: 0.2598142146 | N163: 0.5443507689 | O163: 1.0517294 | P163: 1.512144081 | R163: =RANK(M163,M$18:M$1017,1)+COUNTIF(M$18:M163,M163)-1 -> 626 | S163: =RANK(N163,N$18:N$1017,1)+COUNTIF(N$18:N163,N163)-1 -> 671 | T163: =RANK(O163,O$18:O$1017,1)+COUNTIF(O$18:O163,O163)-1 -> 849 | U163: =RANK(P163,P$18:P$1017,1)+COUNTIF(P$18:P163,P163)-1 -> 939 | X163: -0.559792768 | Y163: 0.2184548828 | Z163: 1.212122057 | AA163: 1.310357752
A164: 147 | B164: -0.72983278 | C164: 0.1567224067 | D164: 0.7836120333 | E164: 0.7836120333 | H164: -0.6253299034 | I164: 0.3417949301 | J164: -0.9149061952 | K164: 1.222863375 | M164: -0.6253299034 | N164: 0.3417949301 | O164: -0.3488073688 | P164: 1.222863375 | R164: =RANK(M164,M$18:M$1017,1)+COUNTIF(M$18:M164,M164)-1 -> 280 | S164: =RANK(N164,N$18:N$1017,1)+COUNTIF(N$18:N164,N164)-1 -> 593 | T164: =RANK(O164,O$18:O$1017,1)+COUNTIF(O$18:O164,O164)-1 -> 357 | U164: =RANK(P164,P$18:P$1017,1)+COUNTIF(P$18:P164,P164)-1 -> 897 | X164: -0.6731204784 | Y164: 0.2098092106 | Z164: 0.9230063557 | AA164: 1.257454262
A165: 148 | B165: -0.7293167497 | C165: 0.1568944168 | D165: 0.7844720838 | E165: 0.7844720838 | H165: -0.4623666428 | I165: -1.899979907 | J165: -0.4151957 | K165: -0.5786546353 | M165: -0.4623666428 | N165: -1.899979907 | O165: -1.699611072 | P165: -0.5786546353 | R165: =RANK(M165,M$18:M$1017,1)+COUNTIF(M$18:M165,M165)-1 -> 337 | S165: =RANK(N165,N$18:N$1017,1)+COUNTIF(N$18:N165,N165)-1 -> 27 | T165: =RANK(O165,O$18:O$1017,1)+COUNTIF(O$18:O165,O165)-1 -> 34 | U165: =RANK(P165,P$18:P$1017,1)+COUNTIF(P$18:P165,P165)-1 -> 294 | X165: -0.6529638069 | Y165: 0.123983676 | Z165: 0.6377050756 | AA165: 0.8866199603
A166: 149 | B166: -0.728802806 | C166: 0.1570657313 | D166: 0.7853286567 | E166: 0.7853286567 | H166: 0.9864265849 | I166: 0.01633338798 | J166: 0.04181856639 | K166: 1.024343419 | M166: 0.9864265849 | N166: 0.01633338798 | O166: 0.03991042269 | P166: 1.024343419 | R166: =RANK(M166,M$18:M$1017,1)+COUNTIF(M$18:M166,M166)-1 -> 852 | S166: =RANK(N166,N$18:N$1017,1)+COUNTIF(N$18:N166,N166)-1 -> 480 | T166: =RANK(O166,O$18:O$1017,1)+COUNTIF(O$18:O166,O166)-1 -> 508 | U166: =RANK(P166,P$18:P$1017,1)+COUNTIF(P$18:P166,P166)-1 -> 855 | X166: -0.471197194 | Y166: 0.1978428119 | Z166: 1.00394473 | AA166: 1.217251539
A167: 150 | B167: -0.7282909226 | C167: 0.1572363591 | D167: 0.7861817957 | E167: 0.7861817957 | H167: -1.646440069 | I167: 0.07216158338 | J167: -0.4601542969 | K167: -0.6017830856 | M167: -1.646440069 | N167: 0.07216158338 | O167: -0.250242271 | P167: -0.6017830856 | R167: =RANK(M167,M$18:M$1017,1)+COUNTIF(M$18:M167,M167)-1 -> 52 | S167: =RANK(N167,N$18:N$1017,1)+COUNTIF(N$18:N167,N167)-1 -> 503 | T167: =RANK(O167,O$18:O$1017,1)+COUNTIF(O$18:O167,O167)-1 -> 399 | U167: =RANK(P167,P$18:P$1017,1)+COUNTIF(P$18:P167,P167)-1 -> 285 | X167: -0.7958945329 | Y167: 0.2002629697 | Z167: 0.9460910335 | AA167: 0.881184064
A168: 151 | B168: -0.7277810737 | C168: 0.1574063088 | D168: 0.7870315439 | E168: 0.7870315439 | H168: 1.026155587 | I168: -1.477997102 | J168: -0.2553861123 | K168: -0.1510056791 | M168: 1.026155587 | N168: -1.477997102 | O168: -1.277419862 | P168: -0.1510056791 | R168: =RANK(M168,M$18:M$1017,1)+COUNTIF(M$18:M168,M168)-1 -> 860 | S168: =RANK(N168,N$18:N$1017,1)+COUNTIF(N$18:N168,N168)-1 -> 61 | T168: =RANK(O168,O$18:O$1017,1)+COUNTIF(O$18:O168,O168)-1 -> 88 | U168: =RANK(P168,P$18:P$1017,1)+COUNTIF(P$18:P168,P168)-1 -> 454 | X168: -0.4670256848 | Y168: 0.1376230455 | Z168: 0.7244728006 | AA168: 0.9754942189
A169: 152 | B169: -0.7272732339 | C169: 0.1575755887 | D169: 0.7878779434 | E169: 0.7878779434 | H169: 0.4637286111 | I169: -1.825442268 | J169: 0.8163169696 | K169: -0.1878709099 | M169: 0.4637286111 | N169: -1.825442268 | O169: -0.8291387782 | P169: -0.1878709099 | R169: =RANK(M169,M$18:M$1017,1)+COUNTIF(M$18:M169,M169)-1 -> 702 | S169: =RANK(N169,N$18:N$1017,1)+COUNTIF(N$18:N169,N169)-1 -> 31 | T169: =RANK(O169,O$18:O$1017,1)+COUNTIF(O$18:O169,O169)-1 -> 186 | U169: =RANK(P169,P$18:P$1017,1)+COUNTIF(P$18:P169,P169)-1 -> 439 | X169: -0.533765965 | Y169: 0.1260900168 | Z169: 0.8149209533 | AA169: 0.967539441
A170: 153 | B170: -0.7267673785 | C170: 0.1577442072 | D170: 0.7887210358 | E170: 0.7887210358 | H170: -1.049220373 | I170: 0.2073727501 | J170: 0.2592605597 | K170: 0.5019819582 | M170: -1.049220373 | N170: 0.2073727501 | O170: 0.327014304 | P170: 0.5019819582 | R170: =RANK(M170,M$18:M$1017,1)+COUNTIF(M$18:M170,M170)-1 -> 157 | S170: =RANK(N170,N$18:N$1017,1)+COUNTIF(N$18:N170,N170)-1 -> 553 | T170: =RANK(O170,O$18:O$1017,1)+COUNTIF(O$18:O170,O170)-1 -> 598 | U170: =RANK(P170,P$18:P$1017,1)+COUNTIF(P$18:P170,P170)-1 -> 686 | X170: -0.7247633185 | Y170: 0.2055366672 | Z170: 1.0517446 | AA170: 1.100954481
A171: 154 | B171: -0.7262634831 | C171: 0.1579121723 | D171: 0.7895608616 | E171: 0.7895608616 | H171: -1.327166501 | I171: -2.032975317 | J171: 1.496728146 | K171: -0.3941067916 | M171: -1.327166501 | N171: -2.032975317 | O171: -0.5347388742 | P171: -0.3941067916 | R171: =RANK(M171,M$18:M$1017,1)+COUNTIF(M$18:M171,M171)-1 -> 94 | S171: =RANK(N171,N$18:N$1017,1)+COUNTIF(N$18:N171,N171)-1 -> 18 | T171: =RANK(O171,O$18:O$1017,1)+COUNTIF(O$18:O171,O171)-1 -> 282 | U171: =RANK(P171,P$18:P$1017,1)+COUNTIF(P$18:P171,P171)-1 -> 356 | X171: -0.7611084156 | Y171: 0.1182049873 | Z171: 0.8793559458 | AA171: 0.9224473782
A172: 155 | B172: -0.7257615235 | C172: 0.1580794922 | D172: 0.7903974608 | E172: 0.7903974608 | H172: -0.1853015874 | I172: -0.2148817657 | J172: 0.4900425665 | K172: 1.225289452 | M172: -0.1853015874 | N172: -0.2148817657 | O172: 0.1629713664 | P172: 1.225289452 | R172: =RANK(M172,M$18:M$1017,1)+COUNTIF(M$18:M172,M172)-1 -> 452 | S172: =RANK(N172,N$18:N$1017,1)+COUNTIF(N$18:N172,N172)-1 -> 403 | T172: =RANK(O172,O$18:O$1017,1)+COUNTIF(O$18:O172,O172)-1 -> 549 | U172: =RANK(P172,P$18:P$1017,1)+COUNTIF(P$18:P172,P172)-1 -> 898 | X172: -0.615338625 | Y172: 0.18965108 | Z172: 1.025564375 | AA172: 1.258528074
A173: 156 | B173: -0.7252614764 | C173: 0.1582461745 | D173: 0.7912308727 | E173: 0.7912308727 | H173: 0.03600007403 | I173: 0.1843682185 | J173: -0.7346739039 | K173: -0.3682748684 | M173: 0.03600007403 | N173: 0.1843682185 | O173: -0.3476649473 | P173: -0.3682748684 | R173: =RANK(M173,M$18:M$1017,1)+COUNTIF(M$18:M173,M173)-1 -> 528 | S173: =RANK(N173,N$18:N$1017,1)+COUNTIF(N$18:N173,N173)-1 -> 544 | T173: =RANK(O173,O$18:O$1017,1)+COUNTIF(O$18:O173,O173)-1 -> 359 | U173: =RANK(P173,P$18:P$1017,1)+COUNTIF(P$18:P173,P173)-1 -> 371 | X173: -0.5913158962 | Y173: 0.2045837858 | Z173: 0.924122837 | AA173: 0.9307823107
A174: 157 | B174: -0.7247633185 | C174: 0.1584122272 | D174: 0.7920611359 | E174: 0.7920611359 | H174: -0.3220725375 | I174: 0.1797798177 | J174: -0.1317664555 | K174: -0.6539585229 | M174: -0.3220725375 | N174: 0.1797798177 | O174: 0.04767954516 | P174: -0.6539585229 | R174: =RANK(M174,M$18:M$1017,1)+COUNTIF(M$18:M174,M174)-1 -> 398 | S174: =RANK(N174,N$18:N$1017,1)+COUNTIF(N$18:N174,N174)-1 -> 543 | T174: =RANK(O174,O$18:O$1017,1)+COUNTIF(O$18:O174,O174)-1 -> 512 | U174: =RANK(P174,P$18:P$1017,1)+COUNTIF(P$18:P174,P174)-1 -> 263 | X174: -0.6326705136 | Y174: 0.2044780486 | Z174: 1.006049016 | AA174: 0.867573241
A175: 158 | B175: -0.7242670271 | C175: 0.1585776576 | D175: 0.7928882882 | E175: 0.7928882882 | H175: -0.04848061508 | I175: -0.09534687706 | J175: -0.7181392903 | K175: -0.7703124538 | M175: -0.04848061508 | N175: -0.09534687706 | O175: -0.54651465 | P175: -0.7703124538 | R175: =RANK(M175,M$18:M$1017,1)+COUNTIF(M$18:M175,M175)-1 -> 508 | S175: =RANK(N175,N$18:N$1017,1)+COUNTIF(N$18:N175,N175)-1 -> 444 | T175: =RANK(O175,O$18:O$1017,1)+COUNTIF(O$18:O175,O175)-1 -> 272 | U175: =RANK(P175,P$18:P$1017,1)+COUNTIF(P$18:P175,P175)-1 -> 219 | X175: -0.5976331621 | Y175: 0.1940390344 | Z175: 0.8732001991 | AA175: 0.8386399192
A176: 159 | B176: -0.7237725799 | C176: 0.1587424734 | D176: 0.7937123668 | E176: 0.7937123668 | H176: -0.1024193352 | I176: -0.4373123375 | J176: 1.851558409 | K176: 0.6898153515 | M176: -0.1024193352 | N176: -0.4373123375 | O176: 0.8967065188 | P176: 0.6898153515 | R176: =RANK(M176,M$18:M$1017,1)+COUNTIF(M$18:M176,M176)-1 -> 480 | S176: =RANK(N176,N$18:N$1017,1)+COUNTIF(N$18:N176,N176)-1 -> 320 | T176: =RANK(O176,O$18:O$1017,1)+COUNTIF(O$18:O176,O176)-1 -> 798 | U176: =RANK(P176,P$18:P$1017,1)+COUNTIF(P$18:P176,P176)-1 -> 769 | X176: -0.6064715642 | Y176: 0.1803911326 | Z176: 1.172601506 | AA176: 1.152535605
A177: 160 | B177: -0.723279955 | C177: 0.1589066817 | D177: 0.7945334084 | E177: 0.7945334084 | H177: -0.1594457899 | I177: -0.371551323 | J177: 1.506173248 | K177: -2.134056558 | M177: -0.1594457899 | N177: -0.371551323 | O177: 0.7175764693 | P177: -2.134056558 | R177: =RANK(M177,M$18:M$1017,1)+COUNTIF(M$18:M177,M177)-1 -> 456 | S177: =RANK(N177,N$18:N$1017,1)+COUNTIF(N$18:N177,N177)-1 -> 347 | T177: =RANK(O177,O$18:O$1017,1)+COUNTIF(O$18:O177,O177)-1 -> 735 | U177: =RANK(P177,P$18:P$1017,1)+COUNTIF(P$18:P177,P177)-1 -> 22 | X177: -0.6140686472 | Y177: 0.1834787298 | Z177: 1.130541554 | AA177: 0.6049663005
A178: 161 | B178: -0.7227891307 | C178: 0.1590702898 | D178: 0.7953514488 | E178: 0.7953514488 | H178: -0.3945194749 | I178: -2.065444278 | J178: -0.4597291081 | K178: -2.296128514 | M178: -0.3945194749 | N178: -2.065444278 | O178: -1.853165431 | P178: -2.296128514 | R178: =RANK(M178,M$18:M$1017,1)+COUNTIF(M$18:M178,M178)-1 -> 365 | S178: =RANK(N178,N$18:N$1017,1)+COUNTIF(N$18:N178,N178)-1 -> 17 | T178: =RANK(O178,O$18:O$1017,1)+COUNTIF(O$18:O178,O178)-1 -> 28 | U178: =RANK(P178,P$18:P$1017,1)+COUNTIF(P$18:P178,P178)-1 -> 17 | X178: -0.6435235138 | Y178: 0.1174349529 | Z178: 0.6226548272 | AA178: 0.5871747647
A179: 162 | B179: -0.7223000859 | C179: 0.1592333047 | D179: 0.7961665235 | E179: 0.7961665235 | H179: 1.754124241 | I179: -1.047365004 | J179: 0.6816867426 | K179: -1.175756097 | M179: 1.754124241 | N179: -1.047365004 | O179: -0.3346303545 | P179: -1.175756097 | R179: =RANK(M179,M$18:M$1017,1)+COUNTIF(M$18:M179,M179)-1 -> 963 | S179: =RANK(N179,N$18:N$1017,1)+COUNTIF(N$18:N179,N179)-1 -> 124 | T179: =RANK(O179,O$18:O$1017,1)+COUNTIF(O$18:O179,O179)-1 -> 365 | U179: =RANK(P179,P$18:P$1017,1)+COUNTIF(P$18:P179,P179)-1 -> 117 | X179: -0.3880074874 | Y179: 0.1525512781 | Z179: 0.9274608103 | AA179: 0.7559364045
A180: 163 | B180: -0.7218127997 | C180: 0.1593957334 | D180: 0.7969786672 | E180: 0.7969786672 | H180: 1.458665793 | I180: 1.299263204 | J180: 1.22351139 | K180: -0.3426066542 | M180: 1.458665793 | N180: 1.299263204 | O180: 1.783724119 | P180: -0.3426066542 | R180: =RANK(M180,M$18:M$1017,1)+COUNTIF(M$18:M180,M180)-1 -> 933 | S180: =RANK(N180,N$18:N$1017,1)+COUNTIF(N$18:N180,N180)-1 -> 902 | T180: =RANK(O180,O$18:O$1017,1)+COUNTIF(O$18:O180,O180)-1 -> 967 | U180: =RANK(P180,P$18:P$1017,1)+COUNTIF(P$18:P180,P180)-1 -> 379 | X180: -0.4190768452 | Y180: 0.2525785212 | Z180: 1.362294924 | AA180: 0.9351869338
A181: 164 | B181: -0.7213272517 | C181: 0.1595575828 | D181: 0.7977879139 | E181: 0.7977879139 | H181: 0.2782962838 | I181: -0.2047943326 | J181: -0.8769666238 | K181: -0.4703838385 | M181: 0.2782962838 | N181: -0.2047943326 | O181: -0.7336546481 | P181: -0.4703838385 | R181: =RANK(M181,M$18:M$1017,1)+COUNTIF(M$18:M181,M181)-1 -> 635 | S181: =RANK(N181,N$18:N$1017,1)+COUNTIF(N$18:N181,N181)-1 -> 405 | T181: =RANK(O181,O$18:O$1017,1)+COUNTIF(O$18:O181,O181)-1 -> 212 | U181: =RANK(P181,P$18:P$1017,1)+COUNTIF(P$18:P181,P181)-1 -> 328 | X181: -0.5568093075 | Y181: 0.1898671437 | Z181: 0.8337767507 | AA181: 0.906576779
A182: 165 | B182: -0.7208434216 | C182: 0.1597188595 | D182: 0.7985942973 | E182: 0.7985942973 | H182: 2.105134627 | I182: -0.8130109563 | J182: -0.5550282367 | K182: -1.623725439 | M182: 2.105134627 | N182: -0.8130109563 | O182: -0.9768748885 | P182: -1.623725439 | R182: =RANK(M182,M$18:M$1017,1)+COUNTIF(M$18:M182,M182)-1 -> 985 | S182: =RANK(N182,N$18:N$1017,1)+COUNTIF(N$18:N182,N182)-1 -> 189 | T182: =RANK(O182,O$18:O$1017,1)+COUNTIF(O$18:O182,O182)-1 -> 150 | U182: =RANK(P182,P$18:P$1017,1)+COUNTIF(P$18:P182,P182)-1 -> 53 | X182: -0.3498883828 | Y182: 0.1634333877 | Z182: 0.7861817957 | AA182: 0.6752163447
A183: 166 | B183: -0.7203612897 | C183: 0.1598795701 | D183: 0.7993978505 | E183: 0.7993978505 | H183: -0.265278004 | I183: -2.149990905 | J183: -1.463336048 | K183: -1.620019248 | M183: -0.265278004 | N183: -2.149990905 | O183: -2.580398996 | P183: -1.620019248 | R183: =RANK(M183,M$18:M$1017,1)+COUNTIF(M$18:M183,M183)-1 -> 426 | S183: =RANK(N183,N$18:N$1017,1)+COUNTIF(N$18:N183,N183)-1 -> 11 | T183: =RANK(O183,O$18:O$1017,1)+COUNTIF(O$18:O183,O183)-1 -> 6 | U183: =RANK(P183,P$18:P$1017,1)+COUNTIF(P$18:P183,P183)-1 -> 54 | X183: -0.6236329828 | Y183: 0.1118928047 | Z183: 0.5250609312 | AA183: 0.67690086
A184: 167 | B184: -0.7198808365 | C184: 0.1600397212 | D184: 0.8001986058 | E184: 0.8001986058 | H184: -0.08981487554 | I184: -0.6264463082 | J184: 1.706289368 | K184: -0.01679154593 | M184: -0.08981487554 | N184: -0.6264463082 | O184: 0.6587696017 | P184: -0.01679154593 | R184: =RANK(M184,M$18:M$1017,1)+COUNTIF(M$18:M184,M184)-1 -> 486 | S184: =RANK(N184,N$18:N$1017,1)+COUNTIF(N$18:N184,N184)-1 -> 253 | T184: =RANK(O184,O$18:O$1017,1)+COUNTIF(O$18:O184,O184)-1 -> 715 | U184: =RANK(P184,P$18:P$1017,1)+COUNTIF(P$18:P184,P184)-1 -> 501 | X184: -0.6045765468 | Y184: 0.1722432819 | Z184: 1.118208398 | AA184: 1.000262968
A185: 168 | B185: -0.7194020429 | C185: 0.160199319 | D185: 0.8009965952 | E185: 0.8009965952 | H185: 1.169669304 | I185: 0.7014102721 | J185: -0.1911416803 | K185: 0.7490780263 | M185: 1.169669304 | N185: 0.7014102721 | O185: 0.3996293663 | P185: 0.7490780263 | R185: =RANK(M185,M$18:M$1017,1)+COUNTIF(M$18:M185,M185)-1 -> 885 | S185: =RANK(N185,N$18:N$1017,1)+COUNTIF(N$18:N185,N185)-1 -> 723 | T185: =RANK(O185,O$18:O$1017,1)+COUNTIF(O$18:O185,O185)-1 -> 624 | U185: =RANK(P185,P$18:P$1017,1)+COUNTIF(P$18:P185,P185)-1 -> 784 | X185: -0.4529647408 | Y185: 0.2246189357 | Z185: 1.065911745 | AA185: 1.162741217
A186: 169 | B186: -0.7189248899 | C186: 0.16035837 | D186: 0.8017918502 | E186: 0.8017918502 | H186: -0.2267188393 | I186: 0.7734035989 | J186: -0.4547177923 | K186: 0.6130062502 | M186: -0.2267188393 | N186: 0.7734035989 | O186: 0.2792851504 | P186: 0.6130062502 | R186: =RANK(M186,M$18:M$1017,1)+COUNTIF(M$18:M186,M186)-1 -> 440 | S186: =RANK(N186,N$18:N$1017,1)+COUNTIF(N$18:N186,N186)-1 -> 752 | T186: =RANK(O186,O$18:O$1017,1)+COUNTIF(O$18:O186,O186)-1 -> 583 | U186: =RANK(P186,P$18:P$1017,1)+COUNTIF(P$18:P186,P186)-1 -> 742 | X186: -0.6191574314 | Y186: 0.2282718506 | Z186: 1.04367031 | AA186: 1.13495578
A187: 170 | B187: -0.718449359 | C187: 0.1605168803 | D187: 0.8025844017 | E187: 0.8025844017 | H187: 1.25047336 | I187: -0.6039840628 | J187: 2.119377314 | K187: -0.1636306024 | M187: 1.25047336 | N187: -0.6039840628 | O187: 0.9488482795 | P187: -0.1636306024 | R187: =RANK(M187,M$18:M$1017,1)+COUNTIF(M$18:M187,M187)-1 -> 900 | S187: =RANK(N187,N$18:N$1017,1)+COUNTIF(N$18:N187,N187)-1 -> 267 | T187: =RANK(O187,O$18:O$1017,1)+COUNTIF(O$18:O187,O187)-1 -> 818 | U187: =RANK(P187,P$18:P$1017,1)+COUNTIF(P$18:P187,P187)-1 -> 447 | X187: -0.4435822605 | Y187: 0.1740169389 | Z187: 1.18734525 | AA187: 0.971786536
A188: 171 | B188: -0.717975432 | C188: 0.160674856 | D188: 0.80337428 | E188: 0.80337428 | H188: -0.05866922947 | I188: -0.7511039257 | J188: 0.3852755981 | K188: 1.903244993 | M188: -0.05866922947 | N188: -0.7511039257 | O188: -0.3084920896 | P188: 1.903244993 | R188: =RANK(M188,M$18:M$1017,1)+COUNTIF(M$18:M188,M188)-1 -> 503 | S188: =RANK(N188,N$18:N$1017,1)+COUNTIF(N$18:N188,N188)-1 -> 208 | T188: =RANK(O188,O$18:O$1017,1)+COUNTIF(O$18:O188,O188)-1 -> 374 | U188: =RANK(P188,P$18:P$1017,1)+COUNTIF(P$18:P188,P188)-1 -> 976 | X188: -0.599211091 | Y188: 0.1661920068 | Z188: 0.9324371713 | AA188: 1.385790247
A189: 172 | B189: -0.717503091 | C189: 0.160832303 | D189: 0.8041615151 | E189: 0.8041615151 | H189: 1.264470484 | I189: 1.626017365 | J189: -0.4685898602 | K189: -1.236057869 | M189: 1.264470484 | N189: 1.626017365 | O189: 0.9095699646 | P189: -1.236057869 | R189: =RANK(M189,M$18:M$1017,1)+COUNTIF(M$18:M189,M189)-1 -> 902 | S189: =RANK(N189,N$18:N$1017,1)+COUNTIF(N$18:N189,N189)-1 -> 950 | T189: =RANK(O189,O$18:O$1017,1)+COUNTIF(O$18:O189,O189)-1 -> 803 | U189: =RANK(P189,P$18:P$1017,1)+COUNTIF(P$18:P189,P189)-1 -> 109 | X189: -0.4422644364 | Y189: 0.2656443268 | Z189: 1.176210313 | AA189: 0.7478168019
A190: 173 | B190: -0.7170323182 | C190: 0.1609892273 | D190: 0.8049461364 | E190: 0.8049461364 | H190: -1.293944933 | I190: -0.3440663932 | J190: -0.1336184141 | K190: -0.6113441486 | M190: -1.293944933 | N190: -0.3440663932 | O190: -0.3464300684 | P190: -0.6113441486 | R190: =RANK(M190,M$18:M$1017,1)+COUNTIF(M$18:M190,M190)-1 -> 102 | S190: =RANK(N190,N$18:N$1017,1)+COUNTIF(N$18:N190,N190)-1 -> 358 | T190: =RANK(O190,O$18:O$1017,1)+COUNTIF(O$18:O190,O190)-1 -> 362 | U190: =RANK(P190,P$18:P$1017,1)+COUNTIF(P$18:P190,P190)-1 -> 281 | X190: -0.7557652138 | Y190: 0.1847129681 | Z190: 0.9257939412 | AA190: 0.8787447125
A191: 174 | B191: -0.7165630962 | C191: 0.1611456346 | D191: 0.805728173 | E191: 0.805728173 | H191: 1.513826646 | I191: -2.110064088 | J191: 0.244651801 | K191: 0.5720653462 | M191: 1.513826646 | N191: -2.110064088 | O191: -1.42072611 | P191: 0.5720653462 | R191: =RANK(M191,M$18:M$1017,1)+COUNTIF(M$18:M191,M191)-1 -> 945 | S191: =RANK(N191,N$18:N$1017,1)+COUNTIF(N$18:N191,N191)-1 -> 15 | T191: =RANK(O191,O$18:O$1017,1)+COUNTIF(O$18:O191,O191)-1 -> 61 | U191: =RANK(P191,P$18:P$1017,1)+COUNTIF(P$18:P191,P191)-1 -> 725 | X191: -0.4081228297 | Y191: 0.1157843931 | Z191: 0.6881152274 | AA191: 1.124325763
A192: 175 | B192: -0.7160954081 | C192: 0.1613015306 | D192: 0.8065076532 | E192: 0.8065076532 | H192: -0.6037998901 | I192: 1.238854566 | J192: 0.1434273145 | K192: -0.4548883226 | M192: -0.6037998901 | N192: 1.238854566 | O192: 1.024009176 | P192: -0.4548883226 | R192: =RANK(M192,M$18:M$1017,1)+COUNTIF(M$18:M192,M192)-1 -> 286 | S192: =RANK(N192,N$18:N$1017,1)+COUNTIF(N$18:N192,N192)-1 -> 890 | T192: =RANK(O192,O$18:O$1017,1)+COUNTIF(O$18:O192,O192)-1 -> 841 | U192: =RANK(P192,P$18:P$1017,1)+COUNTIF(P$18:P192,P192)-1 -> 334 | X192: -0.6709250388 | Y192: 0.2500236917 | Z192: 1.205466592 | AA192: 0.9100157378
A193: 176 | B193: -0.7156292368 | C193: 0.1614569211 | D193: 0.8072846054 | E193: 0.8072846054 | H193: -0.681493475 | I193: 0.7281755643 | J193: 1.60154741 | K193: 1.280632205 | M193: -0.681493475 | N193: 0.7281755643 | O193: 1.605455713 | P193: 1.280632205 | R193: =RANK(M193,M$18:M$1017,1)+COUNTIF(M$18:M193,M193)-1 -> 257 | S193: =RANK(N193,N$18:N$1017,1)+COUNTIF(N$18:N193,N193)-1 -> 734 | T193: =RANK(O193,O$18:O$1017,1)+COUNTIF(O$18:O193,O193)-1 -> 952 | U193: =RANK(P193,P$18:P$1017,1)+COUNTIF(P$18:P193,P193)-1 -> 911 | X193: -0.6817362405 | Y193: 0.2259830611 | Z193: 1.331757068 | AA193: 1.273155107
A194: 177 | B194: -0.7151645658 | C194: 0.1616118114 | D194: 0.8080590569 | E194: 0.8080590569 | H194: 1.962671377 | I194: -0.8276833796 | J194: 0.9959285308 | K194: -0.2488309292 | M194: 1.962671377 | N194: -0.8276833796 | O194: 0.03798226928 | P194: -0.2488309292 | R194: =RANK(M194,M$18:M$1017,1)+COUNTIF(M$18:M194,M194)-1 -> 980 | S194: =RANK(N194,N$18:N$1017,1)+COUNTIF(N$18:N194,N194)-1 -> 181 | T194: =RANK(O194,O$18:O$1017,1)+COUNTIF(O$18:O194,O194)-1 -> 507 | U194: =RANK(P194,P$18:P$1017,1)+COUNTIF(P$18:P194,P194)-1 -> 421 | X194: -0.3610043607 | Y194: 0.1622264792 | Z194: 1.003418721 | AA194: 0.957937268
A195: 178 | B195: -0.7147013789 | C195: 0.161766207 | D195: 0.8088310352 | E195: 0.8088310352 | H195: -0.02849901648 | I195: 1.105108822 | J195: -0.07361904864 | K195: -2.62974936 | M195: -0.02849901648 | N195: 1.105108822 | O195: 0.7801371931 | P195: -2.62974936 | R195: =RANK(M195,M$18:M$1017,1)+COUNTIF(M$18:M195,M195)-1 -> 514 | S195: =RANK(N195,N$18:N$1017,1)+COUNTIF(N$18:N195,N195)-1 -> 856 | T195: =RANK(O195,O$18:O$1017,1)+COUNTIF(O$18:O195,O195)-1 -> 756 | U195: =RANK(P195,P$18:P$1017,1)+COUNTIF(P$18:P195,P195)-1 -> 10 | X195: -0.5957391889 | Y195: 0.243623736 | Z195: 1.143954731 | AA195: 0.5537512993
A196: 179 | B196: -0.7142396598 | C196: 0.1619201134 | D196: 0.8096005669 | E196: 0.8096005669 | H196: -0.8895085557 | I196: -0.5414267434 | J196: -0.02161186785 | K196: -0.276307901 | M196: -0.8895085557 | N196: -0.5414267434 | O196: -0.4203649645 | P196: -0.276307901 | R196: =RANK(M196,M$18:M$1017,1)+COUNTIF(M$18:M196,M196)-1 -> 191 | S196: =RANK(N196,N$18:N$1017,1)+COUNTIF(N$18:N196,N196)-1 -> 283 | T196: =RANK(O196,O$18:O$1017,1)+COUNTIF(O$18:O196,O196)-1 -> 324 | U196: =RANK(P196,P$18:P$1017,1)+COUNTIF(P$18:P196,P196)-1 -> 405 | X196: -0.7088079968 | Y196: 0.1759932487 | Z196: 0.9042714871 | AA196: 0.9493357186
A197: 180 | B197: -0.7137793929 | C197: 0.1620735357 | D197: 0.8103676785 | E197: 0.8103676785 | H197: 0.1814896677 | I197: 0.9303630577 | J197: 1.173011697 | K197: -0.863672085 | M197: 0.1814896677 | N197: 0.9303630577 | O197: 1.473646602 | P197: -0.863672085 | R197: =RANK(M197,M$18:M$1017,1)+COUNTIF(M$18:M197,M197)-1 -> 591 | S197: =RANK(N197,N$18:N$1017,1)+COUNTIF(N$18:N197,N197)-1 -> 804 | T197: =RANK(O197,O$18:O$1017,1)+COUNTIF(O$18:O197,O197)-1 -> 927 | U197: =RANK(P197,P$18:P$1017,1)+COUNTIF(P$18:P197,P197)-1 -> 188 | X197: -0.5712187847 | Y197: 0.2353875911 | Z197: 1.293242294 | AA197: 0.8164204842
A198: 181 | B198: -0.7133205624 | C198: 0.1622264792 | D198: 0.8111323959 | E198: 0.8111323959 | H198: 0.1517025794 | I198: 0.7484709386 | J198: 2.065444278 | K198: 2.032975317 | M198: 0.1517025794 | N198: 0.7484709386 | O198: 1.92751618 | P198: 2.032975317 | R198: =RANK(M198,M$18:M$1017,1)+COUNTIF(M$18:M198,M198)-1 -> 581 | S198: =RANK(N198,N$18:N$1017,1)+COUNTIF(N$18:N198,N198)-1 -> 741 | T198: =RANK(O198,O$18:O$1017,1)+COUNTIF(O$18:O198,O198)-1 -> 974 | U198: =RANK(P198,P$18:P$1017,1)+COUNTIF(P$18:P198,P198)-1 -> 982 | X198: -0.5744409954 | Y198: 0.2268643689 | Z198: 1.38008162 | AA198: 1.405284741
A199: 182 | B199: -0.7128631531 | C199: 0.162378949 | D199: 0.8118947448 | E199: 0.8118947448 | H199: -1.052144398 | I199: 0.1906744274 | J199: 0.6286813914 | K199: 0.4946195986 | M199: -1.052144398 | N199: 0.1906744274 | O199: 0.5588394744 | P199: 0.4946195986 | R199: =RANK(M199,M$18:M$1017,1)+COUNTIF(M$18:M199,M199)-1 -> 156 | S199: =RANK(N199,N$18:N$1017,1)+COUNTIF(N$18:N199,N199)-1 -> 547 | T199: =RANK(O199,O$18:O$1017,1)+COUNTIF(O$18:O199,O199)-1 -> 678 | U199: =RANK(P199,P$18:P$1017,1)+COUNTIF(P$18:P199,P199)-1 -> 684 | X199: -0.7252614764 | Y199: 0.2049011562 | Z199: 1.096306468 | AA199: 1.099788334
A200: 183 | B200: -0.7124071498 | C200: 0.1625309501 | D200: 0.8126547504 | E200: 0.8126547504 | H200: 0.5308277196 | I200: -2.28143108 | J200: 0.3076024768 | K200: 1.636726665 | M200: 0.5308277196 | N200: -2.28143108 | O200: -1.507613396 | P200: 1.636726665 | R200: =RANK(M200,M$18:M$1017,1)+COUNTIF(M$18:M200,M200)-1 -> 727 | S200: =RANK(N200,N$18:N$1017,1)+COUNTIF(N$18:N200,N200)-1 -> 7 | T200: =RANK(O200,O$18:O$1017,1)+COUNTIF(O$18:O200,O200)-1 -> 45 | U200: =RANK(P200,P$18:P$1017,1)+COUNTIF(P$18:P200,P200)-1 -> 952 | X200: -0.5246635314 | Y200: 0.1066785989 | Z200: 0.660849597 | AA200: 1.331757068
A201: 184 | B201: -0.7119525376 | C201: 0.1626824875 | D201: 0.8134124374 | E201: 0.8134124374 | H201: 0.5013748705 | I201: -0.900699888 | J201: -0.4245521268 | K201: -1.116022759 | M201: 0.5013748705 | N201: -0.900699888 | O201: -0.9563397525 | P201: -1.116022759 | R201: =RANK(M201,M$18:M$1017,1)+COUNTIF(M$18:M201,M201)-1 -> 716 | S201: =RANK(N201,N$18:N$1017,1)+COUNTIF(N$18:N201,N201)-1 -> 154 | T201: =RANK(O201,O$18:O$1017,1)+COUNTIF(O$18:O201,O201)-1 -> 155 | U201: =RANK(P201,P$18:P$1017,1)+COUNTIF(P$18:P201,P201)-1 -> 132 | X201: -0.5287104384 | Y201: 0.1579121723 | Z201: 0.7903974608 | AA201: 0.77026146
... 816 more rows
